Workbook

Sheet Instructions
B2: Updated | D2: =NOW() -> 2023-06-07T11:58:31.380
B4: Instructions
B6: 1) The "Reset" button will clear the sheet and delete any stored races or selections.
B7: 2) Go to "https://www.racingaustralia.horse/home.aspx" to select your venues.
B8: 3) Choose a venue, when the page loads click on "Recent Form" then click on "Print Friendly."
B9: 4) Press the "CTRL" and the letter "A" on your keyboard at the same time, it should highlight the page.
B10: 5) Press the "CTRL" and the letter "C" on your keyboard at the same time, it should copyt the page.
B11: 6) Come back to excel and press the "Master" tab, the yellow one at the bottom of the page.
B12: 8) Click A3 cell, right click and select paste values, press the "Copy Venue" button, It will take about 10 seconds for it to finish,
B13: you should see a new tab with the venue name at the bottom.
B14: 9) Go back to the webpage, close the "Recent Form" website then click back on the "Racing Australia" site and click the "Racing Australia" logo at the top to return to home screen.
B15: 10) Repeat steps 3 to 8 for all venues needed, the excel sheet may slow a bit if you choose more than about 8 venues, When you have added all races click "Finished Races"
B18: Selecting Races
B20: Manual Mode
B21: 1) Select the "RacePage" sheet there is a dropdown menue under "Venue" you can select your venue here then just type in the race number,
B22: this will display the runners, you can make changes in the drop down box next to "Rating System" and "No of Selections", press the "Copy" button the selections for that race,
B23: will be copied to the "Selections" sheet, a green display will indicate when copied.
B24: 2) Late scratchings can be added by putting an "X" in the box next to each runners price under the heading "L/Scr".
B27: Automatic Mode
B29: 1) Under the selections box you will see some options, "Min Race Class", "Min Rated Price" & "Max Rated Price" you can filter the races
B30: you want, for example to select all OPEN and above races select "Open",the races are listed in a reasonably accurate class order from lowest to highest.
B31: 2) You can also filter the rated price selected, these are left at 0.00 and 100.00 to include all runners.
B32: 3) There is a dropdown box above "Auto Select" button that gives you the option to select from "Race Card" or "Venue", if you choose "Venue" it will start from the current race number
B33: and selected venue, this could be usefull in just selecting from quaddie races.
B34: 4) If a race qualifies with selections the current rated prices will be added and the selections copied to the "Selections" sheet.
B35: 5) "Auto Select" button starts the process, the "Clear Sel" button will clear all saved selections, this is used to start a fresh filter with out erasing the venues.
B36: 6) The "Selections" tab is where you will find your selections, the grey shaded area contains fomulas,
B37: this part is designed to work with an automated betting sheet for "Gruss Betting Assistant" used with betfair.
B39: Ratings Sheets
B40: I have colour coded the top 4 runners along with scratchings to make it easier to identify.
B42: Green = 1st Selection
B43: Yellow = 2nd Selections
B44: Orange = 3rd Selection
B45: Blue = 4th Selection
B46: Red = 2nd Scratched
B50: Ratings Sheets
B52: The sheets provided are from a few different articles I read in my time and adapted to suit my needs, I won't say they are total winners but used with selected races
B53: they can perform well and will throw up some nice overlays.
B54: The pricing model I use is another gem I found and used with the correct ratings can be one of the most accurate I have used,
B55: the formulas are on the "Prices" tab and will utilise most systems.
B57: Consensus
B58: These ratings take in to account a lot of variables from form,fitness, track conditions and class, some of these elements are only available based on conditions,
B59: such as rain effected ground or first and second up form.
B61: Impact
B62: I got the basics of these from an old PPM magazine,a lot of what they sold and posted was crap but these made sense.
B63: The idea was that they studied 10.000 races and looked at each form variable and found that a particular number of runners won more or lost more
B64: than the average of all runners, so looking at the ratings if you consider 1 as 100%, a runner scoring 1.22 has 22% more chance of winning,
B65: a runner with say 0.67 would lose 33% more races.
B67: FormBook
B68: This was another PPM system, essential it provided a rating number for the last 2 runs and the last 2 finish positions.
B70: Class
B71: Just an Idea using just race class as a rating.
B73: Tops
B74: This selects the best on strike rate and ave prizemoney.
B76: BlackBook
B77: I had an idea once that a lot of winners come from the first 4 starts from a spell, I added a couple other criteria, these selections should be followed for a few runs.
B79: Nines
B80: Another system from the 90s, it will select runners that the last 3 finished positions add to 9 or less, spells and zeroa are 10.
B82: Consensus Botton
B84: You will see a "Consensus" button on the "RacePage" what this will do is provide a consensus of up to 4 runners in these ratings choices.
B85: "Consensus", "Impact", FormBook" and "Class".
B86: 1) Clear current selections, use drop down box to select up to 4 runners.
B87: 2) Choose "Consensus" as the ratings system then copy the results, when light is green change your ratings selection to "Impact" when the light goes out press "Copy" again.
B88: 3) Continue this untill you have copied all 4 ratings systems, press "Consensus" button. This will arange the selections on the "Selections" page,
B89: with a 4,3,2,1 rating based on the ratings plans you chose, just add up each runners rating and back the top couple or just the highest runner, your choice.
B91: Adding Your Own Ratings
B92: The "Form" sheet connects to the venue sheets, there is code in A1 and A2 that tell it which venue and race to look at, the best advice I could give would be to create a copy
B93: of the "Impact" ratings sheet, if you look at the code under each heading you will see it connects to form on the form sheet, start by renaming your new sheet,
B94: add that name to the "Form" sheet under "Ratings Systems".
B95: You also need to add the worksheet name to the list on the "Master" sheet at "HO" any other sheets you add to the workbook also need to be listed here.
B97: if you have a basic understanding of excel formulas you should be able to manipulate your new sheet with new ratings, you will notice a green line at the bottom of the sheet,
B98: this is the max rating for each criteria, this is used in the pricing and is not a fomula so make sure you update this.
B100: Word Filter
B101: The Racing Australia site likes to add additional items to the runners names, these are filtered out so the lookup function works correctly, if you notice additional words
B102: being added to the runners name go to the "Master" sheet and look for column "HM" you can add to the filter in that list anything that needs to be removed.
B104: Class Rating
B105: The main class rating is on the "Master" sheet column HB to HC you can adjust the figures in HB if you wish, these number are used in calculations to separate the classes,
B106: you will see some extra class figures in HF/HG these are used as bonus and panalties, the figures in HF can be adjusted also.
B107: These figures will affect the "Consensus Ratings"and the race class filter when using "Austo Select", just a word of warning, if you add or delete ratings classes
B108: make sure you adjust the code on the "Consensus Ratings" sheet in column AK and AO this fomula looks at the total number of cells displaying a rating,
B109: if the ratings go down to line 93 then your formula must be adjusted to this.

Sheet Sheet2
A1: =IF($B2="", "", IF($B2="SCRATCHED", "Red", IF(COUNTIF($B$2:$B2, $B2)<=4, CHOOSE(COUNTIF($B$2:$B2, $B2), "Green", "Yellow", "Orange", "Blue"), ""))) -> 

Sheet consensus
A2: Rating | C2: No | D2: tab + | E2: Name | F2: Form Element | H2: trn | I2: jkt | J2: api | K2: lsr | L2: dls
A3: =IF(form!D3="","",IF(E3="","",D3+M3+J3)) -> 21.9 | B3: =IF(A3="","",$A$15/A3*85%) -> 6.722374429 | C3: =form!D3 -> 1 | D3: =IF($E3="","",IFERROR(test!C2,0)) -> 20 | E3: =IF($C3="","",IFERROR(form!E3,0)) -> VITAL GEM | F3: =IF($C3="","",IFERROR(form!F3,0)) -> 233 | G3: =IF(MID(F3,3,1)="1", 10, IF(MID(F3,3,1)="2", 9, IF(MID(F3,3,1)="3", 8, IF(MID(F3,3,1)="4", 7, "")))) -> 8 | H3: =IF($E3="","",IFERROR(form2!E3,0)) -> 1.9 | I3: =IF($E3="","",IFERROR(form!I3,0)) -> 3.4 | J3: =IF($E3="","",IFERROR(form!J3,0)) -> 1.9 | K3: =IF($E3="","",IFERROR(form!K3,0)) -> 30.5 | L3: =IF($C3<>"",IFERROR(form!L3,0),"") -> 14 | N3: =IF($E3="","",IFERROR(test!C2,0)) -> 20
A4: =IF(form!D4="","",IF(E4="","",D4+M4+J4)) -> 22.3 | B4: =IF(A4="","",$A$15/A4*85%) -> 6.601793722 | C4: =form!D4 -> 2 | D4: =IF($E4="","",IFERROR(test!C3,0)) -> 19 | E4: =IF($C4="","",IFERROR(form!E4,0)) -> ARNRAY | F4: =IF($C4="","",IFERROR(form!F4,0)) -> 0x7 | G4: =IF(MID(F4,3,1)="1", 10, IF(MID(F4,3,1)="2", 9, IF(MID(F4,3,1)="3", 8, IF(MID(F4,3,1)="4", 7, "")))) ->  | H4: =IF($E4="","",IFERROR(form!H4,0)) -> 1.9 | I4: =IF($E4="","",IFERROR(form!I4,0)) -> 1.7 | J4: =IF($E4="","",IFERROR(form!J4,0)) -> 3.3 | K4: =IF($E4="","",IFERROR(form!K4,0)) -> 22 | L4: =IF($C4<>"",IFERROR(form!L4,0),"") -> 14 | N4: =IF($E4="","",IFERROR(test!C3,0)) -> 19
A5: =IF(form!D5="","",IF(E5="","",D5+M5+J5)) -> 20.1 | B5: =IF(A5="","",$A$15/A5*85%) -> 7.324378109 | C5: =form!D5 -> 3 | D5: =IF($E5="","",IFERROR(test!C4,0)) -> 18 | E5: =IF($C5="","",IFERROR(form!E5,0)) -> SUPER SALSA | F5: =IF($C5="","",IFERROR(form!F5,0)) -> 641 | G5: 10 | H5: =IF($E5="","",IFERROR(form!H5,0)) -> 4.4 | I5: =IF($E5="","",IFERROR(form!I5,0)) -> 2.3 | J5: =IF($E5="","",IFERROR(form!J5,0)) -> 2.1 | K5: =IF($E5="","",IFERROR(form!K5,0)) -> 26 | L5: =IF($C5<>"",IFERROR(form!L5,0),"") -> 10 | N5: =IF($E5="","",IFERROR(test!C4,0)) -> 18
A6: =IF(form!D6="","",IF(E6="","",D6+M6+J6)) -> 19.6 | B6: 7.51122449 | C6: =form!D6 -> 4 | D6: =IF($E6="","",IFERROR(test!C5,0)) -> 17 | E6: =IF($C6="","",IFERROR(form!E6,0)) -> LATHAMS WISH | F6: =IF($C6="","",IFERROR(form!F6,0)) -> x60 | H6: =IF($E6="","",IFERROR(form!H6,0)) -> 2.3 | I6: =IF($E6="","",IFERROR(form!I6,0)) -> 2.4 | J6: =IF($E6="","",IFERROR(form!J6,0)) -> 2.6 | K6: =IF($E6="","",IFERROR(form!K6,0)) -> 21 | L6: =IF($C6<>"",IFERROR(form!L6,0),"") -> 13 | N6: =IF($E6="","",IFERROR(test!C5,0)) -> 17
A7: =IF(form!D7="","",IF(E7="","",D7+M7+J7)) -> 20.4 | B7: 7.216666667 | C7: =form!D7 -> 5 | D7: =IF($E7="","",IFERROR(test!C6,0)) -> 16 | E7: =IF($C7="","",IFERROR(form!E7,0)) -> I LOVE YOUR SMILE | F7: =IF($C7="","",IFERROR(form!F7,0)) -> 421 | G7: 10 | H7: =IF($E7="","",IFERROR(form!H7,0)) -> 1.8 | I7: =IF($E7="","",IFERROR(form!I7,0)) -> 1.7 | J7: =IF($E7="","",IFERROR(form!J7,0)) -> 4.4 | K7: =IF($E7="","",IFERROR(form!K7,0)) -> 30 | L7: =IF($C7<>"",IFERROR(form!L7,0),"") -> 14 | N7: =IF($E7="","",IFERROR(test!C6,0)) -> 16
A8: =IF(form!D8="","",IF(E8="","",D8+M8+J8)) -> 19.5 | B8: 7.54974359 | C8: =form!D8 -> 6 | D8: =IF($E8="","",IFERROR(test!C7,0)) -> 15 | E8: =IF($C8="","",IFERROR(form!E8,0)) -> YONGA LASS | F8: =IF($C8="","",IFERROR(form!F8,0)) -> 0 | H8: =IF($E8="","",IFERROR(form!H8,0)) -> 2.3 | I8: =IF($E8="","",IFERROR(form!I8,0)) -> 2.1 | J8: =IF($E8="","",IFERROR(form!J8,0)) -> 4.5 | K8: =IF($E8="","",IFERROR(form!K8,0)) -> 0 | L8: =IF($C8<>"",IFERROR(form!L8,0),"") -> 14 | N8: =IF($E8="","",IFERROR(test!C7,0)) -> 15
A9: =IF(form!D9="","",IF(E9="","",D9+M9+J9)) -> 12.4 | B9: 11.87258065 | C9: =form!D9 -> 7 | D9: =IF($E9="","",IFERROR(test!C8,0)) -> 10 | E9: =IF($C9="","",IFERROR(form!E9,0)) -> ADELANTE | F9: =IF($C9="","",IFERROR(form!F9,0)) -> 513 | G9: 8 | H9: =IF($E9="","",IFERROR(form!H9,0)) -> 2.2 | I9: =IF($E9="","",IFERROR(form!I9,0)) -> 3.5 | J9: =IF($E9="","",IFERROR(form!J9,0)) -> 2.4 | K9: =IF($E9="","",IFERROR(form!K9,0)) -> 27.5 | L9: =IF($C9<>"",IFERROR(form!L9,0),"") -> 13 | N9: =IF($E9="","",IFERROR(test!C8,0)) -> 10
A10: =IF(form!D10="","",IF(E10="","",D10+M10+J10)) -> 11.2 | B10: 13.14464286 | C10: =form!D10 -> 8 | D10: =IF($E10="","",IFERROR(test!C9,0)) -> 9 | E10: =IF($C10="","",IFERROR(form!E10,0)) -> DEVIL GIRL | F10: =IF($C10="","",IFERROR(form!F10,0)) -> 177 | H10: =IF($E10="","",IFERROR(form!H10,0)) -> 3.4 | I10: =IF($E10="","",IFERROR(form!I10,0)) -> 2.6 | J10: =IF($E10="","",IFERROR(form!J10,0)) -> 2.2 | K10: =IF($E10="","",IFERROR(form!K10,0)) -> 21.5 | L10: =IF($C10<>"",IFERROR(form!L10,0),"") -> 21 | N10: =IF($E10="","",IFERROR(test!C9,0)) -> 9
A11: =IF(form!D11="","",IF(E11="","",D11+M11+J11)) -> 9.3 | B11: 15.83010753 | C11: =form!D11 -> 9 | D11: =IF($E11="","",IFERROR(test!C10,0)) -> 8 | E11: =IF($C11="","",IFERROR(form!E11,0)) -> FLOPPY | F11: =IF($C11="","",IFERROR(form!F11,0)) -> 354 | G11: 7 | H11: =IF($E11="","",IFERROR(form!H11,0)) -> 3.4 | I11: =IF($E11="","",IFERROR(form!I11,0)) -> 3.9 | J11: =IF($E11="","",IFERROR(form!J11,0)) -> 1.3 | K11: =IF($E11="","",IFERROR(form!K11,0)) -> 30 | L11: =IF($C11<>"",IFERROR(form!L11,0),"") -> 7 | N11: =IF($E11="","",IFERROR(test!C10,0)) -> 8
A12: =IF(form!D12="","",IF(E12="","",D12+M12+J12)) -> 8.3 | B12: 17.7373494 | C12: =form!D12 -> 10 | D12: =IF($E12="","",IFERROR(test!C11,0)) -> 7 | E12: =IF($C12="","",IFERROR(form!E12,0)) -> JOLLY ODD | F12: =IF($C12="","",IFERROR(form!F12,0)) -> 814 | G12: 7 | H12: =IF($E12="","",IFERROR(form!H12,0)) -> 1.9 | I12: =IF($E12="","",IFERROR(form!I12,0)) -> 2.2 | J12: =IF($E12="","",IFERROR(form!J12,0)) -> 1.3 | K12: =IF($E12="","",IFERROR(form!K12,0)) -> 22.5 | L12: =IF($C12<>"",IFERROR(form!L12,0),"") -> 13 | N12: =IF($E12="","",IFERROR(test!C11,0)) -> 7
A13: =IF(form!D13="","",IF(E13="","",D13+M13+J13)) -> 8.2 | B13: 17.95365854 | C13: =form!D13 -> 11 | D13: =IF($E13="","",IFERROR(test!C12,0)) -> 6 | E13: =IF($C13="","",IFERROR(form!E13,0)) -> working | F13: =IF($C13="","",IFERROR(form!F13,0)) -> 235 | H13: =IF($E13="","",IFERROR(form!H13,0)) -> 2 | I13: =IF($E13="","",IFERROR(form!I13,0)) -> 2 | J13: =IF($E13="","",IFERROR(form!J13,0)) -> 2.2 | K13: =IF($E13="","",IFERROR(form!K13,0)) -> 28.5 | L13: =IF($C13<>"",IFERROR(form!L13,0),"") -> 34
A14: =IF(form!D14="","",IF(E14="","",D14+M14+J14)) ->  | C14: =form!D14 -> 12 | D14: =IF($E14="","",IFERROR(test!C13,0)) ->  | F14: =IF($C14="","",IFERROR(form!F14,0)) -> 782 | G14: 9
A15: =SUM(A3:A14) -> 173.2 | B15: 0.85 | D15: =IF(ISBLANK(C15),"",CHOOSE(C15,20,19,18,17,16,15,14,13,12,11,10,9)) ->  | F15: =IF($C15="","",IFERROR(form!F15,0)) -> 
F16: =IF($C16="","",IFERROR(form!F16,0)) -> 
F17: =IF($C17="","",IFERROR(form!F17,0)) -> 
D18: FORMULA WORKS

Sheet Sheet3
F1: 342
F3: 32x | G3: =IF(MID(F3,3,1)="1", 10, IF(MID(F3,3,1)="2", 9, IF(MID(F3,3,1)="3", 8, IF(MID(F3,3,1)="x", 7, "")))) -> 7

Sheet Impact
A2: Rating | B2: Name | C2: Form Element | E2: No | H2: TR | I2: JK | J2: API | K2: LSR | L2: DLR | R2: price
A3: =IF(form!D3="","",IF(B3="","",H3*5+I3*5+J3*5+K3+F3)) -> 89.5 | B3: =IF($E3="","",IFERROR(form!E3,0)) -> VITAL GEM | C3: =IF($E3="","",IFERROR(form!F3,0)) -> 233 | D3: =IF(MID(C3,3,1)="1", 10, IF(MID(C3,3,1)="2", 9, IF(MID(C3,3,1)="3", 8, IF(MID(C3,3,1)="4", 7, "")))) -> 8 | E3: =form!C3 -> 1 | F3: =IF(E3=1,20,0+IF(E4=2,18,0+IF(E3=3,16,0+IF(E3=4,14,0+IF(E3=5,12,0+IF(E3=6,10,0+IF(E3=7,8,0+IF(E3=8,6,0)))))))) -> 20 | H3: =IF($B3="","",IFERROR(form!H3,0)) -> 2.5 | I3: =IF($B3="","",IFERROR(form!I3,0)) -> 3.4 | J3: =IF($B3="","",IFERROR(form!J3,0)) -> 1.9 | K3: =IF($B3="","",IFERROR(form!K3,0)) -> 30.5 | L3: =IF($B3="","",IFERROR(form!L3,0)) -> 14 | Q3: =IF(form!D3="","",IF(B3="","",H3+I3+J3+K3+F3)) -> 58.3 | R3: =IF(B3="","",$Q$17/Q3*85%) -> 7.157204117 | S3: =1/(Q3/$Q$17)*0.85 -> 7.157204117
A4: =IF(form!D4="","",IF(B4="","",H4*5+I4*5+J4*5+K4+F4)) -> 74.5 | B4: =IF($E4="","",IFERROR(form!E4,0)) -> ARNRAY | C4: =IF($E4="","",IFERROR(form!F4,0)) -> 0x7 | D4: =IF(MID(C4,3,1)="1", 10, IF(MID(C4,3,1)="2", 9, IF(MID(C4,3,1)="3", 8, IF(MID(C4,3,1)="4", 7, "")))) ->  | E4: =form!C4 -> 2 | F4: =IF(E4=1,20,0+IF(E4=2,18,0+IF(E4=3,16,0+IF(E4=4,14,0+IF(E4=5,12,0+IF(E4=6,10,0+IF(E4=7,8,0+IF(E4=8,6,0)))))))) -> 18 | H4: =IF($B4="","",IFERROR(form!H4,0)) -> 1.9 | I4: =IF($B4="","",IFERROR(form!I4,0)) -> 1.7 | J4: =IF($B4="","",IFERROR(form!J4,0)) -> 3.3 | K4: =IF($B4="","",IFERROR(form!K4,0)) -> 22 | L4: =IF($B4="","",IFERROR(form!L4,0)) -> 14 | Q4: =IF(form!D4="","",IF(B4="","",H4+I4+J4+K4+F4)) -> 46.9 | R4: 8.896908316 | S4: =1/(Q4/$Q$17)*0.85 -> 8.896908316
A5: =IF(form!D5="","",IF(B5="","",H5*5+I5*5+J5*5+K5+F5)) -> 86 | B5: =IF($E5="","",IFERROR(form!E5,0)) -> SUPER SALSA | C5: =IF($E5="","",IFERROR(form!F5,0)) -> 641 | D5: 10 | E5: =form!C5 -> 3 | F5: =IF(E5=1,20,0+IF(E5=2,18,0+IF(E5=3,16,0+IF(E5=4,14,0+IF(E5=5,12,0+IF(E5=6,10,0+IF(E5=7,8,0+IF(E5=8,6,0)))))))) -> 16 | H5: =IF($B5="","",IFERROR(form!H5,0)) -> 4.4 | I5: =IF($B5="","",IFERROR(form!I5,0)) -> 2.3 | J5: =IF($B5="","",IFERROR(form!J5,0)) -> 2.1 | K5: =IF($B5="","",IFERROR(form!K5,0)) -> 26 | L5: =IF($B5="","",IFERROR(form!L5,0)) -> 10 | Q5: =IF(form!D5="","",IF(B5="","",H5+I5+J5+K5+F5)) -> 50.8 | R5: 8.213877953 | S5: 8.213877953
A6: =IF(form!D6="","",IF(B6="","",H6*5+I6*5+J6*5+K6+F6)) -> 71.5 | B6: =IF($E6="","",IFERROR(form!E6,0)) -> LATHAMS WISH | C6: =IF($E6="","",IFERROR(form!F6,0)) -> x60 | E6: =form!C6 -> 4 | F6: 14 | H6: =IF($B6="","",IFERROR(form!H6,0)) -> 2.3 | I6: =IF($B6="","",IFERROR(form!I6,0)) -> 2.4 | J6: =IF($B6="","",IFERROR(form!J6,0)) -> 2.6 | K6: =IF($B6="","",IFERROR(form!K6,0)) -> 21 | L6: =IF($B6="","",IFERROR(form!L6,0)) -> 13 | Q6: =IF(form!D6="","",IF(B6="","",H6+I6+J6+K6+F6)) -> 42.3 | R6: 9.864420804 | S6: 9.864420804
A7: =IF(form!D7="","",IF(B7="","",H7*5+I7*5+J7*5+K7+F7)) -> 81.5 | B7: =IF($E7="","",IFERROR(form!E7,0)) -> I LOVE YOUR SMILE | C7: =IF($E7="","",IFERROR(form!F7,0)) -> 421 | D7: 10 | E7: =form!C7 -> 5 | F7: 12 | H7: =IF($B7="","",IFERROR(form!H7,0)) -> 1.8 | I7: =IF($B7="","",IFERROR(form!I7,0)) -> 1.7 | J7: =IF($B7="","",IFERROR(form!J7,0)) -> 4.4 | K7: =IF($B7="","",IFERROR(form!K7,0)) -> 30 | L7: =IF($B7="","",IFERROR(form!L7,0)) -> 14 | Q7: =IF(form!D7="","",IF(B7="","",H7+I7+J7+K7+F7)) -> 49.9 | R7: 8.362024048 | S7: 8.362024048
A8: =IF(form!D8="","",IF(B8="","",H8*5+I8*5+J8*5+K8+F8)) -> 54.5 | B8: =IF($E8="","",IFERROR(form!E8,0)) -> YONGA LASS | C8: =IF($E8="","",IFERROR(form!F8,0)) -> 0 | E8: =form!C8 -> 6 | F8: 10 | H8: =IF($B8="","",IFERROR(form!H8,0)) -> 2.3 | I8: =IF($B8="","",IFERROR(form!I8,0)) -> 2.1 | J8: =IF($B8="","",IFERROR(form!J8,0)) -> 4.5 | K8: =IF($B8="","",IFERROR(form!K8,0)) -> 0 | L8: =IF($B8="","",IFERROR(form!L8,0)) -> 14 | Q8: =IF(form!D8="","",IF(B8="","",H8+I8+J8+K8+F8)) -> 18.9 | R8: 22.07751323 | S8: 22.07751323
A9: =IF(form!D9="","",IF(B9="","",H9*5+I9*5+J9*5+K9+F9)) -> 76 | B9: =IF($E9="","",IFERROR(form!E9,0)) -> ADELANTE | C9: =IF($E9="","",IFERROR(form!F9,0)) -> 513 | D9: 8 | E9: =form!C9 -> 7 | F9: 8 | H9: =IF($B9="","",IFERROR(form!H9,0)) -> 2.2 | I9: =IF($B9="","",IFERROR(form!I9,0)) -> 3.5 | J9: =IF($B9="","",IFERROR(form!J9,0)) -> 2.4 | K9: =IF($B9="","",IFERROR(form!K9,0)) -> 27.5 | L9: =IF($B9="","",IFERROR(form!L9,0)) -> 13 | Q9: =IF(form!D9="","",IF(B9="","",H9+I9+J9+K9+F9)) -> 43.6 | R9: 9.570298165 | S9: 9.570298165
A10: =IF(form!D10="","",IF(B10="","",H10*5+I10*5+J10*5+K10+F10)) -> 68.5 | B10: =IF($E10="","",IFERROR(form!E10,0)) -> DEVIL GIRL | C10: =IF($E10="","",IFERROR(form!F10,0)) -> 177 | E10: =form!C10 -> 8 | F10: 6 | H10: =IF($B10="","",IFERROR(form!H10,0)) -> 3.4 | I10: =IF($B10="","",IFERROR(form!I10,0)) -> 2.6 | J10: =IF($B10="","",IFERROR(form!J10,0)) -> 2.2 | K10: =IF($B10="","",IFERROR(form!K10,0)) -> 21.5 | L10: =IF($B10="","",IFERROR(form!L10,0)) -> 21 | Q10: =IF(form!D10="","",IF(B10="","",H10+I10+J10+K10+F10)) -> 35.7 | R10: 11.68809524 | S10: 11.68809524
A11: =IF(form!D11="","",IF(B11="","",H11*5+I11*5+J11*5+K11+F11)) -> 73 | B11: =IF($E11="","",IFERROR(form!E11,0)) -> FLOPPY | E11: =form!C11 -> 9 | F11: 0 | H11: =IF($B11="","",IFERROR(form!H11,0)) -> 3.4 | I11: =IF($B11="","",IFERROR(form!I11,0)) -> 3.9 | J11: =IF($B11="","",IFERROR(form!J11,0)) -> 1.3 | K11: =IF($B11="","",IFERROR(form!K11,0)) -> 30 | L11: =IF($B11="","",IFERROR(form!L11,0)) -> 7 | Q11: =IF(form!D11="","",IF(B11="","",H11+I11+J11+K11+F11)) -> 38.6 | R11: 10.80997409 | S11: 10.80997409
A12: =IF(form!D12="","",IF(B12="","",H12*5+I12*5+J12*5+K12+F12)) -> 49.5 | B12: =IF($E12="","",IFERROR(form!E12,0)) -> JOLLY ODD | E12: =form!C12 -> 10 | F12: 0 | H12: =IF($B12="","",IFERROR(form!H12,0)) -> 1.9 | I12: =IF($B12="","",IFERROR(form!I12,0)) -> 2.2 | J12: =IF($B12="","",IFERROR(form!J12,0)) -> 1.3 | K12: =IF($B12="","",IFERROR(form!K12,0)) -> 22.5 | L12: =IF($B12="","",IFERROR(form!L12,0)) -> 13 | Q12: =IF(form!D12="","",IF(B12="","",H12+I12+J12+K12+F12)) -> 27.9 | R12: 14.95573477 | S12: 14.95573477
A13: =IF(form!D13="","",IF(B13="","",H13*5+I13*5+J13*5+K13+F13)) -> 59.5 | B13: =IF($E13="","",IFERROR(form!E13,0)) -> working | E13: =form!C13 -> 11 | F13: 0 | H13: =IF($B13="","",IFERROR(form!H13,0)) -> 2 | I13: =IF($B13="","",IFERROR(form!I13,0)) -> 2 | J13: =IF($B13="","",IFERROR(form!J13,0)) -> 2.2 | K13: =IF($B13="","",IFERROR(form!K13,0)) -> 28.5 | L13: =IF($B13="","",IFERROR(form!L13,0)) -> 34 | Q13: =IF(form!D13="","",IF(B13="","",H13+I13+J13+K13+F13)) -> 34.7 | R13: 12.02492795 | S13: 12.02492795
A14: =IF(form!D14="","",IF(B14="","",H14*5+I14*5+J14*5+K14+F14)) -> 82.5 | B14: =IF($E14="","",IFERROR(form!E14,0)) -> VISIONS OF GRACE | E14: =form!C14 -> 12 | F14: 0 | H14: =IF($B14="","",IFERROR(form!H14,0)) -> 2.3 | I14: =IF($B14="","",IFERROR(form!I14,0)) -> 4.8 | J14: =IF($B14="","",IFERROR(form!J14,0)) -> 2.7 | K14: =IF($B14="","",IFERROR(form!K14,0)) -> 33.5 | L14: =IF($B14="","",IFERROR(form!L14,0)) -> 14 | Q14: =IF(form!D14="","",IF(B14="","",H14+I14+J14+K14+F14)) -> 43.3 | R14: 9.636605081 | S14: 9.636605081
A15: =IF(form!D15="","",IF(B15="","",H15*5+I15+J15+K15+F15)) ->  | H15: =IF($B15="","",IFERROR(form!H15,0)) -> 
A16: =SUM(A3:A14) -> 866.5 | H16: =IF($B16="","",IFERROR(form!H14,0)) ->  | I16: =IF($B16="","",IFERROR(form!I14,0)) ->  | J16: =IF($B16="","",IFERROR(form!J14,0)) ->  | K16: =IF($B16="","",IFERROR(form!K14,0)) ->  | R16: =IF(B16="","",Q28/Q16*85%) -> 
I17: =IF(H17="","",0+SUBSTITUTE(H17,"kg","")) ->  | Q17: =SUM(Q3:Q14) -> 490.9
I81: =IF(H81="","",0+SUBSTITUTE(H81,"kg","")) -> 

Sheet Formbook
J1: A
A2: Rating | B2: Name | C2: Form Element | E2: No | H2: TR | I2: JK | J2: API | K2: LSR | L2: DLR | R2: price
A3: =IF(form!D3="","",IF(B3="","",H3+I3+J3+K3+F3)) -> 58.3 | B3: =IF($E3="","",IFERROR(form!E3,0)) -> VITAL GEM | C3: =IF($E3="","",IFERROR(form!F3,0)) -> 233 | E3: =form!C3 -> 1 | F3: =IF(E3=1,20,0+IF(E4=2,18,0+IF(E3=3,16,0+IF(E3=4,14,0+IF(E3=5,12,0+IF(E3=6,10,0+IF(E3=7,8,0+IF(E3=8,6,0)))))))) -> 20 | H3: =IF($B3="","",IFERROR(form!H3,0)) -> 2.5 | I3: =IF($B3="","",IFERROR(form!I3,0)) -> 3.4 | J3: =IF($B3="","",IFERROR(form!J3,0)) -> 1.9 | K3: =IF($B3="","",IFERROR(form!K3,0)) -> 30.5 | L3: =IF($B3="","",IFERROR(form!L3,0)) -> 14 | Q3: =IF(form!D3="","",IF(B3="","",H3+I3+J3+K3+F3)) -> 58.3 | R3: =IF(B3="","",$Q$17/Q3*85%) -> 7.157204117 | S3: =1/(Q3/$Q$17)*0.85 -> 7.157204117
A4: =IF(form!D4="","",IF(B4="","",H4+I4+J4+K4+F4)) -> 46.9 | B4: =IF($E4="","",IFERROR(form!E4,0)) -> ARNRAY | C4: =IF($E4="","",IFERROR(form!F4,0)) -> 0x7 | E4: =form!C4 -> 2 | F4: =IF(E4=1,20,0+IF(E4=2,18,0+IF(E4=3,16,0+IF(E4=4,14,0+IF(E4=5,12,0+IF(E4=6,10,0+IF(E4=7,8,0+IF(E4=8,6,0)))))))) -> 18 | H4: =IF($B4="","",IFERROR(form!H4,0)) -> 1.9 | I4: =IF($B4="","",IFERROR(form!I4,0)) -> 1.7 | J4: =IF($B4="","",IFERROR(form!J4,0)) -> 3.3 | K4: =IF($B4="","",IFERROR(form!K4,0)) -> 22 | L4: =IF($B4="","",IFERROR(form!L4,0)) -> 14 | Q4: =IF(form!D4="","",IF(B4="","",H4+I4+J4+K4+F4)) -> 46.9 | R4: 8.896908316 | S4: =1/(Q4/$Q$17)*0.85 -> 8.896908316
A5: =IF(form!D5="","",IF(B5="","",H5+I5+J5+K5+F5)) -> 50.8 | B5: =IF($E5="","",IFERROR(form!E5,0)) -> SUPER SALSA | C5: =IF($E5="","",IFERROR(form!F5,0)) -> 641 | E5: =form!C5 -> 3 | F5: =IF(E5=1,20,0+IF(E5=2,18,0+IF(E5=3,16,0+IF(E5=4,14,0+IF(E5=5,12,0+IF(E5=6,10,0+IF(E5=7,8,0+IF(E5=8,6,0)))))))) -> 16 | H5: =IF($B5="","",IFERROR(form!H5,0)) -> 4.4 | I5: =IF($B5="","",IFERROR(form!I5,0)) -> 2.3 | J5: =IF($B5="","",IFERROR(form!J5,0)) -> 2.1 | K5: =IF($B5="","",IFERROR(form!K5,0)) -> 26 | L5: =IF($B5="","",IFERROR(form!L5,0)) -> 10 | Q5: =IF(form!D5="","",IF(B5="","",H5+I5+J5+K5+F5)) -> 50.8 | R5: 8.213877953 | S5: 8.213877953
A6: =IF(form!D6="","",IF(B6="","",H6+I6+J6+K6+F6)) -> 42.3 | B6: =IF($E6="","",IFERROR(form!E6,0)) -> LATHAMS WISH | C6: =IF($E6="","",IFERROR(form!F6,0)) -> x60 | E6: =form!C6 -> 4 | F6: 14 | H6: =IF($B6="","",IFERROR(form!H6,0)) -> 2.3 | I6: =IF($B6="","",IFERROR(form!I6,0)) -> 2.4 | J6: =IF($B6="","",IFERROR(form!J6,0)) -> 2.6 | K6: =IF($B6="","",IFERROR(form!K6,0)) -> 21 | L6: =IF($B6="","",IFERROR(form!L6,0)) -> 13 | Q6: =IF(form!D6="","",IF(B6="","",H6+I6+J6+K6+F6)) -> 42.3 | R6: 9.864420804 | S6: 9.864420804
A7: =IF(form!D7="","",IF(B7="","",H7+I7+J7+K7+F7)) -> 49.9 | B7: =IF($E7="","",IFERROR(form!E7,0)) -> I LOVE YOUR SMILE | C7: =IF($E7="","",IFERROR(form!F7,0)) -> 421 | E7: =form!C7 -> 5 | F7: 12 | H7: =IF($B7="","",IFERROR(form!H7,0)) -> 1.8 | I7: =IF($B7="","",IFERROR(form!I7,0)) -> 1.7 | J7: =IF($B7="","",IFERROR(form!J7,0)) -> 4.4 | K7: =IF($B7="","",IFERROR(form!K7,0)) -> 30 | L7: =IF($B7="","",IFERROR(form!L7,0)) -> 14 | Q7: =IF(form!D7="","",IF(B7="","",H7+I7+J7+K7+F7)) -> 49.9 | R7: 8.362024048 | S7: 8.362024048
A8: =IF(form!D8="","",IF(B8="","",H8+I8+J8+K8+F8)) -> 18.9 | B8: =IF($E8="","",IFERROR(form!E8,0)) -> YONGA LASS | C8: =IF($E8="","",IFERROR(form!F8,0)) -> 0 | E8: =form!C8 -> 6 | F8: 10 | H8: =IF($B8="","",IFERROR(form!H8,0)) -> 2.3 | I8: =IF($B8="","",IFERROR(form!I8,0)) -> 2.1 | J8: =IF($B8="","",IFERROR(form!J8,0)) -> 4.5 | K8: =IF($B8="","",IFERROR(form!K8,0)) -> 0 | L8: =IF($B8="","",IFERROR(form!L8,0)) -> 14 | Q8: =IF(form!D8="","",IF(B8="","",H8+I8+J8+K8+F8)) -> 18.9 | R8: 22.07751323 | S8: 22.07751323
A9: =IF(form!D9="","",IF(B9="","",H9+I9+J9+K9+F9)) -> 43.6 | B9: =IF($E9="","",IFERROR(form!E9,0)) -> ADELANTE | C9: =IF($E9="","",IFERROR(form!F9,0)) -> 513 | E9: =form!C9 -> 7 | F9: 8 | H9: =IF($B9="","",IFERROR(form!H9,0)) -> 2.2 | I9: =IF($B9="","",IFERROR(form!I9,0)) -> 3.5 | J9: =IF($B9="","",IFERROR(form!J9,0)) -> 2.4 | K9: =IF($B9="","",IFERROR(form!K9,0)) -> 27.5 | L9: =IF($B9="","",IFERROR(form!L9,0)) -> 13 | Q9: =IF(form!D9="","",IF(B9="","",H9+I9+J9+K9+F9)) -> 43.6 | R9: 9.570298165 | S9: 9.570298165
A10: =IF(form!D10="","",IF(B10="","",H10+I10+J10+K10+F10)) -> 35.7 | B10: =IF($E10="","",IFERROR(form!E10,0)) -> DEVIL GIRL | C10: =IF($E10="","",IFERROR(form!F10,0)) -> 177 | E10: =form!C10 -> 8 | F10: 6 | H10: =IF($B10="","",IFERROR(form!H10,0)) -> 3.4 | I10: =IF($B10="","",IFERROR(form!I10,0)) -> 2.6 | J10: =IF($B10="","",IFERROR(form!J10,0)) -> 2.2 | K10: =IF($B10="","",IFERROR(form!K10,0)) -> 21.5 | L10: =IF($B10="","",IFERROR(form!L10,0)) -> 21 | Q10: =IF(form!D10="","",IF(B10="","",H10+I10+J10+K10+F10)) -> 35.7 | R10: 11.68809524 | S10: 11.68809524
A11: =IF(form!D11="","",IF(B11="","",H11+I11+J11+K11+F11)) -> 38.6 | B11: =IF($E11="","",IFERROR(form!E11,0)) -> FLOPPY | E11: =form!C11 -> 9 | F11: 0 | H11: =IF($B11="","",IFERROR(form!H11,0)) -> 3.4 | I11: =IF($B11="","",IFERROR(form!I11,0)) -> 3.9 | J11: =IF($B11="","",IFERROR(form!J11,0)) -> 1.3 | K11: =IF($B11="","",IFERROR(form!K11,0)) -> 30 | L11: =IF($B11="","",IFERROR(form!L11,0)) -> 7 | Q11: =IF(form!D11="","",IF(B11="","",H11+I11+J11+K11+F11)) -> 38.6 | R11: 10.80997409 | S11: 10.80997409
A12: =IF(form!D12="","",IF(B12="","",H12+I12+J12+K12+F12)) -> 27.9 | B12: =IF($E12="","",IFERROR(form!E12,0)) -> JOLLY ODD | E12: =form!C12 -> 10 | F12: 0 | H12: =IF($B12="","",IFERROR(form!H12,0)) -> 1.9 | I12: =IF($B12="","",IFERROR(form!I12,0)) -> 2.2 | J12: =IF($B12="","",IFERROR(form!J12,0)) -> 1.3 | K12: =IF($B12="","",IFERROR(form!K12,0)) -> 22.5 | L12: =IF($B12="","",IFERROR(form!L12,0)) -> 13 | Q12: =IF(form!D12="","",IF(B12="","",H12+I12+J12+K12+F12)) -> 27.9 | R12: 14.95573477 | S12: 14.95573477
A13: =IF(form!D13="","",IF(B13="","",H13+I13+J13+K13+F13)) -> 34.7 | B13: =IF($E13="","",IFERROR(form!E13,0)) -> working | E13: =form!C13 -> 11 | F13: 0 | H13: =IF($B13="","",IFERROR(form!H13,0)) -> 2 | I13: =IF($B13="","",IFERROR(form!I13,0)) -> 2 | J13: =IF($B13="","",IFERROR(form!J13,0)) -> 2.2 | K13: =IF($B13="","",IFERROR(form!K13,0)) -> 28.5 | L13: =IF($B13="","",IFERROR(form!L13,0)) -> 34 | Q13: =IF(form!D13="","",IF(B13="","",H13+I13+J13+K13+F13)) -> 34.7 | R13: 12.02492795 | S13: 12.02492795
A14: =IF(form!D14="","",IF(B14="","",H14+I14+J14+K14+F14)) -> 43.3 | B14: =IF($E14="","",IFERROR(form!E14,0)) -> VISIONS OF GRACE | E14: =form!C14 -> 12 | F14: 0 | H14: =IF($B14="","",IFERROR(form!H14,0)) -> 2.3 | I14: =IF($B14="","",IFERROR(form!I14,0)) -> 4.8 | J14: =IF($B14="","",IFERROR(form!J14,0)) -> 2.7 | K14: =IF($B14="","",IFERROR(form!K14,0)) -> 33.5 | L14: =IF($B14="","",IFERROR(form!L14,0)) -> 14 | Q14: =IF(form!D14="","",IF(B14="","",H14+I14+J14+K14+F14)) -> 43.3 | R14: 9.636605081 | S14: 9.636605081
A16: =SUM(A3:A14) -> 490.9 | H16: =IF($B16="","",IFERROR(form!H14,0)) ->  | I16: =IF($B16="","",IFERROR(form!I14,0)) ->  | J16: =IF($B16="","",IFERROR(form!J14,0)) ->  | K16: =IF($B16="","",IFERROR(form!K14,0)) ->  | R16: =IF(B16="","",Q28/Q16*85%) -> 
I17: =IF(H17="","",0+SUBSTITUTE(H17,"kg","")) ->  | Q17: =SUM(Q3:Q14) -> 490.9
I81: =IF(H81="","",0+SUBSTITUTE(H81,"kg","")) -> 

Sheet class
A2: Rating | B2: Name | C2: Form Element | E2: No | H2: TR | I2: JK | J2: API | K2: LSR | L2: DLR | R2: price
A3: =IF(form!D3="","",IF(B3="","",H3+I3+J3+K3+F3)) -> 58.3 | B3: =IF($E3="","",IFERROR(form!E3,0)) -> VITAL GEM | C3: =IF($E3="","",IFERROR(form!F3,0)) -> 233 | E3: =form!C3 -> 1 | F3: =IF(E3=1,20,0+IF(E4=2,18,0+IF(E3=3,16,0+IF(E3=4,14,0+IF(E3=5,12,0+IF(E3=6,10,0+IF(E3=7,8,0+IF(E3=8,6,0)))))))) -> 20 | H3: =IF($B3="","",IFERROR(form!H3,0)) -> 2.5 | I3: =IF($B3="","",IFERROR(form!I3,0)) -> 3.4 | J3: =IF($B3="","",IFERROR(form!J3,0)) -> 1.9 | K3: =IF($B3="","",IFERROR(form!K3,0)) -> 30.5 | L3: =IF($B3="","",IFERROR(form!L3,0)) -> 14 | Q3: =IF(form!D3="","",IF(B3="","",H3+I3+J3+K3+F3)) -> 58.3 | R3: =IF(B3="","",$Q$17/Q3*85%) -> 7.157204117 | S3: =1/(Q3/$Q$17)*0.85 -> 7.157204117
A4: =IF(form!D4="","",IF(B4="","",H4+I4+J4+K4+F4)) -> 46.9 | B4: =IF($E4="","",IFERROR(form!E4,0)) -> ARNRAY | C4: =IF($E4="","",IFERROR(form!F4,0)) -> 0x7 | E4: =form!C4 -> 2 | F4: =IF(E4=1,20,0+IF(E4=2,18,0+IF(E4=3,16,0+IF(E4=4,14,0+IF(E4=5,12,0+IF(E4=6,10,0+IF(E4=7,8,0+IF(E4=8,6,0)))))))) -> 18 | H4: =IF($B4="","",IFERROR(form!H4,0)) -> 1.9 | I4: =IF($B4="","",IFERROR(form!I4,0)) -> 1.7 | J4: =IF($B4="","",IFERROR(form!J4,0)) -> 3.3 | K4: =IF($B4="","",IFERROR(form!K4,0)) -> 22 | L4: =IF($B4="","",IFERROR(form!L4,0)) -> 14 | Q4: =IF(form!D4="","",IF(B4="","",H4+I4+J4+K4+F4)) -> 46.9 | R4: 8.896908316 | S4: =1/(Q4/$Q$17)*0.85 -> 8.896908316
A5: =IF(form!D5="","",IF(B5="","",H5+I5+J5+K5+F5)) -> 50.8 | B5: =IF($E5="","",IFERROR(form!E5,0)) -> SUPER SALSA | C5: =IF($E5="","",IFERROR(form!F5,0)) -> 641 | E5: =form!C5 -> 3 | F5: =IF(E5=1,20,0+IF(E5=2,18,0+IF(E5=3,16,0+IF(E5=4,14,0+IF(E5=5,12,0+IF(E5=6,10,0+IF(E5=7,8,0+IF(E5=8,6,0)))))))) -> 16 | H5: =IF($B5="","",IFERROR(form!H5,0)) -> 4.4 | I5: =IF($B5="","",IFERROR(form!I5,0)) -> 2.3 | J5: =IF($B5="","",IFERROR(form!J5,0)) -> 2.1 | K5: =IF($B5="","",IFERROR(form!K5,0)) -> 26 | L5: =IF($B5="","",IFERROR(form!L5,0)) -> 10 | Q5: =IF(form!D5="","",IF(B5="","",H5+I5+J5+K5+F5)) -> 50.8 | R5: 8.213877953 | S5: 8.213877953
A6: =IF(form!D6="","",IF(B6="","",H6+I6+J6+K6+F6)) -> 42.3 | B6: =IF($E6="","",IFERROR(form!E6,0)) -> LATHAMS WISH | C6: =IF($E6="","",IFERROR(form!F6,0)) -> x60 | E6: =form!C6 -> 4 | F6: 14 | H6: =IF($B6="","",IFERROR(form!H6,0)) -> 2.3 | I6: =IF($B6="","",IFERROR(form!I6,0)) -> 2.4 | J6: =IF($B6="","",IFERROR(form!J6,0)) -> 2.6 | K6: =IF($B6="","",IFERROR(form!K6,0)) -> 21 | L6: =IF($B6="","",IFERROR(form!L6,0)) -> 13 | Q6: =IF(form!D6="","",IF(B6="","",H6+I6+J6+K6+F6)) -> 42.3 | R6: 9.864420804 | S6: 9.864420804
A7: =IF(form!D7="","",IF(B7="","",H7+I7+J7+K7+F7)) -> 49.9 | B7: =IF($E7="","",IFERROR(form!E7,0)) -> I LOVE YOUR SMILE | C7: =IF($E7="","",IFERROR(form!F7,0)) -> 421 | E7: =form!C7 -> 5 | F7: 12 | H7: =IF($B7="","",IFERROR(form!H7,0)) -> 1.8 | I7: =IF($B7="","",IFERROR(form!I7,0)) -> 1.7 | J7: =IF($B7="","",IFERROR(form!J7,0)) -> 4.4 | K7: =IF($B7="","",IFERROR(form!K7,0)) -> 30 | L7: =IF($B7="","",IFERROR(form!L7,0)) -> 14 | Q7: =IF(form!D7="","",IF(B7="","",H7+I7+J7+K7+F7)) -> 49.9 | R7: 8.362024048 | S7: 8.362024048
A8: =IF(form!D8="","",IF(B8="","",H8+I8+J8+K8+F8)) -> 18.9 | B8: =IF($E8="","",IFERROR(form!E8,0)) -> YONGA LASS | C8: =IF($E8="","",IFERROR(form!F8,0)) -> 0 | E8: =form!C8 -> 6 | F8: 10 | H8: =IF($B8="","",IFERROR(form!H8,0)) -> 2.3 | I8: =IF($B8="","",IFERROR(form!I8,0)) -> 2.1 | J8: =IF($B8="","",IFERROR(form!J8,0)) -> 4.5 | K8: =IF($B8="","",IFERROR(form!K8,0)) -> 0 | L8: =IF($B8="","",IFERROR(form!L8,0)) -> 14 | Q8: =IF(form!D8="","",IF(B8="","",H8+I8+J8+K8+F8)) -> 18.9 | R8: 22.07751323 | S8: 22.07751323
A9: =IF(form!D9="","",IF(B9="","",H9+I9+J9+K9+F9)) -> 43.6 | B9: =IF($E9="","",IFERROR(form!E9,0)) -> ADELANTE | C9: =IF($E9="","",IFERROR(form!F9,0)) -> 513 | E9: =form!C9 -> 7 | F9: 8 | H9: =IF($B9="","",IFERROR(form!H9,0)) -> 2.2 | I9: =IF($B9="","",IFERROR(form!I9,0)) -> 3.5 | J9: =IF($B9="","",IFERROR(form!J9,0)) -> 2.4 | K9: =IF($B9="","",IFERROR(form!K9,0)) -> 27.5 | L9: =IF($B9="","",IFERROR(form!L9,0)) -> 13 | Q9: =IF(form!D9="","",IF(B9="","",H9+I9+J9+K9+F9)) -> 43.6 | R9: 9.570298165 | S9: 9.570298165
A10: =IF(form!D10="","",IF(B10="","",H10+I10+J10+K10+F10)) -> 35.7 | B10: =IF($E10="","",IFERROR(form!E10,0)) -> DEVIL GIRL | C10: =IF($E10="","",IFERROR(form!F10,0)) -> 177 | E10: =form!C10 -> 8 | F10: 6 | H10: =IF($B10="","",IFERROR(form!H10,0)) -> 3.4 | I10: =IF($B10="","",IFERROR(form!I10,0)) -> 2.6 | J10: =IF($B10="","",IFERROR(form!J10,0)) -> 2.2 | K10: =IF($B10="","",IFERROR(form!K10,0)) -> 21.5 | L10: =IF($B10="","",IFERROR(form!L10,0)) -> 21 | Q10: =IF(form!D10="","",IF(B10="","",H10+I10+J10+K10+F10)) -> 35.7 | R10: 11.68809524 | S10: 11.68809524
A11: =IF(form!D11="","",IF(B11="","",H11+I11+J11+K11+F11)) -> 38.6 | B11: =IF($E11="","",IFERROR(form!E11,0)) -> FLOPPY | E11: =form!C11 -> 9 | F11: 0 | H11: =IF($B11="","",IFERROR(form!H11,0)) -> 3.4 | I11: =IF($B11="","",IFERROR(form!I11,0)) -> 3.9 | J11: =IF($B11="","",IFERROR(form!J11,0)) -> 1.3 | K11: =IF($B11="","",IFERROR(form!K11,0)) -> 30 | L11: =IF($B11="","",IFERROR(form!L11,0)) -> 7 | Q11: =IF(form!D11="","",IF(B11="","",H11+I11+J11+K11+F11)) -> 38.6 | R11: 10.80997409 | S11: 10.80997409
A12: =IF(form!D12="","",IF(B12="","",H12+I12+J12+K12+F12)) -> 27.9 | B12: =IF($E12="","",IFERROR(form!E12,0)) -> JOLLY ODD | E12: =form!C12 -> 10 | F12: 0 | H12: =IF($B12="","",IFERROR(form!H12,0)) -> 1.9 | I12: =IF($B12="","",IFERROR(form!I12,0)) -> 2.2 | J12: =IF($B12="","",IFERROR(form!J12,0)) -> 1.3 | K12: =IF($B12="","",IFERROR(form!K12,0)) -> 22.5 | L12: =IF($B12="","",IFERROR(form!L12,0)) -> 13 | Q12: =IF(form!D12="","",IF(B12="","",H12+I12+J12+K12+F12)) -> 27.9 | R12: 14.95573477 | S12: 14.95573477
A13: =IF(form!D13="","",IF(B13="","",H13+I13+J13+K13+F13)) -> 34.7 | B13: =IF($E13="","",IFERROR(form!E13,0)) -> working | E13: =form!C13 -> 11 | F13: 0 | H13: =IF($B13="","",IFERROR(form!H13,0)) -> 2 | I13: =IF($B13="","",IFERROR(form!I13,0)) -> 2 | J13: =IF($B13="","",IFERROR(form!J13,0)) -> 2.2 | K13: =IF($B13="","",IFERROR(form!K13,0)) -> 28.5 | L13: =IF($B13="","",IFERROR(form!L13,0)) -> 34 | Q13: =IF(form!D13="","",IF(B13="","",H13+I13+J13+K13+F13)) -> 34.7 | R13: 12.02492795 | S13: 12.02492795
A14: =IF(form!D14="","",IF(B14="","",H14+I14+J14+K14+F14)) -> 43.3 | B14: =IF($E14="","",IFERROR(form!E14,0)) -> VISIONS OF GRACE | E14: =form!C14 -> 12 | F14: 0 | H14: =IF($B14="","",IFERROR(form!H14,0)) -> 2.3 | I14: =IF($B14="","",IFERROR(form!I14,0)) -> 4.8 | J14: =IF($B14="","",IFERROR(form!J14,0)) -> 2.7 | K14: =IF($B14="","",IFERROR(form!K14,0)) -> 33.5 | L14: =IF($B14="","",IFERROR(form!L14,0)) -> 14 | Q14: =IF(form!D14="","",IF(B14="","",H14+I14+J14+K14+F14)) -> 43.3 | R14: 9.636605081 | S14: 9.636605081
A16: =SUM(A3:A14) -> 490.9 | H16: =IF($B16="","",IFERROR(form!H14,0)) ->  | I16: =IF($B16="","",IFERROR(form!I14,0)) ->  | J16: =IF($B16="","",IFERROR(form!J14,0)) ->  | K16: =IF($B16="","",IFERROR(form!K14,0)) ->  | R16: =IF(B16="","",Q28/Q16*85%) -> 
I17: =IF(H17="","",0+SUBSTITUTE(H17,"kg","")) ->  | Q17: =SUM(Q3:Q14) -> 490.9
I81: =IF(H81="","",0+SUBSTITUTE(H81,"kg","")) -> 

Sheet Tops
A2: Rating | B2: Name | C2: Form Element | E2: No | H2: TR | I2: JK | J2: API | K2: LSR | L2: DLR | R2: price
A3: =IF(form!D3="","",IF(B3="","",H3+I3+J3+K3+F3)) -> 58.3 | B3: =IF($E3="","",IFERROR(form!E3,0)) -> VITAL GEM | C3: =IF($E3="","",IFERROR(form!F3,0)) -> 233 | E3: =form!C3 -> 1 | F3: =IF(E3=1,20,0+IF(E4=2,18,0+IF(E3=3,16,0+IF(E3=4,14,0+IF(E3=5,12,0+IF(E3=6,10,0+IF(E3=7,8,0+IF(E3=8,6,0)))))))) -> 20 | H3: =IF($B3="","",IFERROR(form!H3,0)) -> 2.5 | I3: =IF($B3="","",IFERROR(form!I3,0)) -> 3.4 | J3: =IF($B3="","",IFERROR(form!J3,0)) -> 1.9 | K3: =IF($B3="","",IFERROR(form!K3,0)) -> 30.5 | L3: =IF($B3="","",IFERROR(form!L3,0)) -> 14 | Q3: =IF(form!D3="","",IF(B3="","",H3+I3+J3+K3+F3)) -> 58.3 | R3: =IF(B3="","",$Q$17/Q3*85%) -> 7.157204117 | S3: =1/(Q3/$Q$17)*0.85 -> 7.157204117
A4: =IF(form!D4="","",IF(B4="","",H4+I4+J4+K4+F4)) -> 46.9 | B4: =IF($E4="","",IFERROR(form!E4,0)) -> ARNRAY | C4: =IF($E4="","",IFERROR(form!F4,0)) -> 0x7 | E4: =form!C4 -> 2 | F4: =IF(E4=1,20,0+IF(E4=2,18,0+IF(E4=3,16,0+IF(E4=4,14,0+IF(E4=5,12,0+IF(E4=6,10,0+IF(E4=7,8,0+IF(E4=8,6,0)))))))) -> 18 | H4: =IF($B4="","",IFERROR(form!H4,0)) -> 1.9 | I4: =IF($B4="","",IFERROR(form!I4,0)) -> 1.7 | J4: =IF($B4="","",IFERROR(form!J4,0)) -> 3.3 | K4: =IF($B4="","",IFERROR(form!K4,0)) -> 22 | L4: =IF($B4="","",IFERROR(form!L4,0)) -> 14 | Q4: =IF(form!D4="","",IF(B4="","",H4+I4+J4+K4+F4)) -> 46.9 | R4: 8.896908316 | S4: =1/(Q4/$Q$17)*0.85 -> 8.896908316
A5: =IF(form!D5="","",IF(B5="","",H5+I5+J5+K5+F5)) -> 50.8 | B5: =IF($E5="","",IFERROR(form!E5,0)) -> SUPER SALSA | C5: =IF($E5="","",IFERROR(form!F5,0)) -> 641 | E5: =form!C5 -> 3 | F5: =IF(E5=1,20,0+IF(E5=2,18,0+IF(E5=3,16,0+IF(E5=4,14,0+IF(E5=5,12,0+IF(E5=6,10,0+IF(E5=7,8,0+IF(E5=8,6,0)))))))) -> 16 | H5: =IF($B5="","",IFERROR(form!H5,0)) -> 4.4 | I5: =IF($B5="","",IFERROR(form!I5,0)) -> 2.3 | J5: =IF($B5="","",IFERROR(form!J5,0)) -> 2.1 | K5: =IF($B5="","",IFERROR(form!K5,0)) -> 26 | L5: =IF($B5="","",IFERROR(form!L5,0)) -> 10 | Q5: =IF(form!D5="","",IF(B5="","",H5+I5+J5+K5+F5)) -> 50.8 | R5: 8.213877953 | S5: 8.213877953
A6: =IF(form!D6="","",IF(B6="","",H6+I6+J6+K6+F6)) -> 42.3 | B6: =IF($E6="","",IFERROR(form!E6,0)) -> LATHAMS WISH | C6: =IF($E6="","",IFERROR(form!F6,0)) -> x60 | E6: =form!C6 -> 4 | F6: 14 | H6: =IF($B6="","",IFERROR(form!H6,0)) -> 2.3 | I6: =IF($B6="","",IFERROR(form!I6,0)) -> 2.4 | J6: =IF($B6="","",IFERROR(form!J6,0)) -> 2.6 | K6: =IF($B6="","",IFERROR(form!K6,0)) -> 21 | L6: =IF($B6="","",IFERROR(form!L6,0)) -> 13 | Q6: =IF(form!D6="","",IF(B6="","",H6+I6+J6+K6+F6)) -> 42.3 | R6: 9.864420804 | S6: 9.864420804
A7: =IF(form!D7="","",IF(B7="","",H7+I7+J7+K7+F7)) -> 49.9 | B7: =IF($E7="","",IFERROR(form!E7,0)) -> I LOVE YOUR SMILE | C7: =IF($E7="","",IFERROR(form!F7,0)) -> 421 | E7: =form!C7 -> 5 | F7: 12 | H7: =IF($B7="","",IFERROR(form!H7,0)) -> 1.8 | I7: =IF($B7="","",IFERROR(form!I7,0)) -> 1.7 | J7: =IF($B7="","",IFERROR(form!J7,0)) -> 4.4 | K7: =IF($B7="","",IFERROR(form!K7,0)) -> 30 | L7: =IF($B7="","",IFERROR(form!L7,0)) -> 14 | Q7: =IF(form!D7="","",IF(B7="","",H7+I7+J7+K7+F7)) -> 49.9 | R7: 8.362024048 | S7: 8.362024048
A8: =IF(form!D8="","",IF(B8="","",H8+I8+J8+K8+F8)) -> 18.9 | B8: =IF($E8="","",IFERROR(form!E8,0)) -> YONGA LASS | C8: =IF($E8="","",IFERROR(form!F8,0)) -> 0 | E8: =form!C8 -> 6 | F8: 10 | H8: =IF($B8="","",IFERROR(form!H8,0)) -> 2.3 | I8: =IF($B8="","",IFERROR(form!I8,0)) -> 2.1 | J8: =IF($B8="","",IFERROR(form!J8,0)) -> 4.5 | K8: =IF($B8="","",IFERROR(form!K8,0)) -> 0 | L8: =IF($B8="","",IFERROR(form!L8,0)) -> 14 | Q8: =IF(form!D8="","",IF(B8="","",H8+I8+J8+K8+F8)) -> 18.9 | R8: 22.07751323 | S8: 22.07751323
A9: =IF(form!D9="","",IF(B9="","",H9+I9+J9+K9+F9)) -> 43.6 | B9: =IF($E9="","",IFERROR(form!E9,0)) -> ADELANTE | C9: =IF($E9="","",IFERROR(form!F9,0)) -> 513 | E9: =form!C9 -> 7 | F9: 8 | H9: =IF($B9="","",IFERROR(form!H9,0)) -> 2.2 | I9: =IF($B9="","",IFERROR(form!I9,0)) -> 3.5 | J9: =IF($B9="","",IFERROR(form!J9,0)) -> 2.4 | K9: =IF($B9="","",IFERROR(form!K9,0)) -> 27.5 | L9: =IF($B9="","",IFERROR(form!L9,0)) -> 13 | Q9: =IF(form!D9="","",IF(B9="","",H9+I9+J9+K9+F9)) -> 43.6 | R9: 9.570298165 | S9: 9.570298165
A10: =IF(form!D10="","",IF(B10="","",H10+I10+J10+K10+F10)) -> 35.7 | B10: =IF($E10="","",IFERROR(form!E10,0)) -> DEVIL GIRL | C10: =IF($E10="","",IFERROR(form!F10,0)) -> 177 | E10: =form!C10 -> 8 | F10: 6 | H10: =IF($B10="","",IFERROR(form!H10,0)) -> 3.4 | I10: =IF($B10="","",IFERROR(form!I10,0)) -> 2.6 | J10: =IF($B10="","",IFERROR(form!J10,0)) -> 2.2 | K10: =IF($B10="","",IFERROR(form!K10,0)) -> 21.5 | L10: =IF($B10="","",IFERROR(form!L10,0)) -> 21 | Q10: =IF(form!D10="","",IF(B10="","",H10+I10+J10+K10+F10)) -> 35.7 | R10: 11.68809524 | S10: 11.68809524
A11: =IF(form!D11="","",IF(B11="","",H11+I11+J11+K11+F11)) -> 38.6 | B11: =IF($E11="","",IFERROR(form!E11,0)) -> FLOPPY | E11: =form!C11 -> 9 | F11: 0 | H11: =IF($B11="","",IFERROR(form!H11,0)) -> 3.4 | I11: =IF($B11="","",IFERROR(form!I11,0)) -> 3.9 | J11: =IF($B11="","",IFERROR(form!J11,0)) -> 1.3 | K11: =IF($B11="","",IFERROR(form!K11,0)) -> 30 | L11: =IF($B11="","",IFERROR(form!L11,0)) -> 7 | Q11: =IF(form!D11="","",IF(B11="","",H11+I11+J11+K11+F11)) -> 38.6 | R11: 10.80997409 | S11: 10.80997409
A12: =IF(form!D12="","",IF(B12="","",H12+I12+J12+K12+F12)) -> 27.9 | B12: =IF($E12="","",IFERROR(form!E12,0)) -> JOLLY ODD | E12: =form!C12 -> 10 | F12: 0 | H12: =IF($B12="","",IFERROR(form!H12,0)) -> 1.9 | I12: =IF($B12="","",IFERROR(form!I12,0)) -> 2.2 | J12: =IF($B12="","",IFERROR(form!J12,0)) -> 1.3 | K12: =IF($B12="","",IFERROR(form!K12,0)) -> 22.5 | L12: =IF($B12="","",IFERROR(form!L12,0)) -> 13 | Q12: =IF(form!D12="","",IF(B12="","",H12+I12+J12+K12+F12)) -> 27.9 | R12: 14.95573477 | S12: 14.95573477
A13: =IF(form!D13="","",IF(B13="","",H13+I13+J13+K13+F13)) -> 34.7 | B13: =IF($E13="","",IFERROR(form!E13,0)) -> working | E13: =form!C13 -> 11 | F13: 0 | H13: =IF($B13="","",IFERROR(form!H13,0)) -> 2 | I13: =IF($B13="","",IFERROR(form!I13,0)) -> 2 | J13: =IF($B13="","",IFERROR(form!J13,0)) -> 2.2 | K13: =IF($B13="","",IFERROR(form!K13,0)) -> 28.5 | L13: =IF($B13="","",IFERROR(form!L13,0)) -> 34 | Q13: =IF(form!D13="","",IF(B13="","",H13+I13+J13+K13+F13)) -> 34.7 | R13: 12.02492795 | S13: 12.02492795
A14: =IF(form!D14="","",IF(B14="","",H14+I14+J14+K14+F14)) -> 43.3 | B14: =IF($E14="","",IFERROR(form!E14,0)) -> VISIONS OF GRACE | E14: =form!C14 -> 12 | F14: 0 | H14: =IF($B14="","",IFERROR(form!H14,0)) -> 2.3 | I14: =IF($B14="","",IFERROR(form!I14,0)) -> 4.8 | J14: =IF($B14="","",IFERROR(form!J14,0)) -> 2.7 | K14: =IF($B14="","",IFERROR(form!K14,0)) -> 33.5 | L14: =IF($B14="","",IFERROR(form!L14,0)) -> 14 | Q14: =IF(form!D14="","",IF(B14="","",H14+I14+J14+K14+F14)) -> 43.3 | R14: 9.636605081 | S14: 9.636605081
A16: =SUM(A3:A14) -> 490.9 | H16: =IF($B16="","",IFERROR(form!H14,0)) ->  | I16: =IF($B16="","",IFERROR(form!I14,0)) ->  | J16: =IF($B16="","",IFERROR(form!J14,0)) ->  | K16: =IF($B16="","",IFERROR(form!K14,0)) ->  | R16: =IF(B16="","",Q28/Q16*85%) -> 
I17: =IF(H17="","",0+SUBSTITUTE(H17,"kg","")) ->  | Q17: =SUM(Q3:Q14) -> 490.9
I81: =IF(H81="","",0+SUBSTITUTE(H81,"kg","")) -> 

Sheet Nines
A2: Rating | B2: Name | C2: Form Element | E2: No | H2: TR | I2: JK | J2: API | K2: LSR | L2: DLR | R2: price
A3: =IF(form!D3="","",IF(B3="","",H3+I3+J3+K3+F3)) -> 58.3 | B3: =IF($E3="","",IFERROR(form!E3,0)) -> VITAL GEM | C3: =IF($E3="","",IFERROR(form!F3,0)) -> 233 | E3: =form!C3 -> 1 | F3: =IF(E3=1,20,0+IF(E4=2,18,0+IF(E3=3,16,0+IF(E3=4,14,0+IF(E3=5,12,0+IF(E3=6,10,0+IF(E3=7,8,0+IF(E3=8,6,0)))))))) -> 20 | H3: =IF($B3="","",IFERROR(form!H3,0)) -> 2.5 | I3: =IF($B3="","",IFERROR(form!I3,0)) -> 3.4 | J3: =IF($B3="","",IFERROR(form!J3,0)) -> 1.9 | K3: =IF($B3="","",IFERROR(form!K3,0)) -> 30.5 | L3: =IF($B3="","",IFERROR(form!L3,0)) -> 14 | Q3: =IF(form!D3="","",IF(B3="","",H3+I3+J3+K3+F3)) -> 58.3 | R3: =IF(B3="","",$Q$17/Q3*85%) -> 7.157204117 | S3: =1/(Q3/$Q$17)*0.85 -> 7.157204117
A4: =IF(form!D4="","",IF(B4="","",H4+I4+J4+K4+F4)) -> 46.9 | B4: =IF($E4="","",IFERROR(form!E4,0)) -> ARNRAY | C4: =IF($E4="","",IFERROR(form!F4,0)) -> 0x7 | E4: =form!C4 -> 2 | F4: =IF(E4=1,20,0+IF(E4=2,18,0+IF(E4=3,16,0+IF(E4=4,14,0+IF(E4=5,12,0+IF(E4=6,10,0+IF(E4=7,8,0+IF(E4=8,6,0)))))))) -> 18 | H4: =IF($B4="","",IFERROR(form!H4,0)) -> 1.9 | I4: =IF($B4="","",IFERROR(form!I4,0)) -> 1.7 | J4: =IF($B4="","",IFERROR(form!J4,0)) -> 3.3 | K4: =IF($B4="","",IFERROR(form!K4,0)) -> 22 | L4: =IF($B4="","",IFERROR(form!L4,0)) -> 14 | Q4: =IF(form!D4="","",IF(B4="","",H4+I4+J4+K4+F4)) -> 46.9 | R4: 8.896908316 | S4: =1/(Q4/$Q$17)*0.85 -> 8.896908316
A5: =IF(form!D5="","",IF(B5="","",H5+I5+J5+K5+F5)) -> 50.8 | B5: =IF($E5="","",IFERROR(form!E5,0)) -> SUPER SALSA | C5: =IF($E5="","",IFERROR(form!F5,0)) -> 641 | E5: =form!C5 -> 3 | F5: =IF(E5=1,20,0+IF(E5=2,18,0+IF(E5=3,16,0+IF(E5=4,14,0+IF(E5=5,12,0+IF(E5=6,10,0+IF(E5=7,8,0+IF(E5=8,6,0)))))))) -> 16 | H5: =IF($B5="","",IFERROR(form!H5,0)) -> 4.4 | I5: =IF($B5="","",IFERROR(form!I5,0)) -> 2.3 | J5: =IF($B5="","",IFERROR(form!J5,0)) -> 2.1 | K5: =IF($B5="","",IFERROR(form!K5,0)) -> 26 | L5: =IF($B5="","",IFERROR(form!L5,0)) -> 10 | Q5: =IF(form!D5="","",IF(B5="","",H5+I5+J5+K5+F5)) -> 50.8 | R5: 8.213877953 | S5: 8.213877953
A6: =IF(form!D6="","",IF(B6="","",H6+I6+J6+K6+F6)) -> 42.3 | B6: =IF($E6="","",IFERROR(form!E6,0)) -> LATHAMS WISH | C6: =IF($E6="","",IFERROR(form!F6,0)) -> x60 | E6: =form!C6 -> 4 | F6: 14 | H6: =IF($B6="","",IFERROR(form!H6,0)) -> 2.3 | I6: =IF($B6="","",IFERROR(form!I6,0)) -> 2.4 | J6: =IF($B6="","",IFERROR(form!J6,0)) -> 2.6 | K6: =IF($B6="","",IFERROR(form!K6,0)) -> 21 | L6: =IF($B6="","",IFERROR(form!L6,0)) -> 13 | Q6: =IF(form!D6="","",IF(B6="","",H6+I6+J6+K6+F6)) -> 42.3 | R6: 9.864420804 | S6: 9.864420804
A7: =IF(form!D7="","",IF(B7="","",H7+I7+J7+K7+F7)) -> 49.9 | B7: =IF($E7="","",IFERROR(form!E7,0)) -> I LOVE YOUR SMILE | C7: =IF($E7="","",IFERROR(form!F7,0)) -> 421 | E7: =form!C7 -> 5 | F7: 12 | H7: =IF($B7="","",IFERROR(form!H7,0)) -> 1.8 | I7: =IF($B7="","",IFERROR(form!I7,0)) -> 1.7 | J7: =IF($B7="","",IFERROR(form!J7,0)) -> 4.4 | K7: =IF($B7="","",IFERROR(form!K7,0)) -> 30 | L7: =IF($B7="","",IFERROR(form!L7,0)) -> 14 | Q7: =IF(form!D7="","",IF(B7="","",H7+I7+J7+K7+F7)) -> 49.9 | R7: 8.362024048 | S7: 8.362024048
A8: =IF(form!D8="","",IF(B8="","",H8+I8+J8+K8+F8)) -> 18.9 | B8: =IF($E8="","",IFERROR(form!E8,0)) -> YONGA LASS | C8: =IF($E8="","",IFERROR(form!F8,0)) -> 0 | E8: =form!C8 -> 6 | F8: 10 | H8: =IF($B8="","",IFERROR(form!H8,0)) -> 2.3 | I8: =IF($B8="","",IFERROR(form!I8,0)) -> 2.1 | J8: =IF($B8="","",IFERROR(form!J8,0)) -> 4.5 | K8: =IF($B8="","",IFERROR(form!K8,0)) -> 0 | L8: =IF($B8="","",IFERROR(form!L8,0)) -> 14 | Q8: =IF(form!D8="","",IF(B8="","",H8+I8+J8+K8+F8)) -> 18.9 | R8: 22.07751323 | S8: 22.07751323
A9: =IF(form!D9="","",IF(B9="","",H9+I9+J9+K9+F9)) -> 43.6 | B9: =IF($E9="","",IFERROR(form!E9,0)) -> ADELANTE | C9: =IF($E9="","",IFERROR(form!F9,0)) -> 513 | E9: =form!C9 -> 7 | F9: 8 | H9: =IF($B9="","",IFERROR(form!H9,0)) -> 2.2 | I9: =IF($B9="","",IFERROR(form!I9,0)) -> 3.5 | J9: =IF($B9="","",IFERROR(form!J9,0)) -> 2.4 | K9: =IF($B9="","",IFERROR(form!K9,0)) -> 27.5 | L9: =IF($B9="","",IFERROR(form!L9,0)) -> 13 | Q9: =IF(form!D9="","",IF(B9="","",H9+I9+J9+K9+F9)) -> 43.6 | R9: 9.570298165 | S9: 9.570298165
A10: =IF(form!D10="","",IF(B10="","",H10+I10+J10+K10+F10)) -> 35.7 | B10: =IF($E10="","",IFERROR(form!E10,0)) -> DEVIL GIRL | C10: =IF($E10="","",IFERROR(form!F10,0)) -> 177 | E10: =form!C10 -> 8 | F10: 6 | H10: =IF($B10="","",IFERROR(form!H10,0)) -> 3.4 | I10: =IF($B10="","",IFERROR(form!I10,0)) -> 2.6 | J10: =IF($B10="","",IFERROR(form!J10,0)) -> 2.2 | K10: =IF($B10="","",IFERROR(form!K10,0)) -> 21.5 | L10: =IF($B10="","",IFERROR(form!L10,0)) -> 21 | Q10: =IF(form!D10="","",IF(B10="","",H10+I10+J10+K10+F10)) -> 35.7 | R10: 11.68809524 | S10: 11.68809524
A11: =IF(form!D11="","",IF(B11="","",H11+I11+J11+K11+F11)) -> 38.6 | B11: =IF($E11="","",IFERROR(form!E11,0)) -> FLOPPY | E11: =form!C11 -> 9 | F11: 0 | H11: =IF($B11="","",IFERROR(form!H11,0)) -> 3.4 | I11: =IF($B11="","",IFERROR(form!I11,0)) -> 3.9 | J11: =IF($B11="","",IFERROR(form!J11,0)) -> 1.3 | K11: =IF($B11="","",IFERROR(form!K11,0)) -> 30 | L11: =IF($B11="","",IFERROR(form!L11,0)) -> 7 | Q11: =IF(form!D11="","",IF(B11="","",H11+I11+J11+K11+F11)) -> 38.6 | R11: 10.80997409 | S11: 10.80997409
A12: =IF(form!D12="","",IF(B12="","",H12+I12+J12+K12+F12)) -> 27.9 | B12: =IF($E12="","",IFERROR(form!E12,0)) -> JOLLY ODD | E12: =form!C12 -> 10 | F12: 0 | H12: =IF($B12="","",IFERROR(form!H12,0)) -> 1.9 | I12: =IF($B12="","",IFERROR(form!I12,0)) -> 2.2 | J12: =IF($B12="","",IFERROR(form!J12,0)) -> 1.3 | K12: =IF($B12="","",IFERROR(form!K12,0)) -> 22.5 | L12: =IF($B12="","",IFERROR(form!L12,0)) -> 13 | Q12: =IF(form!D12="","",IF(B12="","",H12+I12+J12+K12+F12)) -> 27.9 | R12: 14.95573477 | S12: 14.95573477
A13: =IF(form!D13="","",IF(B13="","",H13+I13+J13+K13+F13)) -> 34.7 | B13: =IF($E13="","",IFERROR(form!E13,0)) -> working | E13: =form!C13 -> 11 | F13: 0 | H13: =IF($B13="","",IFERROR(form!H13,0)) -> 2 | I13: =IF($B13="","",IFERROR(form!I13,0)) -> 2 | J13: =IF($B13="","",IFERROR(form!J13,0)) -> 2.2 | K13: =IF($B13="","",IFERROR(form!K13,0)) -> 28.5 | L13: =IF($B13="","",IFERROR(form!L13,0)) -> 34 | Q13: =IF(form!D13="","",IF(B13="","",H13+I13+J13+K13+F13)) -> 34.7 | R13: 12.02492795 | S13: 12.02492795
A14: =IF(form!D14="","",IF(B14="","",H14+I14+J14+K14+F14)) -> 43.3 | B14: =IF($E14="","",IFERROR(form!E14,0)) -> VISIONS OF GRACE | E14: =form!C14 -> 12 | F14: 0 | H14: =IF($B14="","",IFERROR(form!H14,0)) -> 2.3 | I14: =IF($B14="","",IFERROR(form!I14,0)) -> 4.8 | J14: =IF($B14="","",IFERROR(form!J14,0)) -> 2.7 | K14: =IF($B14="","",IFERROR(form!K14,0)) -> 33.5 | L14: =IF($B14="","",IFERROR(form!L14,0)) -> 14 | Q14: =IF(form!D14="","",IF(B14="","",H14+I14+J14+K14+F14)) -> 43.3 | R14: 9.636605081 | S14: 9.636605081
A16: =SUM(A3:A14) -> 490.9 | H16: =IF($B16="","",IFERROR(form!H14,0)) ->  | I16: =IF($B16="","",IFERROR(form!I14,0)) ->  | J16: =IF($B16="","",IFERROR(form!J14,0)) ->  | K16: =IF($B16="","",IFERROR(form!K14,0)) ->  | R16: =IF(B16="","",Q28/Q16*85%) -> 
I17: =IF(H17="","",0+SUBSTITUTE(H17,"kg","")) ->  | Q17: =SUM(Q3:Q14) -> 490.9
I81: =IF(H81="","",0+SUBSTITUTE(H81,"kg","")) -> 

Sheet BlackBook
A2: Rating | B2: Name | C2: Form Element | E2: No | H2: TR | I2: JK | J2: API | K2: LSR | L2: DLR | R2: price
A3: =IF(form!D3="","",IF(B3="","",H3*5+I3*5+J3+K3+F3)) -> 81.9 | B3: =IF($E3="","",IFERROR(form!E3,0)) -> VITAL GEM | C3: =IF($E3="","",IFERROR(form!F3,0)) -> 233 | D3: =IFERROR(VLOOKUP(MID(D3,3,1),lookup_table,2,FALSE),"") -> 0 | E3: =form!C3 -> 1 | F3: =IF(E3=1,20,0+IF(E4=2,18,0+IF(E3=3,16,0+IF(E3=4,14,0+IF(E3=5,12,0+IF(E3=6,10,0+IF(E3=7,8,0+IF(E3=8,6,0)))))))) -> 20 | H3: =IF($B3="","",IFERROR(form!H3,0)) -> 2.5 | I3: =IF($B3="","",IFERROR(form!I3,0)) -> 3.4 | J3: =IF($B3="","",IFERROR(form!J3,0)) -> 1.9 | K3: =IF($B3="","",IFERROR(form!K3,0)) -> 30.5 | L3: =IF($B3="","",IFERROR(form!L3,0)) -> 14 | Q3: =IF(form!D3="","",IF(B3="","",H3+I3+J3+K3+F3)) -> 58.3 | R3: =IF(B3="","",$Q$17/Q3*85%) -> 7.157204117 | S3: =1/(Q3/$Q$17)*0.85 -> 7.157204117
A4: =IF(form!D4="","",IF(B4="","",H4+I4+J4+K4+F4)) -> 46.9 | B4: =IF($E4="","",IFERROR(form!E4,0)) -> ARNRAY | C4: =IF($E4="","",IFERROR(form!F4,0)) -> 0x7 | D4: =IFERROR(VLOOKUP(MID(D4,3,1),lookup_table,2,FALSE),"") -> 0 | E4: =form!C4 -> 2 | F4: =IF(E4=1,20,0+IF(E4=2,18,0+IF(E4=3,16,0+IF(E4=4,14,0+IF(E4=5,12,0+IF(E4=6,10,0+IF(E4=7,8,0+IF(E4=8,6,0)))))))) -> 18 | H4: =IF($B4="","",IFERROR(form!H4,0)) -> 1.9 | I4: =IF($B4="","",IFERROR(form!I4,0)) -> 1.7 | J4: =IF($B4="","",IFERROR(form!J4,0)) -> 3.3 | K4: =IF($B4="","",IFERROR(form!K4,0)) -> 22 | L4: =IF($B4="","",IFERROR(form!L4,0)) -> 14 | Q4: =IF(form!D4="","",IF(B4="","",H4+I4+J4+K4+F4)) -> 46.9 | R4: 8.896908316 | S4: =1/(Q4/$Q$17)*0.85 -> 8.896908316
A5: =IF(form!D5="","",IF(B5="","",H5+I5+J5+K5+F5)) -> 50.8 | B5: =IF($E5="","",IFERROR(form!E5,0)) -> SUPER SALSA | C5: =IF($E5="","",IFERROR(form!F5,0)) -> 641 | D5: =IFERROR(VLOOKUP(MID(D5,3,1),lookup_table,2,FALSE),"") -> 0 | E5: =form!C5 -> 3 | F5: =IF(E5=1,20,0+IF(E5=2,18,0+IF(E5=3,16,0+IF(E5=4,14,0+IF(E5=5,12,0+IF(E5=6,10,0+IF(E5=7,8,0+IF(E5=8,6,0)))))))) -> 16 | H5: =IF($B5="","",IFERROR(form!H5,0)) -> 4.4 | I5: =IF($B5="","",IFERROR(form!I5,0)) -> 2.3 | J5: =IF($B5="","",IFERROR(form!J5,0)) -> 2.1 | K5: =IF($B5="","",IFERROR(form!K5,0)) -> 26 | L5: =IF($B5="","",IFERROR(form!L5,0)) -> 10 | Q5: =IF(form!D5="","",IF(B5="","",H5+I5+J5+K5+F5)) -> 50.8 | R5: 8.213877953 | S5: 8.213877953
A6: =IF(form!D6="","",IF(B6="","",H6+I6+J6+K6+F6)) -> 42.3 | B6: =IF($E6="","",IFERROR(form!E6,0)) -> LATHAMS WISH | C6: =IF($E6="","",IFERROR(form!F6,0)) -> x60 | D6: =IFERROR(VLOOKUP(MID(D6,3,1),lookup_table,2,FALSE),"") -> 0 | E6: =form!C6 -> 4 | F6: 14 | H6: =IF($B6="","",IFERROR(form!H6,0)) -> 2.3 | I6: =IF($B6="","",IFERROR(form!I6,0)) -> 2.4 | J6: =IF($B6="","",IFERROR(form!J6,0)) -> 2.6 | K6: =IF($B6="","",IFERROR(form!K6,0)) -> 21 | L6: =IF($B6="","",IFERROR(form!L6,0)) -> 13 | Q6: =IF(form!D6="","",IF(B6="","",H6+I6+J6+K6+F6)) -> 42.3 | R6: 9.864420804 | S6: 9.864420804
A7: =IF(form!D7="","",IF(B7="","",H7+I7+J7+K7+F7)) -> 49.9 | B7: =IF($E7="","",IFERROR(form!E7,0)) -> I LOVE YOUR SMILE | C7: =IF($E7="","",IFERROR(form!F7,0)) -> 421 | D7: =IFERROR(VLOOKUP(MID(D7,3,1),lookup_table,2,FALSE),"") -> 0 | E7: =form!C7 -> 5 | F7: 12 | H7: =IF($B7="","",IFERROR(form!H7,0)) -> 1.8 | I7: =IF($B7="","",IFERROR(form!I7,0)) -> 1.7 | J7: =IF($B7="","",IFERROR(form!J7,0)) -> 4.4 | K7: =IF($B7="","",IFERROR(form!K7,0)) -> 30 | L7: =IF($B7="","",IFERROR(form!L7,0)) -> 14 | Q7: =IF(form!D7="","",IF(B7="","",H7+I7+J7+K7+F7)) -> 49.9 | R7: 8.362024048 | S7: 8.362024048
A8: =IF(form!D8="","",IF(B8="","",H8+I8+J8+K8+F8)) -> 18.9 | B8: =IF($E8="","",IFERROR(form!E8,0)) -> YONGA LASS | C8: =IF($E8="","",IFERROR(form!F8,0)) -> 0 | D8: =IFERROR(VLOOKUP(MID(D8,3,1),lookup_table,2,FALSE),"") -> 0 | E8: =form!C8 -> 6 | F8: 10 | H8: =IF($B8="","",IFERROR(form!H8,0)) -> 2.3 | I8: =IF($B8="","",IFERROR(form!I8,0)) -> 2.1 | J8: =IF($B8="","",IFERROR(form!J8,0)) -> 4.5 | K8: =IF($B8="","",IFERROR(form!K8,0)) -> 0 | L8: =IF($B8="","",IFERROR(form!L8,0)) -> 14 | Q8: =IF(form!D8="","",IF(B8="","",H8+I8+J8+K8+F8)) -> 18.9 | R8: 22.07751323 | S8: 22.07751323
A9: =IF(form!D9="","",IF(B9="","",H9+I9+J9+K9+F9)) -> 43.6 | B9: =IF($E9="","",IFERROR(form!E9,0)) -> ADELANTE | C9: =IF($E9="","",IFERROR(form!F9,0)) -> 513 | D9: =IFERROR(VLOOKUP(MID(D9,3,1),lookup_table,2,FALSE),"") -> 0 | E9: =form!C9 -> 7 | F9: 8 | H9: =IF($B9="","",IFERROR(form!H9,0)) -> 2.2 | I9: =IF($B9="","",IFERROR(form!I9,0)) -> 3.5 | J9: =IF($B9="","",IFERROR(form!J9,0)) -> 2.4 | K9: =IF($B9="","",IFERROR(form!K9,0)) -> 27.5 | L9: =IF($B9="","",IFERROR(form!L9,0)) -> 13 | Q9: =IF(form!D9="","",IF(B9="","",H9+I9+J9+K9+F9)) -> 43.6 | R9: 9.570298165 | S9: 9.570298165
A10: =IF(form!D10="","",IF(B10="","",H10+I10+J10+K10+F10)) -> 35.7 | B10: =IF($E10="","",IFERROR(form!E10,0)) -> DEVIL GIRL | C10: =IF($E10="","",IFERROR(form!F10,0)) -> 177 | D10: =IFERROR(VLOOKUP(MID(D10,3,1),lookup_table,2,FALSE),"") -> 0 | E10: =form!C10 -> 8 | F10: 6 | H10: =IF($B10="","",IFERROR(form!H10,0)) -> 3.4 | I10: =IF($B10="","",IFERROR(form!I10,0)) -> 2.6 | J10: =IF($B10="","",IFERROR(form!J10,0)) -> 2.2 | K10: =IF($B10="","",IFERROR(form!K10,0)) -> 21.5 | L10: =IF($B10="","",IFERROR(form!L10,0)) -> 21 | Q10: =IF(form!D10="","",IF(B10="","",H10+I10+J10+K10+F10)) -> 35.7 | R10: 11.68809524 | S10: 11.68809524
A11: =IF(form!D11="","",IF(B11="","",H11+I11+J11+K11+F11)) -> 38.6 | B11: =IF($E11="","",IFERROR(form!E11,0)) -> FLOPPY | D11: =IFERROR(VLOOKUP(MID(D11,3,1),lookup_table,2,FALSE),"") -> 0 | E11: =form!C11 -> 9 | F11: 0 | H11: =IF($B11="","",IFERROR(form!H11,0)) -> 3.4 | I11: =IF($B11="","",IFERROR(form!I11,0)) -> 3.9 | J11: =IF($B11="","",IFERROR(form!J11,0)) -> 1.3 | K11: =IF($B11="","",IFERROR(form!K11,0)) -> 30 | L11: =IF($B11="","",IFERROR(form!L11,0)) -> 7 | Q11: =IF(form!D11="","",IF(B11="","",H11+I11+J11+K11+F11)) -> 38.6 | R11: 10.80997409 | S11: 10.80997409
A12: =IF(form!D12="","",IF(B12="","",H12+I12+J12+K12+F12)) -> 27.9 | B12: =IF($E12="","",IFERROR(form!E12,0)) -> JOLLY ODD | E12: =form!C12 -> 10 | F12: =IF(E12=1,20,0+IF(E12=2,18,0+IF(E12=3,16,0+IF(E12=4,14,0+IF(E12=5,12,0+IF(E12=6,10,0+IF(E12=7,8,0+IF(E12=8,6,0)))))))) -> 0 | H12: =IF($B12="","",IFERROR(form!H12,0)) -> 1.9 | I12: =IF($B12="","",IFERROR(form!I12,0)) -> 2.2 | J12: =IF($B12="","",IFERROR(form!J12,0)) -> 1.3 | K12: =IF($B12="","",IFERROR(form!K12,0)) -> 22.5 | L12: =IF($B12="","",IFERROR(form!L12,0)) -> 13 | Q12: =IF(form!D12="","",IF(B12="","",H12+I12+J12+K12+F12)) -> 27.9 | R12: 14.95573477 | S12: 14.95573477
A13: =IF(form!D13="","",IF(B13="","",H13+I13+J13+K13+F13)) -> 34.7 | B13: =IF($E13="","",IFERROR(form!E13,0)) -> working | E13: =form!C13 -> 11 | F13: 0 | H13: =IF($B13="","",IFERROR(form!H13,0)) -> 2 | I13: =IF($B13="","",IFERROR(form!I13,0)) -> 2 | J13: =IF($B13="","",IFERROR(form!J13,0)) -> 2.2 | K13: =IF($B13="","",IFERROR(form!K13,0)) -> 28.5 | L13: =IF($B13="","",IFERROR(form!L13,0)) -> 34 | Q13: =IF(form!D13="","",IF(B13="","",H13+I13+J13+K13+F13)) -> 34.7 | R13: 12.02492795 | S13: 12.02492795
A14: =IF(form!D14="","",IF(B14="","",H14+I14+J14+K14+F14)) -> 43.3 | B14: =IF($E14="","",IFERROR(form!E14,0)) -> VISIONS OF GRACE | E14: =form!C14 -> 12 | F14: 0 | H14: =IF($B14="","",IFERROR(form!H14,0)) -> 2.3 | I14: =IF($B14="","",IFERROR(form!I14,0)) -> 4.8 | J14: =IF($B14="","",IFERROR(form!J14,0)) -> 2.7 | K14: =IF($B14="","",IFERROR(form!K14,0)) -> 33.5 | L14: =IF($B14="","",IFERROR(form!L14,0)) -> 14 | Q14: =IF(form!D14="","",IF(B14="","",H14+I14+J14+K14+F14)) -> 43.3 | R14: 9.636605081 | S14: 9.636605081
A16: =SUM(A3:A14) -> 514.5 | H16: =IF($B16="","",IFERROR(form!H14,0)) ->  | I16: =IF($B16="","",IFERROR(form!I14,0)) ->  | J16: =IF($B16="","",IFERROR(form!J14,0)) ->  | K16: =IF($B16="","",IFERROR(form!K14,0)) ->  | R16: =IF(B16="","",Q28/Q16*85%) -> 
I17: =IF(H17="","",0+SUBSTITUTE(H17,"kg","")) ->  | Q17: =SUM(Q3:Q14) -> 490.9
I78: =IF(H78="","",0+SUBSTITUTE(H78,"kg","")) -> 

Sheet RacePage
D3: Venue | K3: 1 | L3: 2 | M3: 3 | N3: 4 | O3: 5 | P3: 6 | Q3: 7 | R3: 8 | U3: Race Card
D4: Albury | H4: 6 | K4: 1,2,3 | L4: 6,4,7 | M4: 1,7,2 | N4: 5,2,7 | O4: 7,4,9 | P4: 10,3,1 | Q4: 2,1,9 | R4: 13,3,7 | S4: 6,7,8
K5: =IF(M5="","",IF(M5<10000,14,IF(M5<25000,12,IF(M5<40000,10,IF(M5<70000,6,0))))) ->  | N5: =D4&" "&"R"&H4 -> Albury R6
C6: No | D6: Runner | F6: Form | G6: con | H6: impact | I6: fbook | J6: class | M6: total | R6: R/Price | S6: PR PICE | T6: L/Scr
B7: =IF(R7="","",IF(OR(R7<$W$17,R7>$W$18),"",RANK(R7,R$7:R$19,1)+COUNTIF(R$7:R7,R7)-1)) -> 2 | C7: =form!D3 -> 1 | D7: =IF($C7="","",form!E3) -> VITAL GEM | F7: =IF($C7="","",form!F3) -> 233 | G7: =IF($C7="","",consensus!A3) -> 21.9 | H7: =IF($C7="","",Impact!A3) -> 89.5 | I7: =IF($C7="","",Formbook!A3) -> 58.3 | J7: =IF($C7="","",BlackBook!A3) -> 81.9 | M7: =IF(COUNT(G7,J7,H7)>0,SUM(G7,H7,I7,J7)/COUNT(G7,H7,I7,J7),"") -> 62.9 | R7: =IF($C7="","",Prices!F3) -> 6.7 | S7: =IF($C7="","",form!M3) -> 26
B8: =IF(R8="","",IF(OR(R8<$W$17,R8>$W$18),"",RANK(R8,R$7:R$19,1)+COUNTIF(R$7:R8,R8)-1)) -> 6 | C8: =form!D4 -> 2 | D8: =IF($C8="","",form!E4) -> ARNRAY | F8: =IF($C8="","",form!F4) -> 0x7 | G8: =IF($C8="","",consensus!A4) -> 22.3 | H8: =IF($C8="","",Impact!A4) -> 74.5 | I8: =IF($C8="","",Formbook!A4) -> 46.9 | J8: =IF($C8="","",BlackBook!A4) -> 46.9 | M8: =IF(COUNT(G8,J8,H8)>0,SUM(G8,H8,I8,J8)/COUNT(G8,H8,I8,J8),"") -> 47.65 | R8: =IF($C8="","",Prices!F4) -> 11.8 | S8: =IF($C8="","",form!M4) -> 51 | U8: Rating System | W8: Impact
B9: =IF(R9="","",IF(OR(R9<$W$17,R9>$W$18),"",RANK(R9,R$7:R$19,1)+COUNTIF(R$7:R9,R9)-1)) -> 3 | C9: =form!D5 -> 3 | D9: =IF($C9="","",form!E5) -> SUPER SALSA | F9: =IF($C9="","",form!F5) -> 641 | G9: =IF($C9="","",consensus!A5) -> 20.1 | H9: =IF($C9="","",Impact!A5) -> 86 | I9: =IF($C9="","",Formbook!A5) -> 50.8 | J9: =IF($C9="","",BlackBook!A5) -> 50.8 | M9: 51.925 | R9: =IF($C9="","",Prices!F5) -> 7.5 | S9: =IF($C9="","",form!M5) -> 13
B10: =IF(R10="","",IF(OR(R10<$W$17,R10>$W$18),"",RANK(R10,R$7:R$19,1)+COUNTIF(R$7:R10,R10)-1)) -> 11 | C10: =form!D6 -> 4 | D10: =IF($C10="","",form!E6) -> LATHAMS WISH | F10: =IF($C10="","",form!F6) -> x60 | G10: =IF($C10="","",consensus!A6) -> 19.6 | H10: =IF($C10="","",Impact!A6) -> 71.5 | I10: =IF($C10="","",Formbook!A6) -> 42.3 | J10: =IF($C10="","",BlackBook!A6) -> 42.3 | M10: 43.925 | R10: =IF($C10="","",Prices!F6) -> 13.8 | S10: =IF($C10="","",form!M6) -> 9.5 | U10: No Of Selections | W10: 2 | Z10: Saved
B11: =IF(R11="","",IF(OR(R11<$W$17,R11>$W$18),"",RANK(R11,R$7:R$19,1)+COUNTIF(R$7:R11,R11)-1)) -> 4 | C11: =form!D7 -> 5 | D11: =IF($C11="","",form!E7) -> I LOVE YOUR SMILE | F11: =IF($C11="","",form!F7) -> 421 | G11: =IF($C11="","",consensus!A7) -> 20.4 | H11: =IF($C11="","",Impact!A7) -> 81.5 | I11: =IF($C11="","",Formbook!A7) -> 49.9 | J11: =IF($C11="","",BlackBook!A7) -> 49.9 | M11: 50.425 | R11: =IF($C11="","",Prices!F7) -> 8.7 | S11: =IF($C11="","",form!M7) -> 20
B12: =IF(R12="","",IF(OR(R12<$W$17,R12>$W$18),"",RANK(R12,R$7:R$19,1)+COUNTIF(R$7:R12,R12)-1)) ->  | C12: =form!D8 -> 6 | D12: =IF($C12="","",form!E8) -> YONGA LASS | F12: =IF($C12="","",form!F8) -> 0 | G12: =IF($C12="","",consensus!A8) -> 19.5 | H12: =IF($C12="","",Impact!A8) -> 54.5 | I12: =IF($C12="","",Formbook!A8) -> 18.9 | J12: =IF($C12="","",BlackBook!A8) -> 18.9 | M12: 27.95 | R12: =IF($C12="","",Prices!F8) -> -17 | S12: =IF($C12="","",form!M8) -> 6.5 | U12: No | V12: Runner | X12: 3
B13: =IF(R13="","",IF(OR(R13<$W$17,R13>$W$18),"",RANK(R13,R$7:R$19,1)+COUNTIF(R$7:R13,R13)-1)) -> 5 | C13: =form!D9 -> 7 | D13: =IF($C13="","",form!E9) -> ADELANTE | F13: =IF($C13="","",form!F9) -> 513 | G13: =IF($C13="","",consensus!A9) -> 12.4 | H13: =IF($C13="","",Impact!A9) -> 76 | I13: =IF($C13="","",Formbook!A9) -> 43.6 | J13: =IF($C13="","",BlackBook!A9) -> 43.6 | M13: 43.9 | R13: =IF($C13="","",Prices!F9) -> 10.9 | S13: =IF($C13="","",form!M9) -> 15 | U13: =IFERROR(VLOOKUP(AB14,$B$7:$R$19,2,0),"") -> 1 | V13: =IFERROR(VLOOKUP(AB14,$B$7:$R$19,3,0),"") -> VITAL GEM | AB13: 1
B14: =IF(R14="","",IF(OR(R14<$W$17,R14>$W$18),"",RANK(R14,R$7:R$19,1)+COUNTIF(R$7:R14,R14)-1)) -> 12 | C14: =form!D10 -> 8 | D14: =IF($C14="","",form!E10) -> DEVIL GIRL | F14: =IF($C14="","",form!F10) -> 177 | G14: =IF($C14="","",consensus!A10) -> 11.2 | H14: =IF($C14="","",Impact!A10) -> 68.5 | I14: =IF($C14="","",Formbook!A10) -> 35.7 | J14: =IF($C14="","",BlackBook!A10) -> 35.7 | M14: 37.775 | R14: =IF($C14="","",Prices!F10) -> 16.8 | S14: =IF($C14="","",form!M10) -> 71 | U14: 3 | V14: SUPER SALSA | AB14: 2
B15: =IF(R15="","",IF(OR(R15<$W$17,R15>$W$18),"",RANK(R15,R$7:R$19,1)+COUNTIF(R$7:R15,R15)-1)) -> 7 | C15: =form!D11 -> 9 | D15: =IF($C15="","",form!E11) -> FLOPPY | F15: =IF($C15="","",form!F11) -> 354 | G15: =IF($C15="","",consensus!A11) -> 9.3 | H15: =IF($C15="","",Impact!A11) -> 73 | I15: =IF($C15="","",Formbook!A11) -> 38.6 | J15: =IF($C15="","",BlackBook!A11) -> 38.6 | M15: 39.875 | R15: =IF($C15="","",Prices!F11) -> 12.7 | S15: =IF($C15="","",form!M11) -> 7.5 | U15: 5 | V15: I LOVE YOUR SMILE | AB15: 3
B16: =IF(R16="","",IF(OR(R16<$W$17,R16>$W$18),"",RANK(R16,R$7:R$19,1)+COUNTIF(R$7:R16,R16)-1)) -> 8 | C16: =form!D12 -> 10 | D16: =IF($C16="","",form!E12) -> JOLLY ODD | F16: =IF($C16="","",form!F12) -> 814 | G16: =IF($C16="","",consensus!A12) -> 8.3 | H16: =IF($C16="","",Impact!A12) -> 49.5 | I16: =IF($C16="","",Formbook!A12) -> 27.9 | J16: =IF($C16="","",BlackBook!A12) -> 27.9 | M16: 28.4 | R16: =IF($C16="","",Prices!F12) -> 12.7 | S16: =IF($C16="","",form!M12) -> 41 | U16: 7 | V16: ADELANTE | AB16: 4
B17: =IF(R17="","",IF(OR(R17<$W$17,R17>$W$18),"",RANK(R17,R$7:R$19,1)+COUNTIF(R$7:R17,R17)-1)) -> 9 | C17: =form!D13 -> 11 | D17: =IF($C17="","",form!E13) -> working | F17: =IF($C17="","",form!F13) -> 235 | G17: =IF($C17="","",consensus!A13) -> 8.2 | H17: =IF($C17="","",Impact!A13) -> 59.5 | I17: =IF($C17="","",Formbook!A13) -> 34.7 | J17: =IF($C17="","",BlackBook!A13) -> 34.7 | M17: 34.275 | R17: =IF($C17="","",Prices!F13) -> 12.7 | S17: =IF($C17="","",form!M13) -> 31 | AB17: 5
B18: =IF(R18="","",IF(OR(R18<$W$17,R18>$W$18),"",RANK(R18,R$7:R$19,1)+COUNTIF(R$7:R18,R18)-1)) -> 10 | C18: =form!D14 -> 12 | D18: =IF($C18="","",form!E14) -> VISIONS OF GRACE | F18: =IF($C18="","",form!F14) -> 782 | G18: =IF($C18="","",consensus!A14) ->  | H18: =IF($C18="","",Impact!A14) -> 82.5 | I18: =IF($C18="","",Formbook!A14) -> 43.3 | J18: =IF($C18="","",BlackBook!A14) -> 43.3 | M18: 56.36666667 | O18: =IF(M7="", "", RANK(M7,$M$7:$M$19)-MIN($M$7:$M$19)+1) -> -25.95 | R18: =IF($C18="","",Prices!F14) -> 12.7 | S18: =IF($C18="","",form!M14) -> 3.7 | U18: Max Rated Price | W18: 100 | AB18: 6
B19: =IF(R19="","",IF(OR(R19<$W$17,R19>$W$18),"",RANK(R19,R$7:R$19,1)+COUNTIF(R$7:R19,R19)-1)) ->  | C19: =form!D15 ->  | D19: =IF($C19="","",form!E15) ->  | F19: =IF($C19="","",form!F15) ->  | G19: =IF($C19="","",consensus!A15) ->  | H19: =IF($C19="","",Impact!A15) ->  | I19: =IF($C19="","",form!K15) ->  | J19: =IF($C19="","",BlackBook!A15) ->  | L19: =IF($C19="","",form!N15) ->  | P19: =IF(C19="","",#REF!/Q19*85%) ->  | R19: =IF($C19="","",Prices!F15) ->  | S19: =IF($C19="","",form!M15) ->  | AB19: 7
H20: =IF($C20="","",Impact!A16) ->  | J20: =IF($C20="","",BlackBook!A16) ->  | M20: =IF(COUNT(G20,J20,H20)>0,SUM(G20,H20,I20,J20)/COUNT(G20,H20,I20,J20),"") ->  | R20: =IF($C20="","",Prices!F16) ->  | S20: =IF($C20="","",form!M16) ->  | AB20: 8
D22: =D4 -> Albury | J22: =H4 -> 6 | L22: =#REF! ->  | O22: =#REF!&"M" ->  | T22: =D4&" "&"Race"&" "&H4 -> Albury Race 6 | V22: =#REF! -> 
C23: No | D23: Runner | H23: Cond | I23: Form | J23: Weight | K23: Trainer | N23: Jockey | Q23: R/Price | T23: =#REF! ->  | X23: =#REF!&"M" -> 
C24: =IF($Q24="","",C7) -> 1 | D24: VITAL GEM | I24: =IF($Q24="","",F7) -> 233 | J24: =IF($Q24="","",I7) -> 58.3 | K24: =IF($Q24="","",G7) -> 21.9 | N24: =IF($Q24="","",H7) -> 89.5 | Q24: =R7 -> 6.7 | T24: No | U24: Runner | X24: R/Price
C25: 2 | D25: ARNRAY | I25: 0x7 | J25: 46.9 | K25: 22.3 | N25: 74.5 | Q25: 11.8 | T25: =#REF! ->  | U25: =#REF! ->  | X25: =Y13 -> 0 | Y25: =IF(ISNA(VLOOKUP(U25,$D$7:$R$19,15,0)),"",VLOOKUP(U25,$D$7:$R$19,6,0)) -> 
C26: 3 | D26: SUPER SALSA | I26: 641 | J26: 50.8 | K26: 20.1 | N26: 86 | Q26: 7.5 | T26: =U13 -> 1 | U26: =V13 -> VITAL GEM | X26: =Y14 -> 0 | Y26: =IF(ISNA(VLOOKUP(U26,$D$7:$R$19,15,0)),"",VLOOKUP(U26,$D$7:$R$19,6,0)) -> 58.3 | Z26: =IF(T25="","",$W$8) ->  | AA26: =IF(T25="","",$N$5) -> 
C27: 4 | D27: LATHAMS WISH | I27: x60 | J27: 42.3 | K27: 19.6 | N27: 71.5 | Q27: 13.8 | T27: =U14 -> 3 | U27: =V14 -> SUPER SALSA | X27: =Y15 -> 0 | Y27: =IF(ISNA(VLOOKUP(U27,$D$7:$R$19,15,0)),"",VLOOKUP(U27,$D$7:$R$19,6,0)) -> 50.8 | Z27: =IF(T26="","",$W$8) -> Impact | AA27: Albury R6
C28: 5 | D28: I LOVE YOUR SMILE | I28: 421 | J28: 49.9 | K28: 20.4 | N28: 81.5 | Q28: 8.7 | Z28: =IF(T27="","",$W$8) -> Impact | AA28: Albury R6
C29: 6 | D29: YONGA LASS | I29: 0 | J29: 18.9 | K29: 19.5 | N29: 54.5 | Q29: -17
C30: 7 | D30: ADELANTE | I30: 513 | J30: 43.6 | K30: 12.4 | N30: 76 | Q30: 10.9
C31: 8 | D31: DEVIL GIRL | I31: 177 | J31: 35.7 | K31: 11.2 | N31: 68.5 | Q31: 16.8
C32: 9 | D32: FLOPPY | I32: 354 | J32: 38.6 | K32: 9.3 | N32: 73 | Q32: 12.7
C33: 10 | D33: JOLLY ODD | I33: 814 | J33: 27.9 | K33: 8.3 | N33: 49.5 | Q33: 12.7
C34: 11 | D34: working | I34: 235 | J34: 34.7 | K34: 8.2 | N34: 59.5 | Q34: 12.7
C35: 12 | D35: VISIONS OF GRACE | I35: 782 | J35: 43.3 | N35: 82.5 | Q35: 12.7

Sheet form
A1: =IF(RacePage!D4="","Master",RacePage!D4) -> Albury | D1: 3 | E1: 4 | F1: 5 | H1: 6 | I1: 7 | J1: 8 | K1: 9 | L1: 10 | M1: 11 | N1: 12 | O1: 13 | P1: 16 | Q1: 17 | R1: 18 | S1: 19 | T1: 20
A2: =RacePage!H4 -> 6 | B2: Ratings Systems | E2: Name | F2: Last 3 | H2: TR | I2: JK | J2: API | K2: LST | L2: DLR | M2: price | N2: AFS | O2: BAR | S2: Prize/M
A3: Albury | B3: Consensus | C3: 1 | D3: =IFERROR(IF(OR($A$2=0,D$1=""),"",VLOOKUP($A$1&$A$2&$C3,INDIRECT($A$1&"!$Y$1:$AN$200"),D$1,FALSE)),"") -> 1 | E3: =IFERROR(VLOOKUP(CONCATENATE($A$1,$A$2,$C3),INDIRECT($A$1&"!$Y$1:$AN$200"),E$1,FALSE),"") -> VITAL GEM | F3: =IFERROR(VLOOKUP(CONCATENATE($A$1,$A$2,$C3),INDIRECT($A$1&"!$Y$1:$AN$200"),F$1,FALSE),"") -> 233 | G3: =IF(MID(F3,3,1)="1", 10*2, IF(MID(F3,3,1)="2", 9*2, IF(MID(F3,3,1)="3", 8*2, IF(MID(F3,3,1)="4", 7*2, "")))) -> 16 | H3: =IFERROR(VLOOKUP(CONCATENATE($A$1,$A$2,$C3),INDIRECT($A$1&"!$Y$1:$AN$200"),H$1,FALSE),"") -> 2.5 | I3: =IFERROR(VLOOKUP(CONCATENATE($A$1,$A$2,$C3),INDIRECT($A$1&"!$Y$1:$AN$200"),I$1,FALSE),"") -> 3.4 | J3: 1.9 | K3: 30.5 | L3: 14 | M3: 26 | N3: 17.3 | O3: 90.5 | P3: =IFERROR(VLOOKUP(CONCATENATE($A$1,$A$2,$C3),INDIRECT($A$1&"!$Y$1:$AN$200"),P$1,FALSE),"") -> 0 | Q3: =IFERROR( IF(OR($A$2=0,Q$1=""),"",VLOOKUP($A$1&$A$2&$C3,INDIRECT($A$1&"!$Y$1:$AN$200"),Q$1,FALSE)),"") ->  | T3: =IFERROR(IF(OR($A$2=0,T$1=""),"",VLOOKUP($A$1&$A$2&$C3, INDIRECT($A$1&"!$y$1:$an$200"), T$1, FALSE)),"") -> 
B4: Impact | C4: 2 | D4: =IFERROR(IF(OR($A$2=0,D$1=""),"",VLOOKUP($A$1&$A$2&$C4,INDIRECT($A$1&"!$Y$1:$AN$200"),D$1,FALSE)),"") -> 2 | E4: =IFERROR(VLOOKUP(CONCATENATE($A$1,$A$2,$C4),INDIRECT($A$1&"!$Y$1:$AN$200"),E$1,FALSE),"") -> ARNRAY | F4: =IFERROR(VLOOKUP(CONCATENATE($A$1,$A$2,$C4),INDIRECT($A$1&"!$Y$1:$AN$200"),F$1,FALSE),"") -> 0x7 | G4: =IF(MID(F4,3,1)="1", 10*2, IF(MID(F4,3,1)="2", 9*2, IF(MID(F4,3,1)="3", 8*2, IF(MID(F4,3,1)="4", 7*2, "")))) ->  | H4: =IFERROR(VLOOKUP(CONCATENATE($A$1,$A$2,$C4),INDIRECT($A$1&"!$Y$1:$AN$200"),H$1,FALSE),"") -> 1.9 | I4: 1.7 | J4: 3.3 | K4: 22 | L4: 14 | M4: 51 | N4: 16.6 | O4: 78.5 | P4: =IFERROR(VLOOKUP(CONCATENATE($A$1,$A$2,$C4),INDIRECT($A$1&"!$Y$1:$AN$200"),AM$1,FALSE),"") -> 
B5: FormBook | C5: 3 | D5: 3 | E5: SUPER SALSA | F5: 641 | G5: 20 | H5: 4.4 | I5: 2.3 | J5: 2.1 | K5: 26 | L5: 10 | M5: 13 | N5: 16.2 | O5: 107 | P5: 0
B6: Class | C6: 4 | D6: 4 | E6: LATHAMS WISH | F6: x60 | H6: 2.3 | I6: 2.4 | J6: 2.6 | K6: 21 | L6: 13 | M6: 9.5 | N6: 17.6 | O6: 108 | P6: 0
B7: Tops | C7: 5 | D7: 5 | E7: I LOVE YOUR SMILE | F7: 421 | G7: 20 | H7: 1.8 | I7: 1.7 | J7: 4.4 | K7: 30 | L7: 14 | M7: 20 | N7: 17.1 | O7: 93.5 | P7: 0
B8: Nines | C8: 6 | D8: 6 | E8: YONGA LASS | F8: 0 | H8: 2.3 | I8: 2.1 | J8: 4.5 | K8: 0 | L8: 14 | M8: 6.5 | N8: 0 | O8: 122 | P8: 0
B9: BlackBook | C9: 7 | D9: 7 | E9: ADELANTE | F9: 513 | G9: 16 | H9: 2.2 | I9: 3.5 | J9: 2.4 | K9: 27.5 | L9: 13 | M9: 15 | N9: 0 | O9: 102 | P9: 0
C10: 8 | D10: 8 | E10: DEVIL GIRL | F10: 177 | H10: 3.4 | I10: 2.6 | J10: 2.2 | K10: 21.5 | L10: 21 | M10: 71 | N10: 16.6 | O10: 72.5 | P10: 0
C11: 9 | D11: 9 | E11: FLOPPY | F11: 354 | G11: 14 | H11: 3.4 | I11: 3.9 | J11: 1.3 | K11: 30 | L11: 7 | M11: 7.5 | N11: 16.9 | O11: 119.5 | P11: 0
C12: 10 | D12: 10 | E12: JOLLY ODD | F12: 814 | G12: 14 | H12: 1.9 | I12: 2.2 | J12: 1.3 | K12: 22.5 | L12: 13 | M12: 41 | N12: 17.1 | O12: 79 | P12: 0
C13: 11 | D13: =IFERROR(IF(OR($A$2=0,D$1=""),"",VLOOKUP($A$1&$A$2&$C13, INDIRECT($A$1&"!$y$1:$an$200"), D$1, FALSE)),"") -> 11 | E13: working | F13: 235 | H13: 2 | I13: 2 | J13: 2.2 | K13: 28.5 | L13: 34 | M13: 31 | N13: 17.3 | O13: 88.5 | P13: 0
C14: 12 | D14: 12 | E14: VISIONS OF GRACE | F14: 782 | G14: 18 | H14: 2.3 | I14: 4.8 | J14: 2.7 | K14: 33.5 | L14: 14 | M14: 3.7 | N14: 17 | O14: 183.5 | P14: 0
C15: 13
C16: 14 | D16: =IF($A$2=0,"",IF(D$1="","",IF(ISNA(VLOOKUP($A$1&$A$2&$C16,INDIRECT($A$1&"!$y$1:$z$200"),D$1,0)),"",VLOOKUP($A$1&$A$2&$C16,INDIRECT($A$1&"!$y$1:$an$200"),D$1,0)))) ->  | F16: =IF($A$2=0,"",IF(F$1="","",IF(ISNA(VLOOKUP($A$1&$A$2&$C16,INDIRECT($A$1&"!$y$1:$z$200"),F$1,0)),"",VLOOKUP($A$1&$A$2&$C16,INDIRECT($A$1&"!$y$1:$an$200"),F$1,0)))) ->  | K16: =IF($A$2=0,"",IF(K$1="","",IF(ISNA(VLOOKUP($A$1&$A$2&$C16,INDIRECT($A$1&"!$y$1:$z$200"),K$1,0)),"",VLOOKUP($A$1&$A$2&$C16,INDIRECT($A$1&"!$y$1:$an$200"),K$1,0)))) -> 
C17: 15 | H17: =IF($A$2=0,"",IF(H$1="","",IF(ISNA(VLOOKUP($A$1&$A$2&$C17,INDIRECT($A$1&"!$y$1:$z$200"),H$1,0)),"",VLOOKUP($A$1&$A$2&$C17,INDIRECT($A$1&"!$y$1:$an$200"),H$1,0)))) -> 
C18: 16 | Q18: =IF($O18="","",IF(Q$1="","",IF(ISNA(VLOOKUP($A$1&$A$2&$C18,INDIRECT($A$1&"!$Y$1:$GY$4000"),Q$1,0)),"",VLOOKUP($A$1&$A$2&$C18,INDIRECT($A$1&"!$Y$1:$GY$4000"),Q$1,0)))) ->  | S18: =IF($O18="","",IF(#REF!="","",IF(ISNA(VLOOKUP($A$1&$A$2&$C18,INDIRECT($A$1&"!$Y$1:$GY$4000"),#REF!,0)),"",VLOOKUP($A$1&$A$2&$C18,INDIRECT($A$1&"!$Y$1:$GY$4000"),#REF!,0)))) -> 
C19: 17
C20: 18 | D20: =IF($A$2=0,"",IF(D$1="","",IF(ISNA(VLOOKUP($A$1&$A$2&$C20,INDIRECT($A$1&"!$y$1:$GX$4000"),D$1,0)),"",VLOOKUP($A$1&$A$2&$C20,INDIRECT($A$1&"!$y$1:$GX$4000"),D$1,0)))) ->  | F20: =IF(F$1="","",IF(ISNA(VLOOKUP($A$1&$A$2&$C20,INDIRECT($A$1&"!$Y$1:$GY$4000"),F$1,0)),"",VLOOKUP($A$1&$A$2&$C20,INDIRECT($A$1&"!$Y$1:$GY$4000"),F$1,0))) ->  | J20: =IF(J$1="","",IF(ISNA(VLOOKUP($A$1&$A$2&$C20,INDIRECT($A$1&"!$Y$1:$GY$4000"),J$1,0)),"",VLOOKUP($A$1&$A$2&$C20,INDIRECT($A$1&"!$Y$1:$GY$4000"),J$1,0))) -> 
C21: 19 | E21: =IF(E$1="","",SUBSTITUTE(IF(ISNA(VLOOKUP($A$1&$A$2&$C21,INDIRECT($A$1&"!$Y$1:$GY$4000"),E$1,0)),"",VLOOKUP($A$1&$A$2&$C21,INDIRECT($A$1&"!$Y$1:$GY$4000"),E$1,0)),CHAR(146),"")) -> 
C22: 20
C23: 21 | J23: =IF(J$1="","",IF(ISNA(VLOOKUP($A$1&$A$2&$C23,INDIRECT($A$1&"!$Y$1:$GY$4000"),J$1,0)),"",VLOOKUP($A$1&$A$2&$C23,INDIRECT($A$1&"!$Y$1:$GY$4000"),J$1,0))) -> 
C24: 22
C25: 24
I26: =IF($A$2=0,"",IF(I$1="","",IF(ISNA(VLOOKUP($A$1&$A$2&$C26,INDIRECT($A$1&"!$y$1:$z$200"),I$1,0)),"",VLOOKUP($A$1&$A$2&$C26,INDIRECT($A$1&"!$y$1:$an$200"),I$1,0)))) -> 

Sheet Prices
A1: =RacePage!W8 -> Impact
A2: Rating | E2: Rated % | F2: Rated Price
A3: =INDIRECT($A$1&"!a3") -> 89.5 | B3: =IF(A3="","",A3-C$3) -> 35 | C3: =MIN($A$3:$A$16) -> 54.5 | D3: =IF(A3="","",IF(A3=0,0,B3+((B3*B3*C$8)/(C$6-C$7)))) -> 34.80647709 | E3: =IF(A3="","",IF(B3=0,C$4*100,(D3/C$9)*100)) -> 12.61747072 | F3: =IF(E3="","",IF(E3=0,0,ROUND(85/E3,1))) -> 6.7 | H3: 1
A4: =INDIRECT($A$1&"!a4") -> 74.5 | B4: =IF(A4="","",A4-C$3) -> 20 | C4: -0.05 | D4: =IF(A4="","",IF(A4=0,0,B4+((B4*B4*C$8)/(C$6-C$7)))) -> 19.93680885 | E4: =IF(A4="","",IF(B4=0,C$4*100,(D4/C$9)*100)) -> 7.227163531 | F4: =IF(E4="","",IF(E4=0,0,ROUND(85/E4,1))) -> 11.8 | H4: 2
A5: =INDIRECT($A$1&"!a5") -> 86 | B5: 31.5 | C5: =A28 -> 0 | D5: 31.34324645 | E5: 11.3620374 | F5: 7.5 | H5: 3
A6: =INDIRECT($A$1&"!a6") -> 71.5 | B6: 17 | C6: =(C5-C3)*1.1 -> -59.95 | D6: 16.95434439 | E6: 6.146009646 | F6: 13.8 | H6: 4
A7: =INDIRECT($A$1&"!a7") -> 81.5 | B7: 27 | C7: =MAX(B3:B26) -> 35 | D7: 26.88483412 | E7: 9.745847202 | F7: 8.7 | H7: 5
A8: =INDIRECT($A$1&"!a8") -> 54.5 | B8: 0 | C8: 0.015 | D8: 0 | E8: -5 | F8: -17 | H8: 6
A9: =INDIRECT($A$1&"!a9") -> 76 | B9: 21.5 | C9: =SUM(D3:D26)/((100-C4)/100) -> 275.8593847 | D9: 21.42697472 | E9: 7.767353918 | F9: 10.9 | H9: 7
A10: =INDIRECT($A$1&"!a10") -> 68.5 | B10: =IF(A10="","",A10-C$3) -> 14 | C10: =SUM(D4:D27)/((100-C5)/100) -> 241.1908373 | D10: =IF(A10="","",IF(A10=0,0,B10+((B10*B10*C$8)/(C$6-C$7)))) -> 13.96903633 | E10: =IF(A10="","",IF(B10=0,C$4*100,(D10/C$9)*100)) -> 5.063824945 | F10: 16.8 | H10: 8
A11: =INDIRECT($A$1&"!a11") -> 73 | B11: 18.5 | C11: 138.326995 | D11: 18.44593207 | E11: 6.68671544 | F11: 12.7 | H11: 9
A12: =INDIRECT($A$1&"!a11") -> 73 | B12: 18.5 | C12: 292.1704338 | D12: 18.44593207 | E12: 6.68671544 | F12: 12.7 | H12: 10
A13: 73 | B13: 18.5 | C13: 172.982385 | D13: 18.44593207 | E13: 6.68671544 | F13: 12.7 | H13: 11
A14: 73 | B14: 18.5 | C14: -83.06159136 | D14: 18.44593207 | E14: 6.68671544 | F14: 12.7 | H14: 12
A15: 73 | B15: 18.5 | C15: -103.4568576 | D15: 18.44593207 | E15: 6.68671544 | F15: 12.7 | H15: 13
A16: 73 | B16: 18.5 | C16: -325.2136748 | D16: 18.44593207 | E16: 6.68671544 | F16: 12.7 | H16: 14
A28: =INDIRECT(A1&"!a28") -> 0

Sheet albury
B1: Venue | D1: albury | L1: 4 | M1: 0 | N1: =IF(F1="","",(IF(ISNUMBER(0+A1),0+A1,0+LEFT(A1,FIND("e",A1)-1)))) ->  | P1: =IF(A1="","",IF(O1="",TRIM(CLEAN(SUBSTITUTE(IFERROR(REPLACETEXTS(IFERROR(LEFT(A1,FIND("(",A1)-1),A1),$AL$1:$AL$14,$AM$1:$AM$14),""),CHAR(160),""))),"")) ->  | Q1: =IF(A1="","",IF(O1="",TRIM(CLEAN(SUBSTITUTE(REPLACETEXTS(IFERROR(LEFT(A1,FIND("(",A1)-1),A1),$AL$1:$AL$14,$AM$1:$AM$14),CHAR(160),""))),"")) ->  | R1: =TRIM(CLEAN(SUBSTITUTE(SUBSTITUTE(IFERROR(IF(AND(ISNUMBER(0+LEFT(Q1,1)),LEN(LEFT(Q1,FIND("-",Q1)-1))<20),LEFT(Q1,FIND("-",Q1)-1),""),IFERROR(LEFT(Q1,FIND("*",Q1)-1),Q1)),CHAR(160),"*"),"(",""))) ->  | S1: =IF(Q1="","",B1&" "&#REF!) ->  | U1: =TRIM(CLEAN(IF(COUNTA(#REF!)=0,"END",IF(P1="","",IF(ISNUMBER(0+SUBSTITUTE(P1,"of","")),S1,IF(ISNA(VLOOKUP(R1,$Z$1:$AB$129,1,0)),"",VLOOKUP(R1,$Z$1:$AB$129,1,0))))))) ->  | X1: =IF(W1="","",MATCH("?*",INDEX(W:W,1+MATCH(V1,W:W,0)):#REF!,0)) -> 
B2: race 1 | L2: =IFERROR(IF(AND(LEFT(A2,FIND(" ",A2)-1)="Race",LEFT(A3,FIND(" ",A3)-1)="OF"),"Race",""),"") ->  | M2: 1 | N2: =IF(F2="","",(IF(ISNUMBER(0+A2),0+A2,0+LEFT(A2,FIND("e",A2)-1)))) ->  | P2: =IF(A2="","",IF(O2="",TRIM(CLEAN(SUBSTITUTE(IFERROR(REPLACETEXTS(IFERROR(LEFT(A2,FIND("(",A2)-1),A2),$AL$1:$AL$14,$AM$1:$AM$14),""),CHAR(160),""))),"")) ->  | Q2: =IF(A2="","",IF(O2="",TRIM(CLEAN(SUBSTITUTE(REPLACETEXTS(IFERROR(LEFT(A2,FIND("(",A2)-1),A2),$AL$1:$AL$14,$AM$1:$AM$14),CHAR(160),""))),"")) ->  | R2: =TRIM(CLEAN(SUBSTITUTE(SUBSTITUTE(IFERROR(IF(AND(ISNUMBER(0+LEFT(Q2,1)),LEN(LEFT(Q2,FIND("-",Q2)-1))<20),LEFT(Q2,FIND("-",Q2)-1),""),IFERROR(LEFT(Q2,FIND("*",Q2)-1),Q2)),CHAR(160),"*"),"(",""))) ->  | S2: =IF(Q2="","",B2&" "&B3) ->  | T2: =IF(U2="","",1+COUNT($T$1:T1)) ->  | U2: =TRIM(CLEAN(IF(COUNTA(A3:A11)=0,"END",IF(P2="","",IF(ISNUMBER(0+SUBSTITUTE(P2,"of","")),S2,IF(ISNA(VLOOKUP(R2,$Z$1:$AB$129,1,0)),"",VLOOKUP(R2,$Z$1:$AB$129,1,0))))))) ->  | X2: =IF(W2="","",MATCH("?*",INDEX(W:W,1+MATCH(V2,W:W,0)):#REF!,0)) ->  | Y2: =IF(Z2="","",$D$1&M2&AA2) ->  | Z2: =IF(N2="","",N2&O2) ->  | AA2: =IF(N2="","",SUBSTITUTE(N2,CHAR(160),"")) ->  | AB2: =IF(N2="","",O2) ->  | AC2: =IF($AB2="","",SUBSTITUTE(B2,CHAR(160),"")) ->  | AD2: =IF($AB2="","",SUBSTITUTE(D2,CHAR(160),"")) ->  | AJ2: =IF($B2="","",SUBSTITUTE(J2,CHAR(160),"")) ->  | AK2: =IF(ISNA(VLOOKUP(Z2,$W$1:$X$129,2,0)),"",VLOOKUP(Z2,$W$1:$X$129,2,0)) -> 
A3: Tab | B3: Form L3 | C3: Horse | D3: TRat | E3: JRat | F3: API | G3: LSRat | H3: DLR | I3: PR | J3: AFS | K3: BP | L3: =IFERROR(IF(AND(LEFT(A3,FIND(" ",A3)-1)="Race",LEFT(A4,FIND(" ",A4)-1)="OF"),"Race",""),"") ->  | M3: =IF(L3<>"",M2+1,M2) -> 1 | AA3: =IF($B3="","",A3) -> Tab | AB3: =IF($A3="","",C3) -> Horse | AC3: =IF($A3="","",B3) -> Form L3 | AD3: =IF($A3="","",D3) -> TRat | AE3: JRat | AF3: API | AG3: LSRat | AH3: DLR | AI3: PR | AJ3: AFS | AK3: BP
A4: 1 | B4: 122 | C4: MANAVENDRA | D4: 4.1 | E4: 2.3 | F4: 5.3 | G4: 34.5 | H4: 7 | I4: 2.8 | J4: 17.1 | K4: 252.5 | M4: 1 | N4: =IF(F4="","",(IF(ISNUMBER(0+A4),0+A4,0+LEFT(A4,FIND("e",A4)-1)))) -> 1 | Y4: =IF(Z4="","",$D$1&M4&AA4) -> albury11 | Z4: =IF(N4="","",N4&O4) -> 1 | AA4: =IF(B4="","",A4) -> 1 | AB4: =IF(A4="","",C4) -> MANAVENDRA | AC4: =IF(A4="","",B4) -> 122 | AD4: =IF(A4="","",D4) -> 4.1 | AE4: =IF(A4="","",E4) -> 2.3 | AF4: =IF(A4="","",F4) -> 5.3 | AG4: =IF(B4="","",G4) -> 34.5 | AH4: =IF(A4="","",H4) -> 7 | AI4: =IF(A4="","",I4) -> 2.8 | AJ4: =IF(A4="","",J4) -> 17.1 | AK4: =IF(B4="","",K4) -> 252.5
A5: 2 | B5: 211 | C5: WARRALEA DIAMOND | D5: 4.4 | E5: 2.3 | F5: 3.5 | G5: 34 | H5: 10 | I5: 4.2 | J5: 16.5 | K5: 201 | M5: 1 | N5: 2 | Y5: albury12 | Z5: 2 | AA5: 2 | AB5: WARRALEA DIAMOND | AC5: 211 | AD5: 4.4 | AE5: 2.3 | AF5: 3.5 | AG5: 34 | AH5: 10 | AI5: 4.2 | AJ5: 16.5 | AK5: 201
A6: 3 | B6: 261 | C6: MANITOBA | D6: 3 | E6: 3.6 | F6: 2.1 | G6: 29.5 | H6: 13 | I6: 7 | J6: 17.3 | K6: 157 | M6: 1 | N6: 3 | Y6: albury13 | Z6: 3 | AA6: 3 | AB6: MANITOBA | AC6: 261 | AD6: 3 | AE6: 3.6 | AF6: 2.1 | AG6: 29.5 | AH6: 13 | AI6: 7 | AJ6: 17.3 | AK6: 157
A7: 4 | B7: x53 | C7: SIROTA | D7: 2.1 | E7: 3.5 | F7: 1 | G7: 29.5 | H7: 14 | I7: 13 | J7: 17 | K7: 110 | M7: 1 | N7: 4 | Y7: albury14 | Z7: 4 | AA7: 4 | AB7: SIROTA | AC7: x53 | AD7: 2.1 | AE7: 3.5 | AF7: 1 | AG7: 29.5 | AH7: 14 | AI7: 13 | AJ7: 17 | AK7: 110
A8: 5 | B8: 431 | C8: ANTIQUE MISS | D8: 3.7 | E8: 4.8 | F8: 4.3 | G8: 32.5 | H8: 24 | I8: 5 | J8: 17 | K8: 181 | M8: 1 | N8: 5 | Y8: albury15 | Z8: 5 | AA8: 5 | AB8: ANTIQUE MISS | AC8: 431 | AD8: 3.7 | AE8: 4.8 | AF8: 4.3 | AG8: 32.5 | AH8: 24 | AI8: 5 | AJ8: 17 | AK8: 181
A9: 6 | B9: 562 | C9: PRIDE OF TUSCANY | D9: 4.4 | E9: 2.2 | F9: 0.9 | G9: 27.5 | H9: 10 | I9: 8.5 | J9: 15.9 | K9: 148.5 | M9: 1 | N9: 6 | Y9: albury16 | Z9: 6 | AA9: 6 | AB9: PRIDE OF TUSCANY | AC9: 562 | AD9: 4.4 | AE9: 2.2 | AF9: 0.9 | AG9: 27.5 | AH9: 10 | AI9: 8.5 | AJ9: 15.9 | AK9: 148.5
M10: 1
M11: 1
M12: 1
M13: 1
M14: 1 | AM14: 55
M15: 1
B16: race 2 | H16: =SUM(H4:H15) -> 78 | M16: 2 | P16: =IF(A16="","",IF(O16="",TRIM(CLEAN(SUBSTITUTE(IFERROR(REPLACETEXTS(IFERROR(LEFT(A16,FIND("(",A16)-1),A16),$AL$1:$AL$14,$AM$1:$AM$14),""),CHAR(160),""))),"")) ->  | Q16: =IF(A16="","",IF(O16="",TRIM(CLEAN(SUBSTITUTE(REPLACETEXTS(IFERROR(LEFT(A16,FIND("(",A16)-1),A16),$AL$1:$AL$14,$AM$1:$AM$14),CHAR(160),""))),"")) ->  | R16: =TRIM(CLEAN(SUBSTITUTE(SUBSTITUTE(IFERROR(IF(AND(ISNUMBER(0+LEFT(Q16,1)),LEN(LEFT(Q16,FIND("-",Q16)-1))<20),LEFT(Q16,FIND("-",Q16)-1),""),IFERROR(LEFT(Q16,FIND("*",Q16)-1),Q16)),CHAR(160),"*"),"(",""))) ->  | S16: =IF(Q16="","",B16&" "&B17) ->  | T16: =IF(U16="","",1+COUNT($T$1:T14)) ->  | U16: =TRIM(CLEAN(IF(COUNTA(A17:A21)=0,"END",IF(P16="","",IF(ISNUMBER(0+SUBSTITUTE(P16,"of","")),S16,IF(ISNA(VLOOKUP(R16,$Z$1:$AB$129,1,0)),"",VLOOKUP(R16,$Z$1:$AB$129,1,0))))))) ->  | V16: =IF(ISNA(VLOOKUP(1+COUNTA($V$1:V14),$T$1:$U$129,2,0)),"",VLOOKUP(1+COUNTA($V$1:V14),$T$1:$U$129,2,0)) ->  | W16: =IF(ISNA(VLOOKUP(V16,$Z$1:$AJ$129,1,0)),IF(V16="END","END",""),VLOOKUP(V16,$Z$1:$AJ$129,1,0)) ->  | X16: =IF(W16="","",MATCH("?*",INDEX(W:W,1+MATCH(V16,W:W,0)):#REF!,0)) ->  | AA16: =IF(N16="","",SUBSTITUTE(N16,CHAR(160),"")) ->  | AB16: =IF(N16="","",O16) ->  | AC16: =IF($AB16="","",SUBSTITUTE(B16,CHAR(160),"")) ->  | AD16: =IF($AB16="","",SUBSTITUTE(D16,CHAR(160),"")) ->  | AJ16: =IF($B16="","",SUBSTITUTE(J16,CHAR(160),"")) ->  | AK16: =IF(ISNA(VLOOKUP(Z16,$W$1:$X$129,2,0)),"",VLOOKUP(Z16,$W$1:$X$129,2,0)) ->  | AL16: Rewards
A17: Tab | B17: Form L3 | C17: Horse | D17: TRat | E17: JRat | F17: API | G17: LSRat | H17: DLR | I17: PR | J17: AFS | K17: BP | L17: =IFERROR(IF(AND(LEFT(A17,FIND(" ",A17)-1)="Race",LEFT(A18,FIND(" ",A18)-1)="OF"),"Race",""),"") ->  | M17: 2 | AA17: =IF($B17="","",A17) -> Tab | AB17: =IF($A17="","",C17) -> Horse | AC17: =IF($A17="","",B17) -> Form L3 | AD17: =IF($A17="","",D17) -> TRat | AE17: JRat | AF17: API | AG17: LSRat | AH17: DLR | AI17: PR | AJ17: AFS | AK17: BP
A18: 1 | B18: 9x6 | C18: SPECIAL STREET | D18: 1.8 | E18: 2.1 | F18: 1.5 | G18: 14.5 | H18: 13 | I18: 3 | J18: 17.1 | K18: 150.5 | M18: 2 | N18: =IF(F18="","",(IF(ISNUMBER(0+A18),0+A18,0+LEFT(A18,FIND("e",A18)-1)))) -> 1 | P18: =IF(A18="","",IF(O18="",TRIM(CLEAN(SUBSTITUTE(IFERROR(REPLACETEXTS(IFERROR(LEFT(A18,FIND("(",A18)-1),A18),$AL$1:$AL$14,$AM$1:$AM$14),""),CHAR(160),""))),"")) -> 1 | Q18: =IF(A18="","",IF(O18="",TRIM(CLEAN(SUBSTITUTE(REPLACETEXTS(IFERROR(LEFT(A18,FIND("(",A18)-1),A18),$AL$1:$AL$14,$AM$1:$AM$14),CHAR(160),""))),"")) -> 1 | R18: =TRIM(CLEAN(SUBSTITUTE(SUBSTITUTE(IFERROR(IF(AND(ISNUMBER(0+LEFT(Q18,1)),LEN(LEFT(Q18,FIND("-",Q18)-1))<20),LEFT(Q18,FIND("-",Q18)-1),""),IFERROR(LEFT(Q18,FIND("*",Q18)-1),Q18)),CHAR(160),"*"),"(",""))) -> 1 | S18: =IF(Q18="","",B18&" "&#REF!) ->  | X18: =IF(W18="","",MATCH("?*",INDEX(W:W,1+MATCH(V18,W:W,0)):#REF!,0)) ->  | Y18: =IF(Z18="","",$D$1&M18&AA18) -> albury21 | Z18: =IF(N18="","",N18&O18) -> 1 | AA18: =IF(B18="","",A18) -> 1 | AB18: =IF(A18="","",C18) -> SPECIAL STREET | AC18: =IF(A18="","",B18) -> 9x6 | AD18: =IF(A18="","",D18) -> 1.8 | AE18: =IF(A18="","",E18) -> 2.1 | AF18: =IF(A18="","",F18) -> 1.5 | AG18: =IF(A18="","",G18) -> 14.5 | AH18: =IF(A18="","",H18) -> 13 | AI18: =IF(A18="","",I18) -> 3 | AJ18: =IF(A18="","",J18) -> 17.1 | AK18: =IF(B18="","",K18) -> 150.5
A19: 2 | B19: 3x | C19: ZING TO WIN | D19: 4.9 | E19: 3.3 | F19: 2 | G19: 25 | H19: 149 | I19: 5 | J19: 0 | K19: 107.5 | M19: 2 | N19: 2 | P19: =IF(A19="","",IF(O19="",TRIM(CLEAN(SUBSTITUTE(IFERROR(REPLACETEXTS(IFERROR(LEFT(A19,FIND("(",A19)-1),A19),$AL$1:$AL$14,$AM$1:$AM$14),""),CHAR(160),""))),"")) -> 2 | Q19: =IF(A19="","",IF(O19="",TRIM(CLEAN(SUBSTITUTE(REPLACETEXTS(IFERROR(LEFT(A19,FIND("(",A19)-1),A19),$AL$1:$AL$14,$AM$1:$AM$14),CHAR(160),""))),"")) -> 2 | R19: =TRIM(CLEAN(SUBSTITUTE(SUBSTITUTE(IFERROR(IF(AND(ISNUMBER(0+LEFT(Q19,1)),LEN(LEFT(Q19,FIND("-",Q19)-1))<20),LEFT(Q19,FIND("-",Q19)-1),""),IFERROR(LEFT(Q19,FIND("*",Q19)-1),Q19)),CHAR(160),"*"),"(",""))) -> 2 | S19: =IF(Q19="","",B19&" "&#REF!) ->  | X19: =IF(W19="","",MATCH("?*",INDEX(W:W,1+MATCH(V19,W:W,0)):#REF!,0)) ->  | Y19: albury22 | Z19: 2 | AA19: =IF(N19="","",SUBSTITUTE(N19,CHAR(160),"")) -> 2 | AB19: =IF(A19="","",C19) -> ZING TO WIN | AC19: =IF($AB19="","",SUBSTITUTE(B19,CHAR(160),"")) -> 3x | AD19: =IF($AB19="","",SUBSTITUTE(D19,CHAR(160),"")) -> 4.9 | AE19: =IF($AB19="","",SUBSTITUTE(E19,CHAR(160),"")) -> 3.3 | AF19: =IF($AB19="","",SUBSTITUTE(F19,CHAR(160),"")) -> 2 | AG19: =IF($AB19="","",SUBSTITUTE(G19,CHAR(160),"")) -> 25 | AH19: =IF($AB19="","",SUBSTITUTE(H19,CHAR(160),"")) -> 149 | AI19: 5 | AJ19: 0 | AK19: 107.5
A20: 3 | B20: - | C20: DREAMERS NEVER DIE | D20: 4.2 | E20: 4.4 | F20: 0 | G20: 0 | H20: 0 | I20: 11 | J20: 0 | K20: 81 | M20: 2 | N20: 3 | P20: =IF(A20="","",IF(O20="",TRIM(CLEAN(SUBSTITUTE(IFERROR(REPLACETEXTS(IFERROR(LEFT(A20,FIND("(",A20)-1),A20),$AL$1:$AL$14,$AM$1:$AM$14),""),CHAR(160),""))),"")) -> 3 | Q20: =IF(A20="","",IF(O20="",TRIM(CLEAN(SUBSTITUTE(REPLACETEXTS(IFERROR(LEFT(A20,FIND("(",A20)-1),A20),$AL$1:$AL$14,$AM$1:$AM$14),CHAR(160),""))),"")) -> 3 | R20: 3 | S20: =IF(Q20="","",B20&" "&#REF!) ->  | X20: =IF(W20="","",MATCH("?*",INDEX(W:W,1+MATCH(V20,W:W,0)):#REF!,0)) ->  | Y20: albury23 | Z20: 3 | AA20: 3 | AB20: DREAMERS NEVER DIE | AC20: - | AD20: 4.2 | AE20: 4.4 | AF20: 0 | AG20: 0 | AH20: 0 | AI20: 11 | AJ20: 0 | AK20: 81
A21: 4 | B21: - | C21: HANCHI | D21: 3.7 | E21: 3.3 | F21: 0 | G21: 0 | H21: 0 | I21: 20 | J21: 0 | K21: 61.5 | M21: 2 | N21: 4 | P21: =IF(A21="","",IF(O21="",TRIM(CLEAN(SUBSTITUTE(IFERROR(REPLACETEXTS(IFERROR(LEFT(A21,FIND("(",A21)-1),A21),$AL$1:$AL$14,$AM$1:$AM$14),""),CHAR(160),""))),"")) -> 4 | Q21: =IF(A21="","",IF(O21="",TRIM(CLEAN(SUBSTITUTE(REPLACETEXTS(IFERROR(LEFT(A21,FIND("(",A21)-1),A21),$AL$1:$AL$14,$AM$1:$AM$14),CHAR(160),""))),"")) -> 4 | R21: 4 | S21: =IF(Q21="","",B21&" "&#REF!) ->  | X21: =IF(W21="","",MATCH("?*",INDEX(W:W,1+MATCH(V21,W:W,0)):#REF!,0)) ->  | Y21: albury24 | Z21: 4 | AA21: 4 | AB21: HANCHI | AC21: - | AD21: 3.7 | AE21: 3.3 | AF21: 0 | AG21: 0 | AH21: 0 | AI21: 20 | AJ21: 0 | AK21: 61.5
A22: 5 | B22: - | C22: KING OF FRANCE | D22: 4.9 | E22: 3.8 | F22: 0 | G22: 0 | H22: 0 | I22: 8 | J22: 0 | K22: 86 | M22: 2 | N22: 5 | P22: =IF(A22="","",IF(O22="",TRIM(CLEAN(SUBSTITUTE(IFERROR(REPLACETEXTS(IFERROR(LEFT(A22,FIND("(",A22)-1),A22),$AL$1:$AL$14,$AM$1:$AM$14),""),CHAR(160),""))),"")) -> 5 | Q22: =IF(A22="","",IF(O22="",TRIM(CLEAN(SUBSTITUTE(REPLACETEXTS(IFERROR(LEFT(A22,FIND("(",A22)-1),A22),$AL$1:$AL$14,$AM$1:$AM$14),CHAR(160),""))),"")) -> 5 | R22: 5 | S22: =IF(Q22="","",B22&" "&#REF!) ->  | X22: =IF(W22="","",MATCH("?*",INDEX(W:W,1+MATCH(V22,W:W,0)):#REF!,0)) ->  | Y22: albury25 | Z22: 5 | AA22: 5 | AB22: KING OF FRANCE | AC22: - | AD22: 4.9 | AE22: 3.8 | AF22: 0 | AG22: 0 | AH22: 0 | AI22: 8 | AJ22: 0 | AK22: 86
A23: 6 | B23: 34x | C23: STROMY'S SALUTE | D23: 2.3 | E23: 2.4 | F23: 4.4 | G23: 22.5 | H23: 102 | I23: 9.5 | J23: 17 | K23: 81.5 | M23: 2 | N23: 6 | P23: =IF(A23="","",IF(O23="",TRIM(CLEAN(SUBSTITUTE(IFERROR(REPLACETEXTS(IFERROR(LEFT(A23,FIND("(",A23)-1),A23),$AL$1:$AL$14,$AM$1:$AM$14),""),CHAR(160),""))),"")) -> 6 | Q23: =IF(A23="","",IF(O23="",TRIM(CLEAN(SUBSTITUTE(REPLACETEXTS(IFERROR(LEFT(A23,FIND("(",A23)-1),A23),$AL$1:$AL$14,$AM$1:$AM$14),CHAR(160),""))),"")) -> 6 | R23: 6 | S23: =IF(Q23="","",B23&" "&#REF!) ->  | X23: =IF(W23="","",MATCH("?*",INDEX(W:W,1+MATCH(V23,W:W,0)):#REF!,0)) ->  | Y23: albury26 | Z23: 6 | AA23: 6 | AB23: STROMY'S SALUTE | AC23: 34x | AD23: 2.3 | AE23: 2.4 | AF23: 4.4 | AG23: 22.5 | AH23: 102 | AI23: 9.5 | AJ23: 17 | AK23: 81.5
A24: 7 | B24: 43x | C24: GOOD VIBES | D24: 3.5 | E24: 4 | F24: 5.1 | G24: 24 | H24: 200 | I24: 6 | J24: 17.2 | K24: 100.5 | M24: 2 | N24: 7 | P24: =IF(A24="","",IF(O24="",TRIM(CLEAN(SUBSTITUTE(IFERROR(REPLACETEXTS(IFERROR(LEFT(A24,FIND("(",A24)-1),A24),$AL$1:$AL$14,$AM$1:$AM$14),""),CHAR(160),""))),"")) -> 7 | Q24: =IF(A24="","",IF(O24="",TRIM(CLEAN(SUBSTITUTE(REPLACETEXTS(IFERROR(LEFT(A24,FIND("(",A24)-1),A24),$AL$1:$AL$14,$AM$1:$AM$14),CHAR(160),""))),"")) -> 7 | R24: 7 | S24: =IF(Q24="","",B24&" "&#REF!) ->  | X24: =IF(W24="","",MATCH("?*",INDEX(W:W,1+MATCH(V24,W:W,0)):#REF!,0)) ->  | Y24: albury27 | Z24: 7 | AA24: 7 | AB24: GOOD VIBES | AC24: 43x | AD24: 3.5 | AE24: 4 | AF24: 5.1 | AG24: 24 | AH24: 200 | AI24: 6 | AJ24: 17.2 | AK24: 100.5
A25: 8 | B25: - | C25: SASSY ONASSIS | D25: 2.8 | E25: 3 | F25: 0 | G25: 0 | H25: 0 | I25: 14 | J25: 0 | K25: 73.5 | M25: 2 | N25: 8 | P25: =IF(A25="","",IF(O25="",TRIM(CLEAN(SUBSTITUTE(IFERROR(REPLACETEXTS(IFERROR(LEFT(A25,FIND("(",A25)-1),A25),$AL$1:$AL$14,$AM$1:$AM$14),""),CHAR(160),""))),"")) -> 8 | Q25: =IF(A25="","",IF(O25="",TRIM(CLEAN(SUBSTITUTE(REPLACETEXTS(IFERROR(LEFT(A25,FIND("(",A25)-1),A25),$AL$1:$AL$14,$AM$1:$AM$14),CHAR(160),""))),"")) -> 8 | R25: 8 | S25: =IF(Q25="","",B25&" "&#REF!) ->  | X25: =IF(W25="","",MATCH("?*",INDEX(W:W,1+MATCH(V25,W:W,0)):#REF!,0)) ->  | Y25: albury28 | Z25: 8 | AA25: 8 | AB25: SASSY ONASSIS | AC25: =IF($AB25="","",SUBSTITUTE(B25,CHAR(160),"")) -> - | AD25: =IF($AB25="","",SUBSTITUTE(D25,CHAR(160),"")) -> 2.8 | AE25: =IF($AB25="","",SUBSTITUTE(E25,CHAR(160),"")) -> 3 | AF25: =IF($AB25="","",SUBSTITUTE(F25,CHAR(160),"")) -> 0 | AG25: =IF($AB25="","",SUBSTITUTE(G25,CHAR(160),"")) -> 0 | AH25: =IF($AB25="","",SUBSTITUTE(H25,CHAR(160),"")) -> 0 | AI25: =IF(A25="","",I25) -> 14 | AJ25: =IF(A25="","",J25) -> 0 | AK25: =IF(B25="","",K25) -> 73.5
M26: 2 | P26: =IF(A26="","",IF(O26="",TRIM(CLEAN(SUBSTITUTE(IFERROR(REPLACETEXTS(IFERROR(LEFT(A26,FIND("(",A26)-1),A26),$AL$1:$AL$14,$AM$1:$AM$14),""),CHAR(160),""))),"")) ->  | Q26: =IF(A26="","",IF(O26="",TRIM(CLEAN(SUBSTITUTE(REPLACETEXTS(IFERROR(LEFT(A26,FIND("(",A26)-1),A26),$AL$1:$AL$14,$AM$1:$AM$14),CHAR(160),""))),"")) ->  | S26: =IF(Q26="","",B26&" "&#REF!) ->  | X26: =IF(W26="","",MATCH("?*",INDEX(W:W,1+MATCH(V26,W:W,0)):#REF!,0)) ->  | AB26: =IF(N26="","",O26) -> 
M27: 2 | P27: =IF(A27="","",IF(O27="",TRIM(CLEAN(SUBSTITUTE(IFERROR(REPLACETEXTS(IFERROR(LEFT(A27,FIND("(",A27)-1),A27),$AL$1:$AL$14,$AM$1:$AM$14),""),CHAR(160),""))),"")) ->  | Q27: =IF(A27="","",IF(O27="",TRIM(CLEAN(SUBSTITUTE(REPLACETEXTS(IFERROR(LEFT(A27,FIND("(",A27)-1),A27),$AL$1:$AL$14,$AM$1:$AM$14),CHAR(160),""))),"")) ->  | S27: =IF(Q27="","",B27&" "&#REF!) ->  | X27: =IF(W27="","",MATCH("?*",INDEX(W:W,1+MATCH(V27,W:W,0)):#REF!,0)) ->  | AB27: =IF(N27="","",O27) -> 
M28: 2 | P28: =IF(A28="","",IF(O28="",TRIM(CLEAN(SUBSTITUTE(IFERROR(REPLACETEXTS(IFERROR(LEFT(A28,FIND("(",A28)-1),A28),$AL$1:$AL$14,$AM$1:$AM$14),""),CHAR(160),""))),"")) ->  | Q28: =IF(A28="","",IF(O28="",TRIM(CLEAN(SUBSTITUTE(REPLACETEXTS(IFERROR(LEFT(A28,FIND("(",A28)-1),A28),$AL$1:$AL$14,$AM$1:$AM$14),CHAR(160),""))),"")) ->  | S28: =IF(Q28="","",B28&" "&#REF!) ->  | X28: =IF(W28="","",MATCH("?*",INDEX(W:W,1+MATCH(V28,W:W,0)):#REF!,0)) ->  | AB28: =IF(N28="","",O28) -> 
M29: 2 | P29: =IF(A29="","",IF(O29="",TRIM(CLEAN(SUBSTITUTE(IFERROR(REPLACETEXTS(IFERROR(LEFT(A29,FIND("(",A29)-1),A29),$AL$1:$AL$14,$AM$1:$AM$14),""),CHAR(160),""))),"")) ->  | Q29: =IF(A29="","",IF(O29="",TRIM(CLEAN(SUBSTITUTE(REPLACETEXTS(IFERROR(LEFT(A29,FIND("(",A29)-1),A29),$AL$1:$AL$14,$AM$1:$AM$14),CHAR(160),""))),"")) ->  | S29: =IF(Q29="","",B29&" "&#REF!) ->  | T29: =IF(U29="","",1+COUNT($T$1:T28)) ->  | U29: =TRIM(CLEAN(IF(COUNTA(A31:A31)=0,"END",IF(P29="","",IF(ISNUMBER(0+SUBSTITUTE(P29,"of","")),S29,IF(ISNA(VLOOKUP(R29,$Z$1:$AB$129,1,0)),"",VLOOKUP(R29,$Z$1:$AB$129,1,0))))))) ->  | X29: =IF(W29="","",MATCH("?*",INDEX(W:W,1+MATCH(V29,W:W,0)):#REF!,0)) ->  | AB29: =IF(N29="","",O29) -> 
B30: race 3 | M30: 3
A31: Tab | B31: Form L3 | C31: Horse | D31: TRat | E31: JRat | F31: API | G31: LSRat | H31: DLR | I31: PR | J31: AFS | K31: BP | L31: =IFERROR(IF(AND(LEFT(A31,FIND(" ",A31)-1)="Race",LEFT(#REF!,FIND(" ",#REF!)-1)="OF"),"Race",""),"") ->  | M31: 3 | P31: =IF(A31="","",IF(O31="",TRIM(CLEAN(SUBSTITUTE(IFERROR(REPLACETEXTS(IFERROR(LEFT(A31,FIND("(",A31)-1),A31),$AL$1:$AL$14,$AM$1:$AM$14),""),CHAR(160),""))),"")) -> Tab | Q31: =IF(A31="","",IF(O31="",TRIM(CLEAN(SUBSTITUTE(REPLACETEXTS(IFERROR(LEFT(A31,FIND("(",A31)-1),A31),$AL$1:$AL$14,$AM$1:$AM$14),CHAR(160),""))),"")) -> Tab | R31: Tab | S31: =IF(Q31="","",B31&" "&#REF!) ->  | T31: =IF(U31="","",1+COUNT($T$1:T29)) ->  | U31: =TRIM(CLEAN(IF(COUNTA(A32:A32)=0,"END",IF(P31="","",IF(ISNUMBER(0+SUBSTITUTE(P31,"of","")),S31,IF(ISNA(VLOOKUP(R31,$Z$1:$AB$129,1,0)),"",VLOOKUP(R31,$Z$1:$AB$129,1,0))))))) ->  | Y31: =IF(Z31="","",$D$1&M31&AA31) ->  | Z31: =IF(N31="","",N31&O31) ->  | AA31: =IF($B31="","",A31) -> Tab | AB31: =IF($A31="","",C31) -> Horse | AC31: =IF($A31="","",B31) -> Form L3 | AD31: =IF($A31="","",D31) -> TRat | AE31: JRat | AF31: API | AG31: LSRat | AH31: DLR | AI31: PR | AJ31: AFS | AK31: BP
A32: 1 | B32: 67x | C32: FIRST LAW | D32: 3.5 | E32: 3.3 | F32: 3.6 | G32: 30 | H32: 133 | I32: 6 | J32: 17.9 | K32: 136 | M32: 3 | N32: =IF(F32="","",(IF(ISNUMBER(0+A32),0+A32,0+LEFT(A32,FIND("e",A32)-1)))) -> 1 | Y32: albury31 | Z32: 1 | AA32: =IF(N32="","",SUBSTITUTE(N32,CHAR(160),"")) -> 1 | AB32: =IF(A32="","",C32) -> FIRST LAW | AC32: =IF($AB32="","",SUBSTITUTE(B32,CHAR(160),"")) -> 67x | AD32: =IF($AB32="","",SUBSTITUTE(D32,CHAR(160),"")) -> 3.5 | AE32: =IF($AB32="","",SUBSTITUTE(E32,CHAR(160),"")) -> 3.3 | AF32: =IF($AB32="","",SUBSTITUTE(F32,CHAR(160),"")) -> 3.6 | AG32: =IF($AB32="","",SUBSTITUTE(G32,CHAR(160),"")) -> 30 | AH32: =IF($AB32="","",SUBSTITUTE(H32,CHAR(160),"")) -> 133 | AI32: =IF(A32="","",I32) -> 6 | AJ32: =IF(A32="","",J32) -> 17.9 | AK32: =IF(B32="","",K32) -> 136 | AL32: 99
A33: 2 | B33: 30x | C33: STORM LORD | D33: 1.9 | E33: 2.6 | F33: 6.8 | G33: 30.5 | H33: 108 | I33: 21 | J33: 18 | K33: 75.5 | M33: 3 | N33: 2 | Y33: albury32 | Z33: 2 | AA33: 2 | AB33: STORM LORD | AC33: 30x | AD33: 1.9 | AE33: 2.6 | AF33: 6.8 | AG33: 30.5 | AH33: 108 | AI33: =IF(A33="","",H33) -> 108 | AJ33: 18 | AK33: 75.5
A34: 3 | B34: 77x | C34: IMPOSING BROOK | D34: 2.5 | E34: 2.6 | F34: 0.5 | G34: 32.5 | H34: 194 | I34: 12 | K34: 93 | M34: 3 | N34: 3 | Y34: albury33 | Z34: 3 | AA34: 3 | AB34: IMPOSING BROOK | AC34: 77x | AD34: 2.5 | AE34: 2.6 | AF34: 0.5 | AG34: 32.5 | AH34: 194 | AI34: 194 | AJ34: 0 | AK34: 93
A35: 4 | B35: 2x3 | C35: ROCK THIS TOWN | D35: 1.9 | E35: 2.7 | F35: 4.7 | G35: 32.5 | H35: 7 | I35: 3 | J35: 17.9 | K35: 204.5 | M35: 3 | N35: 4 | Y35: albury34 | Z35: 4 | AA35: 4 | AB35: ROCK THIS TOWN | AC35: 2x3 | AD35: 1.9 | AE35: 2.7 | AF35: 4.7 | AG35: 32.5 | AH35: 7 | AI35: 7 | AJ35: 17.9 | AK35: 204.5
A36: 5 | B36: 417 | C36: SNIPPENOVA | D36: 4.1 | E36: 2.4 | F36: 5.4 | G36: 28 | H36: 18 | I36: 3.7 | J36: 17.6 | K36: 200.5 | M36: 3 | N36: 5 | Y36: albury35 | Z36: 5 | AA36: 5 | AB36: SNIPPENOVA | AC36: 417 | AD36: 4.1 | AE36: 2.4 | AF36: 5.4 | AG36: 28 | AH36: 18 | AI36: 18 | AJ36: 17.6 | AK36: 200.5
A37: 6 | B37: 30x | C37: SHAKE BABY SHAKE | D37: 1.8 | E37: 1.8 | F37: 2.2 | G37: 10 | H37: 122 | I37: 9.5 | J37: 17.2 | K37: 100 | M37: 3 | N37: 6 | Y37: albury36 | Z37: 6 | AA37: 6 | AB37: SHAKE BABY SHAKE | AC37: 30x | AD37: 1.8 | AE37: 1.8 | AF37: 2.2 | AG37: 10 | AH37: 122 | AI37: 122 | AJ37: 17.2 | AK37: 100
A38: 7 | B38: 0x5 | C38: BACK IN BLUE | D38: 2 | E38: 2.1 | F38: 4.2 | G38: 26 | H38: 10 | I38: 14 | J38: 17.4 | K38: 87.5 | M38: 3 | N38: 7 | Y38: albury37 | Z38: 7 | AA38: 7 | AB38: BACK IN BLUE | AC38: 0x5 | AD38: 2 | AE38: 2.1 | AF38: 4.2 | AG38: 26 | AH38: 10 | AI38: 10 | AJ38: 17.4 | AK38: 87.5
A39: 8 | B39: 76x | C39: ZENAZE | D39: 1.9 | E39: 2.1 | F39: 1.1 | G39: 27.5 | H39: 107 | I39: 14 | J39: 18.4 | K39: 87.5 | M39: 3 | N39: 8 | Y39: albury38 | Z39: 8 | AA39: 8 | AB39: ZENAZE | AC39: 76x | AD39: 1.9 | AE39: 2.1 | AF39: 1.1 | AG39: 27.5 | AH39: 107 | AI39: 107 | AJ39: 18.4 | AK39: 87.5
M40: 3
M41: 3 | AI41: =IF(A41="","",I41) -> 
M42: 3 | AI42: =IF(A42="","",I42) -> 
M43: 4 | AI43: =IF(A43="","",I43) -> 
B44: race 4 | M44: 4
A45: Tab | B45: Form L3 | C45: Horse | D45: TRat | E45: JRat | F45: API | G45: LSRat | H45: DLR | I45: PR | J45: AFS | K45: BP | M45: 4 | AA45: =IF($B45="","",A45) -> Tab | AB45: =IF($A45="","",C45) -> Horse | AC45: =IF($A45="","",B45) -> Form L3 | AD45: =IF($A45="","",D45) -> TRat | AE45: JRat | AF45: API | AG45: LSRat | AH45: DLR | AI45: PR | AJ45: AFS | AK45: BP
A46: 1 | B46: 7x0 | C46: KEEP IT HUSH | D46: 2.3 | E46: 2.4 | F46: 0.9 | G46: 10 | H46: 20 | I46: 9 | J46: 17.5 | K46: 105 | M46: 4 | N46: =IF(F46="","",(IF(ISNUMBER(0+A46),0+A46,0+LEFT(A46,FIND("e",A46)-1)))) -> 1 | Y46: =IF(Z46="","",$D$1&M46&AA46) -> albury41 | Z46: =IF(N46="","",N46&O46) -> 1 | AA46: =IF(N46="","",SUBSTITUTE(N46,CHAR(160),"")) -> 1 | AB46: =IF(A46="","",C46) -> KEEP IT HUSH | AC46: =IF($AB46="","",SUBSTITUTE(B46,CHAR(160),"")) -> 7x0 | AD46: =IF($AB46="","",SUBSTITUTE(D46,CHAR(160),"")) -> 2.3 | AE46: =IF($AB46="","",SUBSTITUTE(E46,CHAR(160),"")) -> 2.4 | AF46: =IF($AB46="","",SUBSTITUTE(F46,CHAR(160),"")) -> 0.9 | AG46: =IF($AB46="","",SUBSTITUTE(G46,CHAR(160),"")) -> 10 | AH46: =IF($AB46="","",SUBSTITUTE(H46,CHAR(160),"")) -> 20 | AI46: =IF(A46="","",I46) -> 9 | AJ46: =IF(A46="","",J46) -> 17.5 | AK46: =IF(B46="","",K46) -> 105
A47: 2 | B47: 3x2 | C47: LOOK HERE PUNK | D47: 1.8 | E47: 2.9 | F47: 2.4 | G47: 27 | H47: 10 | I47: 6.5 | J47: 17.1 | K47: 128 | M47: 4 | N47: 2 | Y47: albury42 | Z47: 2 | AA47: 2 | AB47: LOOK HERE PUNK | AC47: 3x2 | AD47: 1.8 | AE47: 2.9 | AF47: 2.4 | AG47: 27 | AH47: 10 | AI47: 6.5 | AJ47: 17.1 | AK47: 128
A48: 3 | B48: 862 | C48: BLACK FOR CASH | D48: 3.3 | E48: 3.1 | F48: 1 | G48: 29.5 | H48: 24 | I48: 13 | J48: 17.3 | K48: 94.5 | M48: 4 | N48: 3 | Y48: albury43 | Z48: 3 | AA48: 3 | AB48: BLACK FOR CASH | AC48: 862 | AD48: 3.3 | AE48: 3.1 | AF48: 1 | AG48: 29.5 | AH48: 24 | AI48: 13 | AJ48: 17.3 | AK48: 94.5
A49: 4 | B49: 347 | C49: THE COLLECTOR | D49: 4 | E49: 4.4 | F49: 0.9 | G49: 19 | H49: 14 | I49: 3.3 | J49: 17.3 | K49: 187 | M49: 4 | N49: 4 | Y49: albury44 | Z49: 4 | AA49: 4 | AB49: THE COLLECTOR | AC49: 347 | AD49: 4 | AE49: 4.4 | AF49: 0.9 | AG49: 19 | AH49: 14 | AI49: 3.3 | AJ49: 17.3 | AK49: 187
A50: 5 | B50: 0x3 | C50: TIN CHOOKS | D50: 1.9 | E50: 2.9 | F50: 0.9 | G50: 25.5 | H50: 13 | I50: 17 | J50: 17 | K50: 86 | M50: 4 | N50: 5 | Y50: albury45 | Z50: 5 | AA50: 5 | AB50: TIN CHOOKS | AC50: 0x3 | AD50: 1.9 | AE50: 2.9 | AF50: 0.9 | AG50: 25.5 | AH50: 13 | AI50: 17 | AJ50: 17 | AK50: 86
A51: 6 | B51: - | C51: GREAT DEMON | D51: 3.9 | E51: 4 | F51: 0 | H51: 0 | I51: 26 | K51: 71.5 | M51: 4 | N51: 6 | Y51: albury46 | Z51: 6 | AA51: 6 | AB51: GREAT DEMON | AC51: - | AD51: 3.9 | AE51: 4 | AF51: 0 | AH51: 0 | AI51: 26 | AJ51: 0 | AK51: 71.5
A52: 7 | B52: 578 | C52: DELTA ANNE | D52: 2 | E52: 1.9 | F52: 1.3 | G52: 15 | H52: 28 | I52: 11 | J52: 17.7 | K52: 98.5 | M52: 4 | N52: 7 | Y52: albury47 | Z52: 7 | AA52: 7 | AB52: DELTA ANNE | AC52: 578 | AD52: 2 | AE52: 1.9 | AF52: 1.3 | AG52: 15 | AH52: 28 | AI52: 11 | AJ52: 17.7 | AK52: 98.5
A53: 8 | B53: 8x6 | C53: LITTLE PIPPA | D53: 2.4 | E53: 2.1 | F53: 0.4 | G53: 23.5 | H53: 24 | I53: 41 | J53: 17.2 | K53: 63.5 | M53: 4 | N53: 8 | Y53: albury48 | Z53: 8 | AA53: 8 | AB53: LITTLE PIPPA | AC53: 8x6 | AD53: 2.4 | AE53: 2.1 | AF53: 0.4 | AG53: 23.5 | AH53: 24 | AI53: 41 | AJ53: 17.2 | AK53: 63.5
A54: 9 | B54: 2x5 | C54: FASHION STAKES | D54: 4 | E54: 3.3 | F54: 4.1 | G54: 23 | H54: 28 | I54: 4.8 | J54: 17.5 | K54: 151.5 | M54: 4 | N54: 9 | Y54: albury49 | Z54: 9 | AA54: 9 | AB54: FASHION STAKES | AC54: 2x5 | AD54: 4 | AE54: 3.3 | AF54: 4.1 | AG54: 23 | AH54: 28 | AI54: 4.8 | AJ54: 17.5 | AK54: 151.5
A55: 10 | B55: 8x6 | C55: SCOTTISH GEM | D55: 1.8 | E55: 1.8 | F55: 0.4 | G55: 11 | H55: 24 | I55: 41 | K55: 59.5 | M55: 4 | N55: 10 | Y55: albury410 | Z55: 10 | AA55: 10 | AB55: SCOTTISH GEM | AC55: 8x6 | AD55: 1.8 | AE55: 1.8 | AF55: 0.4 | AG55: 11 | AH55: 24 | AI55: 41 | AJ55: 0 | AK55: 59.5
A56: 11 | B56: 8x0 | C56: CHANTEL | D56: 4.1 | E56: 2.4 | F56: 0.2 | G56: 22.5 | H56: 14 | I56: 21 | J56: 17.4 | K56: 81 | N56: =IF(F56="","",(IF(ISNUMBER(0+A56),0+A56,0+LEFT(A56,FIND("e",A56)-1)))) -> 11 | Y56: =IF(Z56="","",$D$1&M56&AA56) -> albury11 | Z56: =IF(N56="","",N56&O56) -> 11 | AA56: =IF(N56="","",SUBSTITUTE(N56,CHAR(160),"")) -> 11 | AB56: =IF(A56="","",C56) -> CHANTEL | AC56: =IF($AB56="","",SUBSTITUTE(B56,CHAR(160),"")) -> 8x0 | AD56: =IF($AB56="","",SUBSTITUTE(D56,CHAR(160),"")) -> 4.1 | AE56: =IF($AB56="","",SUBSTITUTE(E56,CHAR(160),"")) -> 2.4 | AF56: =IF($AB56="","",SUBSTITUTE(F56,CHAR(160),"")) -> 0.2 | AG56: =IF($AB56="","",SUBSTITUTE(G56,CHAR(160),"")) -> 22.5 | AH56: =IF($AB56="","",SUBSTITUTE(H56,CHAR(160),"")) -> 14 | AI56: =IF(A56="","",I56) -> 21 | AJ56: =IF(A56="","",J56) -> 17.4 | AK56: =IF(B56="","",K56) -> 81
B58: race 5 | M58: 5
A59: No | B59: Last 3 | C59: Horse | D59: Trainer rate | E59: Jockey rate | F59: api | G59: est | H59: Probable Weight | I59: Penalty | M59: 5
A60: Tab | B60: Form L3 | C60: Horse | D60: TRat | E60: JRat | F60: API | G60: LSRat | H60: DLR | I60: PR | J60: AFS | K60: BP | L60: =IFERROR(IF(AND(LEFT(A60,FIND(" ",A60)-1)="Race",LEFT(#REF!,FIND(" ",#REF!)-1)="OF"),"Race",""),"") ->  | M60: 5 | Y60: =IF(Z60="","",$D$1&M60&AA60) ->  | Z60: =IF(N60="","",N60&O60) ->  | AA60: =IF($B60="","",A60) -> Tab | AB60: =IF($A60="","",C60) -> Horse | AC60: =IF($A60="","",B60) -> Form L3 | AD60: =IF($A60="","",D60) -> TRat | AE60: JRat | AF60: API | AG60: LSRat | AH60: DLR | AI60: PR | AJ60: AFS | AK60: BP
A61: 1 | B61: 78x | C61: RARECHINO | D61: 2.3 | E61: 3 | F61: 0.3 | G61: 15 | H61: 136 | I61: 51 | J61: 16.7 | K61: 60.5 | M61: 5 | N61: =IF(F61="","",(IF(ISNUMBER(0+A61),0+A61,0+LEFT(A61,FIND("e",A61)-1)))) -> 1 | Y61: albury51 | Z61: 1 | AA61: =IF(N61="","",SUBSTITUTE(N61,CHAR(160),"")) -> 1 | AB61: =IF(A61="","",C61) -> RARECHINO | AC61: =IF($AB61="","",SUBSTITUTE(B61,CHAR(160),"")) -> 78x | AD61: =IF($AB61="","",SUBSTITUTE(D61,CHAR(160),"")) -> 2.3 | AE61: =IF($AB61="","",SUBSTITUTE(E61,CHAR(160),"")) -> 3 | AF61: =IF($AB61="","",SUBSTITUTE(F61,CHAR(160),"")) -> 0.3 | AG61: =IF($AB61="","",SUBSTITUTE(G61,CHAR(160),"")) -> 15 | AH61: =IF($AB61="","",SUBSTITUTE(H61,CHAR(160),"")) -> 136 | AI61: =IF(A61="","",I61) -> 51 | AJ61: =IF(A61="","",J61) -> 16.7 | AK61: =IF(B61="","",K61) -> 60.5
A62: 2 | B62: 321 | C62: uuu | D62: 2.3 | E62: 3 | F62: 0.3 | G62: 15 | H62: 136 | I62: 51 | J62: 16.7 | K62: 60.5 | M62: 5 | N62: 2 | Y62: albury52 | Z62: 2 | AA62: 2 | AB62: =IF(A62="","",C62) -> uuu | AC62: =IF($AB62="","",SUBSTITUTE(B62,CHAR(160),"")) -> 321 | AD62: =IF($AB62="","",SUBSTITUTE(D62,CHAR(160),"")) -> 2.3 | AE62: =IF($AB62="","",SUBSTITUTE(E62,CHAR(160),"")) -> 3 | AF62: =IF($AB62="","",SUBSTITUTE(F62,CHAR(160),"")) -> 0.3 | AG62: =IF($AB62="","",SUBSTITUTE(G62,CHAR(160),"")) -> 15 | AH62: =IF($AB62="","",SUBSTITUTE(H62,CHAR(160),"")) -> 136 | AI62: =IF(A62="","",I62) -> 51 | AJ62: =IF(A62="","",J62) -> 16.7 | AK62: =IF(B62="","",K62) -> 60.5
A63: 3 | B63: x32 | C63: RED REBEL | D63: 2.4 | E63: 2 | F63: 1.6 | G63: 29 | H63: 14 | I63: 6 | J63: 17.8 | K63: 152.5 | M63: 5 | N63: 3 | Y63: albury53 | Z63: 3 | AA63: 3 | AB63: RED REBEL | AC63: x32 | AD63: 2.4 | AE63: 2 | AF63: 1.6 | AG63: 29 | AH63: 14 | AI63: 6 | AJ63: 17.8 | AK63: 152.5
A64: 4 | B64: 355 | C64: GOOD SONG | D64: 4.2 | E64: 2.1 | F64: 0.8 | G64: 22 | H64: 10 | I64: 4.6 | J64: 16.4 | K64: 173 | M64: 5 | N64: 4 | Y64: albury54 | Z64: 4 | AA64: 4 | AB64: GOOD SONG | AC64: 355 | AD64: 4.2 | AE64: 2.1 | AF64: 0.8 | AG64: 22 | AH64: 10 | AI64: 4.6 | AJ64: 16.4 | AK64: 173
A65: 5 | B65: x84 | C65: SCENERY | D65: 4 | E65: 3 | F65: 0.6 | G65: 28.5 | H65: 14 | I65: 18 | J65: 17.9 | K65: 87.5 | M65: 5 | N65: 5 | Y65: albury55 | Z65: 5 | AA65: 5 | AB65: SCENERY | AC65: x84 | AD65: 4 | AE65: 3 | AF65: 0.6 | AG65: 28.5 | AH65: 14 | AI65: 18 | AJ65: 17.9 | AK65: 87.5
A66: 6 | B66: 0 | C66: SABBATICAL SILK | D66: 4.8 | E66: 3.5 | F66: 0.4 | G66: 23 | H66: 14 | I66: 10 | J66: 18 | K66: 120 | M66: 5 | N66: 6 | Y66: albury56 | Z66: 6 | AA66: 6 | AB66: SABBATICAL SILK | AC66: 0 | AD66: 4.8 | AE66: 3.5 | AF66: 0.4 | AG66: 23 | AH66: 14 | AI66: 10 | AJ66: 18 | AK66: 120
A67: 7 | B67: - | C67: SHIVER ME GINGERS | D67: 3.8 | E67: 4 | F67: 0 | G67: 0 | H67: 0 | I67: 31 | K67: 65.5 | M67: 5 | N67: 7 | Y67: albury57 | Z67: 7 | AA67: 7 | AB67: SHIVER ME GINGERS | AC67: - | AD67: 3.8 | AE67: 4 | AF67: 0 | AG67: 0 | AH67: 0 | AI67: 31 | AJ67: 0 | AK67: 65.5
A68: 8 | B68: 20 | C68: BELLE NOIRE | D68: 1.3 | E68: 4.2 | F68: 0.8 | G68: 26 | H68: 6 | I68: 18 | J68: 17.3 | K68: 88.5 | M68: 5 | N68: 8 | Y68: albury58 | Z68: 8 | AA68: 8 | AB68: BELLE NOIRE | AC68: 20 | AD68: 1.3 | AE68: 4.2 | AF68: 0.8 | AG68: 26 | AH68: 6 | AI68: 18 | AJ68: 17.3 | AK68: 88.5
A69: 9 | B69: 8 | C69: CHENARA | D69: 1.8 | E69: 1.9 | F69: 0.2 | G69: 14 | H69: 13 | I69: 41 | J69: 17 | K69: 64.5 | M69: 5 | N69: 9 | Y69: albury59 | Z69: 9 | AA69: 9 | AB69: CHENARA | AC69: 8 | AD69: 1.8 | AE69: 1.9 | AF69: 0.2 | AG69: 14 | AH69: 13 | AI69: 41 | AJ69: 17 | AK69: 64.5
A70: 10 | B70: 644 | C70: BILL SELECTS | D70: 2.6 | E70: 2.4 | F70: 1.4 | G70: 30 | H70: 21 | I70: 3.5 | J70: 17.6 | K70: 195 | M70: 5 | N70: 10 | Y70: albury510 | Z70: 10 | AA70: 10 | AB70: BILL SELECTS | AC70: 644 | AD70: 2.6 | AE70: 2.4 | AF70: 1.4 | AG70: 30 | AH70: 21 | AI70: 3.5 | AJ70: 17.6 | AK70: 195
A71: 11 | B71: 644 | C71: TRULY AWESOME | D71: 4 | E71: 3.3 | F71: 0.8 | G71: 29 | H71: 7 | I71: 14 | J71: 17.4 | K71: 99.5 | M71: 5 | N71: 11 | Y71: albury511 | Z71: 11 | AA71: 11 | AB71: TRULY AWESOME | AC71: 644 | AD71: 4 | AE71: 3.3 | AF71: 0.8 | AG71: 29 | AH71: 7 | AI71: 14 | AJ71: 17.4 | AK71: 99.5
A72: 12 | B72: 6x9 | C72: BERGAMO | D72: 4 | E72: 4.4 | F72: 0.4 | G72: 24 | H72: 14 | I72: 8.5 | J72: 17.5 | K72: 122 | M72: 5 | N72: 12 | Y72: albury512 | Z72: 12 | AA72: 12 | AB72: BERGAMO | AC72: 6x9 | AD72: 4 | AE72: 4.4 | AF72: 0.4 | AG72: 24 | AH72: 14 | AI72: 8.5 | AJ72: 17.5 | AK72: 122
B73: race 6 | M73: 6
A74: Tab | B74: Form L3 | C74: Horse | D74: TRat | E74: JRat | F74: API | G74: LSRat | H74: DLR | I74: PR | J74: AFS | K74: BP | M74: 6 | AA74: =IF($B74="","",A74) -> Tab | AB74: =IF($A74="","",C74) -> Horse | AC74: =IF($A74="","",B74) -> Form L3 | AD74: =IF($A74="","",D74) -> TRat | AE74: JRat | AF74: API | AG74: LSRat | AH74: DLR | AI74: PR | AJ74: AFS | AK74: BP
A75: 1 | B75: 233 | C75: VITAL GEM | D75: 2.5 | E75: 3.4 | F75: 1.9 | G75: 30.5 | H75: 14 | I75: 26 | J75: 17.3 | K75: 90.5 | M75: 6 | N75: =IF(F75="","",(IF(ISNUMBER(0+A75),0+A75,0+LEFT(A75,FIND("e",A75)-1)))) -> 1 | Y75: =IF(Z75="","",$D$1&M75&AA75) -> albury61 | Z75: =IF(N75="","",N75&O75) -> 1 | AA75: =IF(N75="","",SUBSTITUTE(N75,CHAR(160),"")) -> 1 | AB75: =IF(A75="","",C75) -> VITAL GEM | AC75: =IF($AB75="","",SUBSTITUTE(B75,CHAR(160),"")) -> 233 | AD75: =IF($AB75="","",SUBSTITUTE(D75,CHAR(160),"")) -> 2.5 | AE75: =IF($AB75="","",SUBSTITUTE(E75,CHAR(160),"")) -> 3.4 | AF75: =IF($AB75="","",SUBSTITUTE(F75,CHAR(160),"")) -> 1.9 | AG75: =IF($AB75="","",SUBSTITUTE(G75,CHAR(160),"")) -> 30.5 | AH75: =IF($AB75="","",SUBSTITUTE(H75,CHAR(160),"")) -> 14 | AI75: =IF(A75="","",I75) -> 26 | AJ75: =IF(A75="","",J75) -> 17.3 | AK75: =IF(B75="","",K75) -> 90.5
A76: 2 | B76: 0x7 | C76: ARNRAY | D76: 1.9 | E76: 1.7 | F76: 3.3 | G76: 22 | H76: 14 | I76: 51 | J76: 16.6 | K76: 78.5 | M76: 6 | N76: 2 | Y76: albury62 | Z76: 2 | AA76: 2 | AB76: ARNRAY | AC76: 0x7 | AD76: 1.9 | AE76: 1.7 | AF76: 3.3 | AG76: 22 | AH76: 14 | AI76: 51 | AJ76: 16.6 | AK76: 78.5
A77: 3 | B77: 641 | C77: SUPER SALSA | D77: 4.4 | E77: 2.3 | F77: 2.1 | G77: 26 | H77: 10 | I77: 13 | J77: 16.2 | K77: 107 | M77: 6 | N77: 3 | Y77: albury63 | Z77: 3 | AA77: 3 | AB77: SUPER SALSA | AC77: 641 | AD77: 4.4 | AE77: 2.3 | AF77: 2.1 | AG77: 26 | AH77: 10 | AI77: 13 | AJ77: 16.2 | AK77: 107
A78: 4 | B78: x60 | C78: LATHAMS WISH | D78: 2.3 | E78: 2.4 | F78: 2.6 | G78: 21 | H78: 13 | I78: 9.5 | J78: 17.6 | K78: 108 | M78: 6 | N78: 4 | Y78: albury64 | Z78: 4 | AA78: 4 | AB78: LATHAMS WISH | AC78: x60 | AD78: 2.3 | AE78: 2.4 | AF78: 2.6 | AG78: 21 | AH78: 13 | AI78: 9.5 | AJ78: 17.6 | AK78: 108
A79: 5 | B79: 421 | C79: I LOVE YOUR SMILE | D79: 1.8 | E79: 1.7 | F79: 4.4 | G79: 30 | H79: 14 | I79: 20 | J79: 17.1 | K79: 93.5 | M79: 6 | N79: 5 | Y79: albury65 | Z79: 5 | AA79: 5 | AB79: I LOVE YOUR SMILE | AC79: 421 | AD79: 1.8 | AE79: 1.7 | AF79: 4.4 | AG79: 30 | AH79: 14 | AI79: 20 | AJ79: 17.1 | AK79: 93.5
A80: 6 | B80: 218 | C80: YONGA LASS | D80: 2.3 | E80: 2.1 | F80: 4.5 | G80: 30 | H80: 14 | I80: 6.5 | K80: 122 | M80: 6 | N80: 6 | Y80: albury66 | Z80: 6 | AA80: 6 | AB80: YONGA LASS | AC80: 218 | AD80: 2.3 | AE80: 2.1 | AF80: 4.5 | AG80: 30 | AH80: 14 | AI80: 6.5 | AJ80: 0 | AK80: 122
A81: 7 | B81: 513 | C81: ADELANTE | D81: 2.2 | E81: 3.5 | F81: 2.4 | G81: 27.5 | H81: 13 | I81: 15 | K81: 102 | M81: 6 | N81: 7 | Y81: albury67 | Z81: 7 | AA81: 7 | AB81: ADELANTE | AC81: 513 | AD81: 2.2 | AE81: 3.5 | AF81: 2.4 | AG81: 27.5 | AH81: 13 | AI81: 15 | AJ81: 0 | AK81: 102
A82: 8 | B82: 177 | C82: DEVIL GIRL | D82: 3.4 | E82: 2.6 | F82: 2.2 | G82: 21.5 | H82: 21 | I82: 71 | J82: 16.6 | K82: 72.5 | M82: 6 | N82: 8 | Y82: albury68 | Z82: 8 | AA82: 8 | AB82: DEVIL GIRL | AC82: 177 | AD82: 3.4 | AE82: 2.6 | AF82: 2.2 | AG82: 21.5 | AH82: 21 | AI82: 71 | AJ82: 16.6 | AK82: 72.5
A83: 9 | B83: 354 | C83: FLOPPY | D83: 3.4 | E83: 3.9 | F83: 1.3 | G83: 30 | H83: 7 | I83: 7.5 | J83: 16.9 | K83: 119.5 | M83: 6 | N83: 9 | Y83: albury69 | Z83: 9 | AA83: 9 | AB83: FLOPPY | AC83: 354 | AD83: 3.4 | AE83: 3.9 | AF83: 1.3 | AG83: 30 | AH83: 7 | AI83: 7.5 | AJ83: 16.9 | AK83: 119.5
A84: 10 | B84: 814 | C84: JOLLY ODD | D84: 1.9 | E84: 2.2 | F84: 1.3 | G84: 22.5 | H84: 13 | I84: 41 | J84: 17.1 | K84: 79 | M84: 6 | N84: 10 | Y84: albury610 | Z84: 10 | AA84: 10 | AB84: JOLLY ODD | AC84: 814 | AD84: 1.9 | AE84: 2.2 | AF84: 1.3 | AG84: 22.5 | AH84: 13 | AI84: 41 | AJ84: 17.1 | AK84: 79
A85: 11 | B85: 235 | C85: SILVER BUGG | D85: 2 | E85: 2 | F85: 2.2 | G85: 28.5 | H85: 34 | I85: 31 | J85: 17.3 | K85: 88.5 | M85: 6 | N85: 11 | Y85: albury611 | Z85: 11 | AA85: 11 | AB85: SILVER BUGG | AC85: 235 | AD85: 2 | AE85: 2 | AF85: 2.2 | AG85: 28.5 | AH85: 34 | AI85: 31 | AJ85: 17.3 | AK85: 88.5
A86: 12 | B86: 782 | C86: VISIONS OF GRACE | D86: 2.3 | E86: 4.8 | F86: 2.7 | G86: 33.5 | H86: 14 | I86: 3.7 | J86: 17 | K86: 183.5 | M86: 6 | N86: 12 | Y86: albury612 | Z86: 12 | AA86: 12 | AB86: VISIONS OF GRACE | AC86: 782 | AD86: 2.3 | AE86: 4.8 | AF86: 2.7 | AG86: 33.5 | AH86: 14 | AI86: 3.7 | AJ86: 17 | AK86: 183.5
B87: race 7 | M87: 7
A88: Tab | B88: Form L3 | C88: Horse | D88: TRat | E88: JRat | F88: EST | G88: API | H88: DLR | I88: WGT | J88: PR | K88: AGT | M88: 7 | AA88: =IF($B88="","",A88) -> Tab | AB88: =IF($A88="","",C88) -> Horse | AC88: =IF($A88="","",B88) -> Form L3 | AD88: =IF($A88="","",D88) -> TRat | AE88: JRat | AF88: EST | AG88: API | AH88: DLR | AI88: WGT | AJ88: PR | AK88: AGT
A89: 1 | B89: 18x | C89: SURVEILLANCE | D89: 1.3 | E89: 2.4 | F89: 7.9 | G89: 32 | H89: 168 | I89: 51 | J89: 17.1 | K89: 65.5 | M89: 7 | N89: =IF(F89="","",(IF(ISNUMBER(0+A89),0+A89,0+LEFT(A89,FIND("e",A89)-1)))) -> 1 | Y89: =IF(Z89="","",$D$1&M89&AA89) -> albury71 | Z89: =IF(N89="","",N89&O89) -> 1 | AA89: =IF(N89="","",SUBSTITUTE(N89,CHAR(160),"")) -> 1 | AB89: =IF(A89="","",C89) -> SURVEILLANCE | AC89: =IF($AB89="","",SUBSTITUTE(B89,CHAR(160),"")) -> 18x | AD89: =IF($AB89="","",SUBSTITUTE(D89,CHAR(160),"")) -> 1.3 | AE89: =IF($AB89="","",SUBSTITUTE(E89,CHAR(160),"")) -> 2.4 | AF89: =IF($AB89="","",SUBSTITUTE(F89,CHAR(160),"")) -> 7.9 | AG89: =IF($AB89="","",SUBSTITUTE(G89,CHAR(160),"")) -> 32 | AH89: =IF($AB89="","",SUBSTITUTE(H89,CHAR(160),"")) -> 168 | AI89: =IF(A89="","",I89) -> 51 | AJ89: =IF(A89="","",J89) -> 17.1 | AK89: =IF(B89="","",K89) -> 65.5
A90: 2 | B90: 89x | C90: DOWNFORCE | D90: 4 | E90: 2.5 | F90: 2.8 | G90: 33 | H90: 95 | I90: 15 | J90: 17.8 | K90: 97.5 | M90: 7 | N90: 2 | Y90: albury72 | Z90: 2 | AA90: 2 | AB90: DOWNFORCE | AC90: 89x | AD90: 4 | AE90: 2.5 | AF90: 2.8 | AG90: 33 | AH90: 95 | AI90: 15 | AJ90: 17.8 | AK90: 97.5
A91: 3 | B91: 0x6 | C91: CHEERFUL MOMENT | D91: 4.1 | E91: 3 | F91: 4.7 | G91: 34.5 | H91: 14 | I91: 21 | J91: 17.4 | K91: 87 | M91: 7 | N91: 3 | Y91: albury73 | Z91: 3 | AA91: 3 | AB91: CHEERFUL MOMENT | AC91: 0x6 | AD91: 4.1 | AE91: 3 | AF91: 4.7 | AG91: 34.5 | AH91: 14 | AI91: 21 | AJ91: 17.4 | AK91: 87
A92: 4 | B92: 417 | C92: THE GREAT ONE | D92: 4.2 | E92: 1.9 | F92: 1.8 | G92: 28.5 | H92: 19 | I92: 5 | J92: 17.6 | K92: 158.5 | M92: 7 | N92: 4 | Y92: albury74 | Z92: 4 | AA92: 4 | AB92: THE GREAT ONE | AC92: 417 | AD92: 4.2 | AE92: 1.9 | AF92: 1.8 | AG92: 28.5 | AH92: 19 | AI92: 5 | AJ92: 17.6 | AK92: 158.5
A93: 5 | B93: 13x | C93: KAZKAZI | D93: 1.9 | E93: 3.5 | F93: 2.3 | G93: 39.5 | H93: 193 | I93: 31 | J93: 17.5 | K93: 76.5 | M93: 7 | N93: 5 | Y93: albury75 | Z93: 5 | AA93: 5 | AB93: KAZKAZI | AC93: 13x | AD93: 1.9 | AE93: 3.5 | AF93: 2.3 | AG93: 39.5 | AH93: 193 | AI93: 31 | AJ93: 17.5 | AK93: 76.5
A94: 6 | B94: 414 | C94: SESSWA | D94: 4.8 | E94: 2.7 | F94: 7.1 | G94: 38 | H94: 25 | I94: 3.5 | J94: 17.5 | K94: 203.5 | M94: 7 | N94: 6 | Y94: albury76 | Z94: 6 | AA94: 6 | AB94: SESSWA | AC94: 414 | AD94: 4.8 | AE94: 2.7 | AF94: 7.1 | AG94: 38 | AH94: 25 | AI94: 3.5 | AJ94: 17.5 | AK94: 203.5
A95: 7 | B95: 4x1 | C95: WITHOUT REG | D95: 2.7 | E95: 3.9 | F95: 3.8 | G95: 37 | H95: 14 | I95: 8.5 | J95: 17.8 | K95: 128.5 | M95: 7 | N95: 7 | Y95: albury77 | Z95: 7 | AA95: 7 | AB95: WITHOUT REG | AC95: 4x1 | AD95: 2.7 | AE95: 3.9 | AF95: 3.8 | AG95: 37 | AH95: 14 | AI95: 8.5 | AJ95: 17.8 | AK95: 128.5
A96: 8 | B96: 50x | C96: AVALON BAY | D96: 1.9 | E96: 4.2 | F96: 0.7 | G96: 34 | H96: 123 | I96: 31 | J96: 17.6 | K96: 76 | M96: 7 | N96: 8 | Y96: albury78 | Z96: 8 | AA96: 8 | AB96: AVALON BAY | AC96: 50x | AD96: 1.9 | AE96: 4.2 | AF96: 0.7 | AG96: 34 | AH96: 123 | AI96: 31 | AJ96: 17.6 | AK96: 76
A97: 9 | B97: 556 | C97: AMBERGATE ROSE | D97: 1.6 | E97: 4.4 | F97: 3.2 | G97: 35.5 | H97: 21 | I97: 7 | J97: 17.6 | K97: 130.5 | M97: 7 | N97: 9 | Y97: albury79 | Z97: 9 | AA97: 9 | AB97: AMBERGATE ROSE | AC97: 556 | AD97: 1.6 | AE97: 4.4 | AF97: 3.2 | AG97: 35.5 | AH97: 21 | AI97: 7 | AJ97: 17.6 | AK97: 130.5
A98: 10 | B98: 123 | C98: DANUBE RIVER | D98: 2.3 | E98: 2.2 | F98: 5.5 | G98: 39 | H98: 14 | I98: 11 | J98: 17.6 | K98: 116.5 | M98: 7 | N98: 10 | Y98: albury710 | Z98: 10 | AA98: 10 | AB98: DANUBE RIVER | AC98: 123 | AD98: 2.3 | AE98: 2.2 | AF98: 5.5 | AG98: 39 | AH98: 14 | AI98: 11 | AJ98: 17.6 | AK98: 116.5
A99: 11 | B99: 61x | C99: AMJAAD | D99: 2 | E99: 1.9 | F99: 7.8 | G99: 39.5 | H99: 195 | I99: 91 | J99: 17.2 | K99: 55.5 | M99: 7 | N99: 11 | Y99: albury711 | Z99: 11 | AA99: 11 | AB99: AMJAAD | AC99: 61x | AD99: 2 | AE99: 1.9 | AF99: 7.8 | AG99: 39.5 | AH99: 195 | AI99: 91 | AJ99: 17.2 | AK99: 55.5
A100: 12 | B100: 543 | C100: NORMA STARS | D100: 1.9 | E100: 2.4 | F100: 1.2 | G100: 34 | H100: 28 | I100: 61 | J100: 17.5 | K100: 63.5 | M100: 7 | N100: 12 | Y100: albury712 | Z100: 12 | AA100: 12 | AB100: NORMA STARS | AC100: 543 | AD100: 1.9 | AE100: 2.4 | AF100: 1.2 | AG100: 34 | AH100: 28 | AI100: 61 | AJ100: 17.5 | AK100: 63.5
B101: race 8 | M101: 8
A102: Tab | B102: Form L3 | C102: Horse | D102: TRat | E102: JRat | F102: API | G102: LSRat | H102: DLR | I102: PR | J102: AFS | K102: BP | L102: =IFERROR(IF(AND(LEFT(A102,FIND(" ",A102)-1)="Race",LEFT(#REF!,FIND(" ",#REF!)-1)="OF"),"Race",""),"") ->  | M102: 8 | Y102: =IF(Z102="","",$D$1&M102&AA102) ->  | Z102: =IF(N102="","",N102&O102) ->  | AA102: =IF($B102="","",A102) -> Tab | AB102: =IF($A102="","",C102) -> Horse | AC102: =IF($A102="","",B102) -> Form L3 | AD102: =IF($A102="","",D102) -> TRat | AE102: JRat | AF102: API | AG102: LSRat | AH102: DLR | AI102: PR | AJ102: AFS | AK102: BP
A103: 1 | B103: 15x | C103: PREPARE FOR CHANGE | D103: 2.3 | E103: 3.1 | F103: 2.8 | G103: 33 | H103: 171 | I103: 41 | J103: 17.7 | K103: 75.5 | M103: 8 | N103: =IF(F103="","",(IF(ISNUMBER(0+A103),0+A103,0+LEFT(A103,FIND("e",A103)-1)))) -> 1 | Y103: albury81 | Z103: 1 | AA103: =IF(N103="","",SUBSTITUTE(N103,CHAR(160),"")) -> 1 | AB103: =IF(A103="","",C103) -> PREPARE FOR CHANGE | AC103: =IF($AB103="","",SUBSTITUTE(B103,CHAR(160),"")) -> 15x | AD103: =IF($AB103="","",SUBSTITUTE(D103,CHAR(160),"")) -> 2.3 | AE103: =IF($AB103="","",SUBSTITUTE(E103,CHAR(160),"")) -> 3.1 | AF103: =IF($AB103="","",SUBSTITUTE(F103,CHAR(160),"")) -> 2.8 | AG103: =IF($AB103="","",SUBSTITUTE(G103,CHAR(160),"")) -> 33 | AH103: =IF($AB103="","",SUBSTITUTE(H103,CHAR(160),"")) -> 171 | AI103: =IF(A103="","",I103) -> 41 | AJ103: =IF(A103="","",J103) -> 17.7 | AK103: =IF(ISNA(VLOOKUP(Z103,$W$1:$X$129,2,0)),"",VLOOKUP(Z103,$W$1:$X$129,2,0)) -> 
A104: 2 | B104: 79x | C104: BLEECKER STREET | D104: 3.4 | E104: 3.3 | F104: 3.1 | G104: 32.5 | H104: 88 | I104: 13 | J104: 17.7 | K104: 106 | M104: 8 | N104: 2 | Y104: albury82 | Z104: 2 | AA104: 2 | AB104: BLEECKER STREET | AC104: 79x | AD104: 3.4 | AE104: 3.3 | AF104: 3.1 | AG104: 32.5 | AH104: 88 | AI104: 13 | AJ104: 17.7
A105: 3 | B105: 53x | C105: BUCKLAND | D105: 1.6 | E105: 4 | F105: 3 | G105: 31.5 | H105: 291 | I105: 81 | K105: 61.5 | M105: 8 | N105: 3 | Y105: albury83 | Z105: 3 | AA105: 3 | AB105: BUCKLAND | AC105: 53x | AD105: 1.6 | AE105: 4 | AF105: 3 | AG105: 31.5 | AH105: 291 | AI105: 81 | AJ105: 0
A106: 4 | B106: x42 | C106: FEDERATION ROCKS | D106: 4.1 | E106: 2.4 | F106: 4.5 | G106: 31 | H106: 7 | I106: 15 | J106: 17.4 | K106: 100 | M106: 8 | N106: 4 | Y106: albury84 | Z106: 4 | AA106: 4 | AB106: FEDERATION ROCKS | AC106: x42 | AD106: 4.1 | AE106: 2.4 | AF106: 4.5 | AG106: 31 | AH106: 7 | AI106: 15 | AJ106: 17.4
A107: 5 | B107: x3x | C107: ALMIGHTY MISS | D107: 4 | E107: 4.4 | F107: 4.7 | G107: 30.5 | H107: 174 | I107: 19 | J107: 17.5 | K107: 96 | M107: 8 | N107: 5 | Y107: albury85 | Z107: 5 | AA107: 5 | AB107: ALMIGHTY MISS | AC107: x3x | AD107: 4 | AE107: 4.4 | AF107: 4.7 | AG107: 30.5 | AH107: 174 | AI107: 19 | AJ107: 17.5
A108: 6 | B108: 12x | C108: DIRTY CHAI | D108: 4.8 | E108: 2.1 | F108: 8.7 | G108: 34.5 | H108: 147 | I108: 21 | J108: 17.5 | K108: 92 | M108: 8 | N108: 6 | Y108: albury86 | Z108: 6 | AA108: 6 | AB108: DIRTY CHAI | AC108: 12x | AD108: 4.8 | AE108: 2.1 | AF108: 8.7 | AG108: 34.5 | AH108: 147 | AI108: 21 | AJ108: 17.5
A109: 7 | B109: 50x | C109: GRATIAS DEO | D109: 2.3 | E109: 3 | F109: 3.1 | G109: 21 | H109: 149 | I109: 7 | J109: 17.7 | K109: 124.5 | M109: 8 | N109: 7 | Y109: albury87 | Z109: 7 | AA109: 7 | AB109: GRATIAS DEO | AC109: 50x | AD109: 2.3 | AE109: 3 | AF109: 3.1 | AG109: 21 | AH109: 149 | AI109: 7 | AJ109: 17.7
A110: 8 | B110: 14x | C110: SCENIC ECLIPSE | D110: 2.3 | E110: 2.9 | F110: 5.1 | G110: 28 | H110: 161 | I110: 4.4 | J110: 17.1 | K110: 148 | M110: 8 | N110: 8 | Y110: albury88 | Z110: 8 | AA110: 8 | AB110: SCENIC ECLIPSE | AC110: 14x | AD110: 2.3 | AE110: 2.9 | AF110: 5.1 | AG110: 28 | AH110: 161 | AI110: 4.4 | AJ110: 17.1
A111: 9 | M111: 8 | AB111: 0 | AI111: 0 | AJ111: 0
A112: 10 | B112: 05x | C112: BELLE JOURNEE | D112: 2 | E112: 3.5 | F112: 3.1 | G112: 19 | H112: 105 | I112: 61 | J112: 17.7 | K112: 72 | M112: 8 | N112: 10 | Y112: albury810 | Z112: 10 | AA112: 10 | AB112: BELLE JOURNEE | AC112: 05x | AD112: 2 | AE112: 3.5 | AF112: 3.1 | AG112: 19 | AH112: 105 | AI112: 61 | AJ112: 17.7
A113: 11 | B113: 3x8 | C113: MENINA | D113: 2.3 | E113: 2.4 | F113: 1.3 | G113: 23.5 | H113: 21 | I113: 81 | J113: 17.5 | K113: 64 | M113: 8 | N113: 11 | Y113: albury811 | Z113: 11 | AA113: 11 | AB113: MENINA | AC113: 3x8 | AD113: 2.3 | AE113: 2.4 | AF113: 1.3 | AG113: 23.5 | AH113: 21 | AI113: 81 | AJ113: 17.5
A114: 12 | B114: 0x8 | C114: ANYOLDTIME | D114: 3.5 | E114: 1.9 | F114: 2 | G114: 30.5 | H114: 11 | I114: 51 | J114: 17.8 | K114: 74 | M114: 8 | N114: 12 | Y114: albury812 | Z114: 12 | AA114: 12 | AB114: ANYOLDTIME | AC114: 0x8 | AD114: 3.5 | AE114: 1.9 | AF114: 2 | AG114: 30.5 | AH114: 11 | AI114: 51 | AJ114: 17.8
B115: race 9 | M115: 9
A116: Tab | B116: Form L3 | C116: Horse | D116: TRat | E116: JRat | F116: API | G116: LSRat | H116: DLR | I116: PR | J116: AFS | K116: BP | M116: 9 | AA116: =IF($B116="","",A116) -> Tab | AB116: =IF($A116="","",C116) -> Horse | AC116: =IF($A116="","",B116) -> Form L3 | AD116: =IF($A116="","",D116) -> TRat | AE116: JRat | AF116: API | AG116: LSRat | AH116: DLR | AI116: PR | AJ116: AFS | AK116: BP
M117: 9 | N117: =IF(F117="","",(IF(ISNUMBER(0+A117),0+A117,0+LEFT(A117,FIND("e",A117)-1)))) ->  | Y117: =IF(Z117="","",$D$1&M117&AA117) ->  | Z117: =IF(N117="","",N117&O117) ->  | AA117: =IF(N117="","",SUBSTITUTE(N117,CHAR(160),"")) ->  | AB117: =IF(N117="","",O117) ->  | AC117: =IF($AB117="","",SUBSTITUTE(B117,CHAR(160),"")) ->  | AD117: =IF($AB117="","",SUBSTITUTE(D117,CHAR(160),"")) ->  | AE117: =IF($AB117="","",SUBSTITUTE(E117,CHAR(160),"")) ->  | AF117: =IF($AB117="","",SUBSTITUTE(F117,CHAR(160),"")) ->  | AG117: =IF($AB117="","",SUBSTITUTE(G117,CHAR(160),"")) ->  | AH117: =IF($AB117="","",SUBSTITUTE(H117,CHAR(160),"")) ->  | AI117: =IF(A117="","",I117) ->  | AJ117: =IF(A117="","",J117) ->  | AK117: =IF(ISNA(VLOOKUP(Z117,$W$1:$X$129,2,0)),"",VLOOKUP(Z117,$W$1:$X$129,2,0)) -> 
M118: 9
M119: 9
M120: 9
M121: 9
M122: 9
M123: 9
M124: 9
M125: 9
M126: 9
M127: 9
M128: 9
M129: 9

Sheet test
A1: Runner | B1: Tab No | C1: pts | E1: Bar | F1: pts | H1: Box | I1: pts | K1: HCP | L1: pts | N1: Weight | O1: pts | Q1: Conditions | W1: Condition | X1: R/Figure | Z1: Condition | AA1: R/Figure | AC1: Condition | AD1: R/Figure | AF1: Condition | AG1: R/Figure | AI1: W/P | AK1: Win% | AL1: R/Figure | AN1: Place% | AO1: R/Figure | AQ1: Prize/M | AR1: A/P/Money | AT1: R/Figure | AW1: L/S | AX1: FP | AY1: LB | AZ1: LB | BA1: R/Figure | BB1: D/S | BC1: D/S | BD1: D/S | BE1: R/Figure | BG1: 2ND L/S | BH1: FP | BI1: LB | BJ1: LB | BK1: R/Figure | BL1: D/S | BM1: D/S | BN1: D/S | BO1: R/Figure | BQ1: 3RD L/S | BR1: FP | BS1: LB | BT1: LB | BU1: R/Figure | BV1: D/S | BW1: D/S | BX1: D/S | BY1: R/Figure | CA1: Sky Rating | CB1: R/Figure | CD1: Unitab Rating | CE1: R/Figure | CH1: Rating | CI1: =MIN(CH2:CH17) ->  | CJ1: =(C19+F19+I19+L19+O19+X19+AA19+AD19+AG19+AL19+AO19+AT19+BA19+BE19+BK19+BO19+BU19+BY19+CB19+CE19)*1.1 -> 260.26 | CK1: =1-SUM(CK2:CK16) ->  | CL1: =MAX(CI2:CI17) ->  | CM1: =SUM(CM2:CM17)/CK1 ->  | CN1: 0.5 | CO1: =SUM(CO2:CO17) -> 
A2: =IF(B2="","",RacePage!D7) -> VITAL GEM | B2: 1 | C2: =IF($B2="","",IF(ISNA(VLOOKUP(B2,B$14:C$35,2,FALSE)),0,VLOOKUP(B2,B$14:C$35,2,FALSE))) -> 20 | E2: 1 | F2: =IF($B2="","",IF(ISNA(VLOOKUP(E2,E$21:F$35,2,FALSE)),0,VLOOKUP(E2,E$21:F$35,2,FALSE)))*2 -> 21.6 | H2: 1 | I2: =IF($B2="","",IF(ISNA(VLOOKUP(E2,E$21:F$35,2,FALSE)),0,VLOOKUP(E2,E$21:F$35,2,FALSE)))*2 -> 21.6 | K2: 4 | L2: =IF($B2="","",IF(ISNA(VLOOKUP(K2,K$21:L$45,2,FALSE)),0,VLOOKUP(K2,K$21:L$45,2,FALSE))) -> 0 | N2: 59 | O2: =IF($B2="","",IF(ISNA(VLOOKUP(N2,N$21:O$71,2,FALSE)),0,VLOOKUP(N2,N$21:O$71,2,FALSE))) -> 2 | Q2: DW | R2: D | S2: W | W2: =IF(R2="","",R2) -> D | X2: =IF($B2="","",IF(ISNA(INDEX($X$21:$X$28,MATCH(TRUE,EXACT(W2,$W$21:$W$28),0))),0,INDEX($X$21:$X$28,MATCH(TRUE,EXACT(W2,$W$21:$W$28),0)))) -> 5 | Z2: =IF(S2="","",S2) -> W | AA2: =IF($B2="","",IF(ISNA(INDEX($X$21:$X$28,MATCH(TRUE,EXACT(Z2,$W$21:$W$28),0))),0,INDEX($X$21:$X$28,MATCH(TRUE,EXACT(Z2,$W$21:$W$28),0)))) -> 0 | AC2: =IF(T2="","",T2) ->  | AD2: =IF($B2="","",IF(ISNA(INDEX($X$21:$X$28,MATCH(TRUE,EXACT(AC2,$W$21:$W$28),0))),0,INDEX($X$21:$X$28,MATCH(TRUE,EXACT(AC2,$W$21:$W$28),0)))) -> 5 | AF2: =IF(U2="","",U2) ->  | AG2: =IF($B2="","",IF(ISNA(INDEX($X$21:$X$28,MATCH(TRUE,EXACT(AF2,$W$21:$W$28),0))),0,INDEX($X$21:$X$28,MATCH(TRUE,EXACT(AF2,$W$21:$W$28),0)))) -> 5 | AI2: 0 Starts 0w 0p | AJ2: =IF($B2="","",RIGHT(AI2,LEN(AI2)-FIND("(",AI2,1))) ->  | AK2: =IF($B2="","",LEFT(AJ2,FIND("%",AJ2)-1)) ->  | AL2: =IF($B2="","",IF(ISERROR(AK2),0,IF(ISNA(VLOOKUP(AK2,AK$21:AL$45,2,1)),0,VLOOKUP(AK2,AK$21:AL$45,2,1)))) -> 0 | AN2: =IF(ISERROR(MID(LEFT(AJ2,FIND("p",AJ2)-2),FIND("w",AJ2)+2,10)),"",0+CLEAN(TRIM(MID(LEFT(AJ2,FIND("p",AJ2)-2),FIND("w",AJ2)+2,10)))) ->  | AO2: =IF($B2="","",IF(ISNA(VLOOKUP(AN2,AN$21:AO$45,2,1)),0,VLOOKUP(AN2,AN$21:AO$45,2,1))) -> 0 | AQ2: 1 Starts 1w 0p | AR2: =IF($B2="","",IF(0+LEFT(AI2,FIND(" ",AI2)-1)=0,0,AQ2/LEFT(AI2,FIND(" ",AI2)-1))) -> 0 | AS2: =IF($B2="","",(RANK(AR2,AR$2:AR$15,0)+COUNTIF(AR$2:AR2,AR2)-1)) ->  | AT2: =IF($B2="","",IF(ISNA(VLOOKUP(AS2,AS$21:AT$45,2,1)),0,VLOOKUP(AS2,AS$21:AT$45,2,1))) ->  | AW2: 1/7 | AX2: =IF($B2="","",LEFT(AW2,FIND("/",AW2)-1)) -> 1 | AY2: 28.11.13 | AZ2: =IF($B2="","",0+LEFT(AY2,LEN(AY2)-1)) ->  | BB2: 3Y-CL1 | BC2: =IF($B2="","",SUBSTITUTE(BB2,".","/")) -> 3Y-CL1 | BE2: =IF($B2="","",IF(ISERROR(AX2),0,IF(ISNA(VLOOKUP(BD2,BD$21:BE$45,2,1)),0,VLOOKUP(BD2,BD$21:BE$45,2,1)))) ->  | BG2: 1/9 | BH2: =IF($B2="","",LEFT(BG2,FIND("/",BG2)-1)) -> 1 | BI2: 16.11.13 | BJ2: =IF($B2="","",0+LEFT(BI2,LEN(BI2)-1)) ->  | BL2: MAIDEN | BM2: =IF($B2="","",SUBSTITUTE(BL2,".","/")) -> MAIDEN | BO2: =IF($B2="","",IF(ISERROR(BH2),0,IF(ISNA(VLOOKUP(BN2,BN$21:BO$45,2,1)),0,VLOOKUP(BN2,BN$21:BO$45,2,1)))) ->  | BQ2: 3/9 | BR2: =IF($B2="","",LEFT(BQ2,FIND("/",BQ2)-1)) -> 3 | BS2: 31.10.13 | BT2: =IF($B2="","",0+LEFT(BS2,LEN(BS2)-1)) ->  | BV2: MAIDEN | BW2: =IF($B2="","",SUBSTITUTE(BV2,".","/")) -> MAIDEN | BY2: =IF($B2="","",IF(ISERROR(BR2),0,IF(ISNA(VLOOKUP(BX2,BX$21:BY$45,2,1)),0,VLOOKUP(BX2,BX$21:BY$45,2,1)))) ->  | CA2: 100 | CB2: =IF($B2="","",IF(CA2<75,0,IF(ISNA(VLOOKUP(CA2,CA$21:CB$45,2,0)),0,VLOOKUP(CA2,CA$21:CB$45,2,0)))) -> 20 | CD2: 98 | CE2: =IF($B2="","",IF(CD2<75,0,IF(ISNA(VLOOKUP(CD2,CD$21:CE$45,2,0)),0,VLOOKUP(CD2,CD$21:CE$45,2,0)))) -> 18 | CH2: =IF(B2="","",C2+F2+I2+L2+O2+X2+AA2+AD2+AG2+AL2+AO2+AT2+BA2+BE2+BK2+BO2+BU2+BY2+CB2+CE2) ->  | CI2: =IF(CH2="","",IF(CH2=$CI$1,0,CH2-$CI$1)) ->  | CJ2: =IF(CI2="","",IF(CI2=0,0,CI2+((CI2*CI2*$CN$1)/($CJ$1-$CL$1)))) ->  | CK2: =IF(CI2="","",IF( CI2=0,0.02,"")) ->  | CL2: =IF($CJ2="","",(RANK(CJ2,CJ$2:CJ$16,0)+COUNTIF(CJ$2:CJ2,CJ2)-1)) ->  | CM2: =IF(CL2="","",IF(CL2<24,CJ2,"")) ->  | CN2: =IF(CM2="","",CM2/$CM$1) ->  | CO2: =IF(CJ2=0,CK2,IF(AND(CJ2="",CM2=""),"",IF(CN2="",CJ2/$EI$1,CN2))) ->  | CQ2: =IF(B2="","",B2) -> 1 | CR2: =IF($CP2="","",(RANK(CP2,CP$2:CP$16,1)+COUNTIF(CP$2:CP2,CP2)-1)) ->  | CS2: =IF($CR2="","",CP2) ->  | CT2: =IF($CR2="","",CJ2) ->  | CU2: =IF($CR2="","",B2&" "&A2) -> 
A3: =IF(B3="","",RacePage!D8) -> ARNRAY | B3: 2 | C3: =IF($B3="","",IF(ISNA(VLOOKUP(B3,B$14:C$35,2,FALSE)),0,VLOOKUP(B3,B$14:C$35,2,FALSE))) -> 19 | E3: 2 | F3: =IF($B3="","",IF(ISNA(VLOOKUP(E3,E$21:F$35,2,FALSE)),0,VLOOKUP(E3,E$21:F$35,2,FALSE)))*2 -> 23.2 | H3: 2 | I3: =IF($B3="","",IF(ISNA(VLOOKUP(H3,H$21:I$35,2,FALSE)),0,VLOOKUP(H3,H$21:I$35,2,FALSE))) -> 8 | K3: 3 | L3: 0 | N3: 58 | O3: 3 | Q3: tcDW | R3: t | S3: c | T3: D | U3: W | W3: =IF(R3="","",R3) -> t | X3: =IF($B3="","",IF(ISNA(INDEX($X$21:$X$28,MATCH(TRUE,EXACT(W3,$W$21:$W$28),0))),0,INDEX($X$21:$X$28,MATCH(TRUE,EXACT(W3,$W$21:$W$28),0)))) -> 3 | Z3: =IF(S3="","",S3) -> c | AA3: =IF($B3="","",IF(ISNA(INDEX($X$21:$X$28,MATCH(TRUE,EXACT(Z3,$W$21:$W$28),0))),0,INDEX($X$21:$X$28,MATCH(TRUE,EXACT(Z3,$W$21:$W$28),0)))) -> 3 | AC3: D | AD3: =IF($B3="","",IF(ISNA(INDEX($X$21:$X$28,MATCH(TRUE,EXACT(AC3,$W$21:$W$28),0))),0,INDEX($X$21:$X$28,MATCH(TRUE,EXACT(AC3,$W$21:$W$28),0)))) -> 5 | AF3: =IF(U3="","",U3) -> W | AG3: =IF($B3="","",IF(ISNA(INDEX($X$21:$X$28,MATCH(TRUE,EXACT(AF3,$W$21:$W$28),0))),0,INDEX($X$21:$X$28,MATCH(TRUE,EXACT(AF3,$W$21:$W$28),0)))) -> 0 | AI3: 1 Starts 0w 1p | AJ3: =IF($B3="","",RIGHT(AI3,LEN(AI3)-FIND("(",AI3,1))) ->  | AK3: =IF($B3="","",LEFT(AJ3,FIND("%",AJ3)-1)) ->  | AL3: 0 | AN3: =IF(ISERROR(MID(LEFT(AJ3,FIND("p",AJ3)-2),FIND("w",AJ3)+2,10)),"",0+CLEAN(TRIM(MID(LEFT(AJ3,FIND("p",AJ3)-2),FIND("w",AJ3)+2,10)))) ->  | AO3: 0 | AQ3: 6 Starts 1w 1p | AR3: =IF($B3="","",IF(0+LEFT(AI3,FIND(" ",AI3)-1)=0,0,AQ3/LEFT(AI3,FIND(" ",AI3)-1))) ->  | AS3: =IF($B3="","",(RANK(AR3,AR$2:AR$15,0)+COUNTIF(AR$2:AR3,AR3)-1)) ->  | AW3: 6/6 | AX3: =IF($B3="","",LEFT(AW3,FIND("/",AW3)-1)) -> 6 | AY3: 30.11.13 | AZ3: =IF($B3="","",0+LEFT(AY3,LEN(AY3)-1)) ->  | BB3: 3YO-74 | BC3: =IF($B3="","",SUBSTITUTE(BB3,".","/")) -> 3YO-74 | BG3: 5/5 | BH3: =IF($B3="","",LEFT(BG3,FIND("/",BG3)-1)) -> 5 | BI3: 16.11.13 | BJ3: =IF($B3="","",0+LEFT(BI3,LEN(BI3)-1)) ->  | BL3: 3YB-73 | BM3: =IF($B3="","",SUBSTITUTE(BL3,".","/")) -> 3YB-73 | BQ3: 2/5 | BR3: =IF($B3="","",LEFT(BQ3,FIND("/",BQ3)-1)) -> 2 | BS3: 30.10.13 | BT3: =IF($B3="","",0+LEFT(BS3,LEN(BS3)-1)) ->  | BV3: 3Y-0MW | BW3: =IF($B3="","",SUBSTITUTE(BV3,".","/")) -> 3Y-0MW | CA3: 90 | CB3: 10 | CD3: 100 | CE3: 20 | CH3: =IF(B3="","",C3+F3+I3+L3+O3+X3+AA3+AD3+AG3+AL3+AO3+AT3+BA3+BE3+BK3+BO3+BU3+BY3+CB3+CE3) ->  | CI3: =IF(CH3="","",IF(CH3=$CI$1,0,CH3-$CI$1)) ->  | CJ3: =IF(CI3="","",IF(CI3=0,0,CI3+((CI3*CI3*$CN$1)/($CJ$1-$CL$1)))) ->  | CK3: =IF(CI3="","",IF( CI3=0,0.02,"")) ->  | CL3: =IF($CJ3="","",(RANK(CJ3,CJ$2:CJ$16,0)+COUNTIF(CJ$2:CJ3,CJ3)-1)) ->  | CM3: =IF(CL3="","",IF(CL3<24,CJ3,"")) ->  | CN3: =IF(CM3="","",CM3/$CM$1) ->  | CO3: =IF(CJ3=0,CK3,IF(AND(CJ3="",CM3=""),"",IF(CN3="",CJ3/$EI$1,CN3))) ->  | CQ3: =IF(B3="","",B3) -> 2 | CR3: =IF($CP3="","",(RANK(CP3,CP$2:CP$16,1)+COUNTIF(CP$2:CP3,CP3)-1)) ->  | CS3: =IF($CR3="","",CP3) ->  | CT3: =IF($CR3="","",CJ3) ->  | CU3: =IF($CR3="","",B3&" "&A3) -> 
A4: =IF(B4="","",RacePage!D9) -> SUPER SALSA | B4: 3 | C4: 18 | E4: 3 | F4: 21.6 | H4: 6 | I4: 0 | K4: 6 | L4: 0 | N4: 57 | O4: 3 | Q4: D | R4: D | W4: D | X4: =IF($B4="","",IF(ISNA(INDEX($X$21:$X$28,MATCH(TRUE,EXACT(W4,$W$21:$W$28),0))),0,INDEX($X$21:$X$28,MATCH(TRUE,EXACT(W4,$W$21:$W$28),0)))) -> 5 | AA4: =IF($B4="","",IF(ISNA(INDEX($X$21:$X$28,MATCH(TRUE,EXACT(Z4,$W$21:$W$28),0))),0,INDEX($X$21:$X$28,MATCH(TRUE,EXACT(Z4,$W$21:$W$28),0)))) -> 5 | AD4: =IF($B4="","",IF(ISNA(INDEX($X$21:$X$28,MATCH(TRUE,EXACT(AC4,$W$21:$W$28),0))),0,INDEX($X$21:$X$28,MATCH(TRUE,EXACT(AC4,$W$21:$W$28),0)))) -> 5 | AG4: =IF($B4="","",IF(ISNA(INDEX($X$21:$X$28,MATCH(TRUE,EXACT(AF4,$W$21:$W$28),0))),0,INDEX($X$21:$X$28,MATCH(TRUE,EXACT(AF4,$W$21:$W$28),0)))) -> 5 | AI4: 0 Starts 0w 0p | AL4: 0 | AO4: 0 | AQ4: 0 Starts 0w 0p | AR4: 0 | AS4: =IF($B4="","",(RANK(AR4,AR$2:AR$15,0)+COUNTIF(AR$2:AR4,AR4)-1)) ->  | AW4: 1/11 | AX4: 1 | AY4: 30.11.13 | BB4: MAIDEN | BC4: MAIDEN | BG4: In Stronger Class FS( ). Warrants some respect on last start win in much weaker company. Last run was 1st 2.3L, Fast 'N' Fortunate at Hawkesbury (Maiden) 1300m. This race suitable. | BK4: 0 | BO4: 0 | BQ4: Expand 4 | BU4: 0 | BY4: 0 | CA4: 97 | CB4: 17 | CD4: 97 | CE4: 17 | CL4: =IF($CJ4="","",(RANK(CJ4,CJ$2:CJ$16,0)+COUNTIF(CJ$2:CJ4,CJ4)-1)) ->  | CQ4: 3 | CR4: =IF($CP4="","",(RANK(CP4,CP$2:CP$16,1)+COUNTIF(CP$2:CP4,CP4)-1)) -> 
A5: =IF(B5="","",RacePage!D10) -> LATHAMS WISH | B5: 4 | C5: 17 | E5: 4 | F5: 21 | H5: 5 | I5: 2 | K5: 5 | L5: 0 | N5: 56.5 | O5: 3 | Q5: DW | R5: D | S5: W | W5: D | X5: =IF($B5="","",IF(ISNA(INDEX($X$21:$X$28,MATCH(TRUE,EXACT(W5,$W$21:$W$28),0))),0,INDEX($X$21:$X$28,MATCH(TRUE,EXACT(W5,$W$21:$W$28),0)))) -> 5 | Z5: W | AA5: =IF($B5="","",IF(ISNA(INDEX($X$21:$X$28,MATCH(TRUE,EXACT(Z5,$W$21:$W$28),0))),0,INDEX($X$21:$X$28,MATCH(TRUE,EXACT(Z5,$W$21:$W$28),0)))) -> 0 | AD5: =IF($B5="","",IF(ISNA(INDEX($X$21:$X$28,MATCH(TRUE,EXACT(AC5,$W$21:$W$28),0))),0,INDEX($X$21:$X$28,MATCH(TRUE,EXACT(AC5,$W$21:$W$28),0)))) -> 5 | AG5: =IF($B5="","",IF(ISNA(INDEX($X$21:$X$28,MATCH(TRUE,EXACT(AF5,$W$21:$W$28),0))),0,INDEX($X$21:$X$28,MATCH(TRUE,EXACT(AF5,$W$21:$W$28),0)))) -> 5 | AI5: 0 Starts 0w 0p | AL5: 0 | AO5: 0 | AQ5: 0 Starts 0w 0p | AR5: 0 | AS5: =IF($B5="","",(RANK(AR5,AR$2:AR$15,0)+COUNTIF(AR$2:AR5,AR5)-1)) ->  | AW5: 1/14 | AX5: 1 | AY5: 22.11.13 | BB5: 3Y-MDN | BC5: 3Y-MDN | BG5: 2/10 | BH5: 2 | BI5: 03.11.13 | BL5: 3Y-MDN | BM5: 3Y-MDN | BQ5: In Stronger Class FS(3.5). Fitter for recent racing and a winner in this distance range. Last run ran strongly 1st 1L, Vite Loni at Hawkesbury (3Y-Maiden) 1300m. Two runs back tightened when 2nd 3.5L, Shout To The Top at Goulburn (3Y-Maiden) 1200m. Good prospects. | BU5: 0 | BY5: 0 | CA5: 89 | CB5: 9 | CD5: 98 | CE5: 18 | CL5: =IF($CJ5="","",(RANK(CJ5,CJ$2:CJ$16,0)+COUNTIF(CJ$2:CJ5,CJ5)-1)) ->  | CQ5: 4 | CR5: =IF($CP5="","",(RANK(CP5,CP$2:CP$16,1)+COUNTIF(CP$2:CP5,CP5)-1)) -> 
A6: =IF(B6="","",RacePage!D11) -> I LOVE YOUR SMILE | B6: 5 | C6: 16 | E6: 5 | F6: 22.2 | H6: 9 | I6: 0 | K6: 9 | L6: 0 | N6: 56 | O6: 3 | X6: =IF($B6="","",IF(ISNA(INDEX($X$21:$X$28,MATCH(TRUE,EXACT(W6,$W$21:$W$28),0))),0,INDEX($X$21:$X$28,MATCH(TRUE,EXACT(W6,$W$21:$W$28),0)))) -> 5 | AA6: =IF($B6="","",IF(ISNA(INDEX($X$21:$X$28,MATCH(TRUE,EXACT(Z6,$W$21:$W$28),0))),0,INDEX($X$21:$X$28,MATCH(TRUE,EXACT(Z6,$W$21:$W$28),0)))) -> 5 | AD6: =IF($B6="","",IF(ISNA(INDEX($X$21:$X$28,MATCH(TRUE,EXACT(AC6,$W$21:$W$28),0))),0,INDEX($X$21:$X$28,MATCH(TRUE,EXACT(AC6,$W$21:$W$28),0)))) -> 5 | AG6: =IF($B6="","",IF(ISNA(INDEX($X$21:$X$28,MATCH(TRUE,EXACT(AF6,$W$21:$W$28),0))),0,INDEX($X$21:$X$28,MATCH(TRUE,EXACT(AF6,$W$21:$W$28),0)))) -> 5 | AI6: 0 Starts 0w 0p | AL6: 0 | AO6: 0 | AQ6: 1 Starts 0w 1p | AR6: 0 | AS6: =IF($B6="","",(RANK(AR6,AR$2:AR$15,0)+COUNTIF(AR$2:AR6,AR6)-1)) ->  | AW6: 3/7 | AX6: 3 | AY6: 27.11.13 | BB6: 3Y-MDN | BC6: 3Y-MDN | BG6: In Stronger Class FS(1.5). Last start checked early when 3rd 2.8L, Lofty Ambition at Canterbury (3Y-Maiden) 1250m. Place preferred. | BK6: 0 | BO6: 0 | BQ6: Expand 6 | BU6: 0 | BY6: 0 | CA6: 76 | CB6: 0 | CD6: 96 | CE6: 16 | CL6: =IF($CJ6="","",(RANK(CJ6,CJ$2:CJ$16,0)+COUNTIF(CJ$2:CJ6,CJ6)-1)) ->  | CQ6: 5 | CR6: =IF($CP6="","",(RANK(CP6,CP$2:CP$16,1)+COUNTIF(CP$2:CP6,CP6)-1)) -> 
A7: =IF(B7="","",RacePage!D12) -> YONGA LASS | B7: 6 | C7: 15 | E7: 6 | F7: 21.2 | H7: 8 | I7: 0 | K7: 8 | L7: 0 | N7: 54.5 | O7: 2 | X7: =IF($B7="","",IF(ISNA(INDEX($X$21:$X$28,MATCH(TRUE,EXACT(W7,$W$21:$W$28),0))),0,INDEX($X$21:$X$28,MATCH(TRUE,EXACT(W7,$W$21:$W$28),0)))) -> 5 | AA7: =IF($B7="","",IF(ISNA(INDEX($X$21:$X$28,MATCH(TRUE,EXACT(Z7,$W$21:$W$28),0))),0,INDEX($X$21:$X$28,MATCH(TRUE,EXACT(Z7,$W$21:$W$28),0)))) -> 5 | AD7: =IF($B7="","",IF(ISNA(INDEX($X$21:$X$28,MATCH(TRUE,EXACT(AC7,$W$21:$W$28),0))),0,INDEX($X$21:$X$28,MATCH(TRUE,EXACT(AC7,$W$21:$W$28),0)))) -> 5 | AG7: =IF($B7="","",IF(ISNA(INDEX($X$21:$X$28,MATCH(TRUE,EXACT(AF7,$W$21:$W$28),0))),0,INDEX($X$21:$X$28,MATCH(TRUE,EXACT(AF7,$W$21:$W$28),0)))) -> 5 | AI7: 1 Starts 0w 0p | AL7: 0 | AO7: 0 | AQ7: 1 Starts 0w 1p | AS7: =IF($B7="","",(RANK(AR7,AR$2:AR$15,0)+COUNTIF(AR$2:AR7,AR7)-1)) ->  | AW7: 3/10 | AX7: 3 | AY7: 28.11.13 | BB7: MAIDEN | BC7: MAIDEN | BG7: 3/5 | BH7: 3 | BI7: 15.11.13 | BL7: 3YB-66 | BM7: 3YB-66 | BQ7: 9/11 | BR7: 9 | BS7: 05.11.13 | BV7: 3Y-MDN | BW7: 3Y-MDN | CA7: 80 | CB7: 0 | CD7: 95 | CE7: 15 | CL7: =IF($CJ7="","",(RANK(CJ7,CJ$2:CJ$16,0)+COUNTIF(CJ$2:CJ7,CJ7)-1)) ->  | CQ7: 6 | CR7: =IF($CP7="","",(RANK(CP7,CP$2:CP$16,1)+COUNTIF(CP$2:CP7,CP7)-1)) -> 
A8: =IF(B8="","",RacePage!D13) -> ADELANTE | B8: 7 | C8: 10 | E8: 7 | F8: 17.2 | H8: 1 | I8: 10 | K8: 1 | L8: 0 | N8: 54.5 | O8: 2 | Q8: DW | R8: D | S8: W | W8: D | X8: =IF($B8="","",IF(ISNA(INDEX($X$21:$X$28,MATCH(TRUE,EXACT(W8,$W$21:$W$28),0))),0,INDEX($X$21:$X$28,MATCH(TRUE,EXACT(W8,$W$21:$W$28),0)))) -> 5 | Z8: W | AA8: =IF($B8="","",IF(ISNA(INDEX($X$21:$X$28,MATCH(TRUE,EXACT(Z8,$W$21:$W$28),0))),0,INDEX($X$21:$X$28,MATCH(TRUE,EXACT(Z8,$W$21:$W$28),0)))) -> 0 | AD8: =IF($B8="","",IF(ISNA(INDEX($X$21:$X$28,MATCH(TRUE,EXACT(AC8,$W$21:$W$28),0))),0,INDEX($X$21:$X$28,MATCH(TRUE,EXACT(AC8,$W$21:$W$28),0)))) -> 5 | AG8: =IF($B8="","",IF(ISNA(INDEX($X$21:$X$28,MATCH(TRUE,EXACT(AF8,$W$21:$W$28),0))),0,INDEX($X$21:$X$28,MATCH(TRUE,EXACT(AF8,$W$21:$W$28),0)))) -> 5 | AI8: 0 Starts 0w 0p | AL8: 0 | AO8: 0 | AQ8: 1 Starts 0w 1p | AR8: 0 | AS8: =IF($B8="","",(RANK(AR8,AR$2:AR$15,0)+COUNTIF(AR$2:AR8,AR8)-1)) ->  | AW8: 3/7 | AX8: 3 | AY8: 28.11.13 | BB8: 3Y-CL1 | BC8: 3Y-CL1 | BG8: 1/8 | BH8: 1 | BI8: 16.11.13 | BL8: FM-MDN | BM8: FM-MDN | BQ8: 6/10 | BR8: 6 | BS8: 03.11.13 | BV8: 3Y-MDN | BW8: 3Y-MDN | CA8: 84 | CB8: 4 | CD8: 96 | CE8: 16 | CL8: =IF($CJ8="","",(RANK(CJ8,CJ$2:CJ$16,0)+COUNTIF(CJ$2:CJ8,CJ8)-1)) ->  | CQ8: 7 | CR8: =IF($CP8="","",(RANK(CP8,CP$2:CP$16,1)+COUNTIF(CP$2:CP8,CP8)-1)) -> 
A9: =IF(B9="","",RacePage!D14) -> DEVIL GIRL | B9: 8 | C9: 9 | E9: 8 | F9: 18 | H9: 7 | I9: 0 | K9: 7 | L9: 0 | N9: 54 | O9: 2 | Q9: D | R9: D | W9: D | X9: =IF($B9="","",IF(ISNA(INDEX($X$21:$X$28,MATCH(TRUE,EXACT(W9,$W$21:$W$28),0))),0,INDEX($X$21:$X$28,MATCH(TRUE,EXACT(W9,$W$21:$W$28),0)))) -> 5 | AA9: =IF($B9="","",IF(ISNA(INDEX($X$21:$X$28,MATCH(TRUE,EXACT(Z9,$W$21:$W$28),0))),0,INDEX($X$21:$X$28,MATCH(TRUE,EXACT(Z9,$W$21:$W$28),0)))) -> 5 | AD9: =IF($B9="","",IF(ISNA(INDEX($X$21:$X$28,MATCH(TRUE,EXACT(AC9,$W$21:$W$28),0))),0,INDEX($X$21:$X$28,MATCH(TRUE,EXACT(AC9,$W$21:$W$28),0)))) -> 5 | AG9: =IF($B9="","",IF(ISNA(INDEX($X$21:$X$28,MATCH(TRUE,EXACT(AF9,$W$21:$W$28),0))),0,INDEX($X$21:$X$28,MATCH(TRUE,EXACT(AF9,$W$21:$W$28),0)))) -> 5 | AI9: 0 Starts 0w 0p | AL9: 0 | AO9: 0 | AQ9: 1 Starts 1w 0p | AR9: 0 | AS9: =IF($B9="","",(RANK(AR9,AR$2:AR$15,0)+COUNTIF(AR$2:AR9,AR9)-1)) ->  | AW9: 9/9 | AX9: 9 | AY9: 23.11.13 | BB9: BM-60 | BC9: BM-60 | BG9: 1/14 | BH9: 1 | BI9: 27.09.13 | BL9: MAIDEN | BM9: MAIDEN | BQ9: 8/11 | BR9: 8 | BS9: 03.09.13 | BV9: 3Y-MDN | BW9: 3Y-MDN | CA9: 72 | CB9: 0 | CD9: 95 | CE9: 15 | CL9: =IF($CJ9="","",(RANK(CJ9,CJ$2:CJ$16,0)+COUNTIF(CJ$2:CJ9,CJ9)-1)) ->  | CQ9: 8 | CR9: =IF($CP9="","",(RANK(CP9,CP$2:CP$16,1)+COUNTIF(CP$2:CP9,CP9)-1)) -> 
A10: =IF(B10="","",RacePage!D15) -> FLOPPY | B10: 9 | C10: 8 | E10: 9 | F10: 16.6 | H10: 2 | I10: 8 | K10: 2 | L10: 0 | N10: 54 | O10: 2 | X10: =IF($B10="","",IF(ISNA(INDEX($X$21:$X$28,MATCH(TRUE,EXACT(W10,$W$21:$W$28),0))),0,INDEX($X$21:$X$28,MATCH(TRUE,EXACT(W10,$W$21:$W$28),0)))) -> 5 | AA10: =IF($B10="","",IF(ISNA(INDEX($X$21:$X$28,MATCH(TRUE,EXACT(Z10,$W$21:$W$28),0))),0,INDEX($X$21:$X$28,MATCH(TRUE,EXACT(Z10,$W$21:$W$28),0)))) -> 5 | AD10: =IF($B10="","",IF(ISNA(INDEX($X$21:$X$28,MATCH(TRUE,EXACT(AC10,$W$21:$W$28),0))),0,INDEX($X$21:$X$28,MATCH(TRUE,EXACT(AC10,$W$21:$W$28),0)))) -> 5 | AG10: =IF($B10="","",IF(ISNA(INDEX($X$21:$X$28,MATCH(TRUE,EXACT(AF10,$W$21:$W$28),0))),0,INDEX($X$21:$X$28,MATCH(TRUE,EXACT(AF10,$W$21:$W$28),0)))) -> 5 | AI10: 1 Starts 0w 0p | AL10: 0 | AO10: 0 | AQ10: 0 Starts 0w 0p | AS10: =IF($B10="","",(RANK(AR10,AR$2:AR$15,0)+COUNTIF(AR$2:AR10,AR10)-1)) ->  | AW10: 5/9 | AX10: 5 | AY10: 22.11.13 | BB10: MAIDEN | BC10: MAIDEN | BG10: 9/11 | BH10: 9 | BI10: 16.05.13 | BL10: 2Y-MDN | BM10: 2Y-MDN | BQ10: 12/12 | BR10: 12 | BS10: 01.05.13 | BV10: 2Y-MDN | BW10: 2Y-MDN | CA10: 66 | CB10: 0 | CD10: 93 | CE10: 13 | CL10: =IF($CJ10="","",(RANK(CJ10,CJ$2:CJ$16,0)+COUNTIF(CJ$2:CJ10,CJ10)-1)) ->  | CQ10: 9 | CR10: =IF($CP10="","",(RANK(CP10,CP$2:CP$16,1)+COUNTIF(CP$2:CP10,CP10)-1)) -> 
A11: =IF(B11="","",RacePage!D16) -> JOLLY ODD | B11: 10 | C11: =IF($B11="","",IF(ISNA(VLOOKUP(B11,B$14:C$35,2,FALSE)),0,VLOOKUP(B11,B$14:C$35,2,FALSE))) -> 7 | E11: 10 | F11: 16.8 | I11: 0 | L11: 0 | O11: 0 | X11: =IF($B11="","",IF(ISNA(INDEX($X$21:$X$28,MATCH(TRUE,EXACT(W11,$W$21:$W$28),0))),0,INDEX($X$21:$X$28,MATCH(TRUE,EXACT(W11,$W$21:$W$28),0)))) -> 5 | AA11: =IF($B11="","",IF(ISNA(INDEX($X$21:$X$28,MATCH(TRUE,EXACT(Z11,$W$21:$W$28),0))),0,INDEX($X$21:$X$28,MATCH(TRUE,EXACT(Z11,$W$21:$W$28),0)))) -> 5 | AD11: =IF($B11="","",IF(ISNA(INDEX($X$21:$X$28,MATCH(TRUE,EXACT(AC11,$W$21:$W$28),0))),0,INDEX($X$21:$X$28,MATCH(TRUE,EXACT(AC11,$W$21:$W$28),0)))) -> 5 | AG11: =IF($B11="","",IF(ISNA(INDEX($X$21:$X$28,MATCH(TRUE,EXACT(AF11,$W$21:$W$28),0))),0,INDEX($X$21:$X$28,MATCH(TRUE,EXACT(AF11,$W$21:$W$28),0)))) -> 5 | AL11: 0 | AO11: 0 | AS11: =IF($B11="","",(RANK(AR11,AR$2:AR$15,0)+COUNTIF(AR$2:AR11,AR11)-1)) ->  | BE11: 0 | BO11: 0 | BY11: 0 | CB11: 0 | CE11: 0 | CL11: =IF($CJ11="","",(RANK(CJ11,CJ$2:CJ$16,0)+COUNTIF(CJ$2:CJ11,CJ11)-1)) ->  | CQ11: 10 | CR11: =IF($CP11="","",(RANK(CP11,CP$2:CP$16,1)+COUNTIF(CP$2:CP11,CP11)-1)) -> 
A12: =IF(B12="","",RacePage!D17) -> working | B12: 11 | C12: 6 | E12: 11 | F12: 14.8 | I12: 0 | L12: 0 | O12: 0 | X12: =IF($B12="","",IF(ISNA(INDEX($X$21:$X$28,MATCH(TRUE,EXACT(W12,$W$21:$W$28),0))),0,INDEX($X$21:$X$28,MATCH(TRUE,EXACT(W12,$W$21:$W$28),0)))) -> 5 | AA12: =IF($B12="","",IF(ISNA(INDEX($X$21:$X$28,MATCH(TRUE,EXACT(Z12,$W$21:$W$28),0))),0,INDEX($X$21:$X$28,MATCH(TRUE,EXACT(Z12,$W$21:$W$28),0)))) -> 5 | AD12: =IF($B12="","",IF(ISNA(INDEX($X$21:$X$28,MATCH(TRUE,EXACT(AC12,$W$21:$W$28),0))),0,INDEX($X$21:$X$28,MATCH(TRUE,EXACT(AC12,$W$21:$W$28),0)))) -> 5 | AG12: =IF($B12="","",IF(ISNA(INDEX($X$21:$X$28,MATCH(TRUE,EXACT(AF12,$W$21:$W$28),0))),0,INDEX($X$21:$X$28,MATCH(TRUE,EXACT(AF12,$W$21:$W$28),0)))) -> 5 | AL12: 0 | AO12: 0 | AS12: =IF($B12="","",(RANK(AR12,AR$2:AR$15,0)+COUNTIF(AR$2:AR12,AR12)-1)) ->  | BE12: 0 | BO12: 0 | BY12: 0 | CB12: 0 | CE12: 0 | CL12: =IF($CJ12="","",(RANK(CJ12,CJ$2:CJ$16,0)+COUNTIF(CJ$2:CJ12,CJ12)-1)) ->  | CQ12: 11 | CR12: =IF($CP12="","",(RANK(CP12,CP$2:CP$16,1)+COUNTIF(CP$2:CP12,CP12)-1)) -> 
A13: =IF(B13="","",RacePage!D18) -> VISIONS OF GRACE | B13: 12 | C13: 5 | E13: 12 | F13: 13.6 | I13: 0 | L13: 0 | O13: 0 | X13: =IF($B13="","",IF(ISNA(INDEX($X$21:$X$28,MATCH(TRUE,EXACT(W13,$W$21:$W$28),0))),0,INDEX($X$21:$X$28,MATCH(TRUE,EXACT(W13,$W$21:$W$28),0)))) -> 5 | AA13: =IF($B13="","",IF(ISNA(INDEX($X$21:$X$28,MATCH(TRUE,EXACT(Z13,$W$21:$W$28),0))),0,INDEX($X$21:$X$28,MATCH(TRUE,EXACT(Z13,$W$21:$W$28),0)))) -> 5 | AD13: =IF($B13="","",IF(ISNA(INDEX($X$21:$X$28,MATCH(TRUE,EXACT(AC13,$W$21:$W$28),0))),0,INDEX($X$21:$X$28,MATCH(TRUE,EXACT(AC13,$W$21:$W$28),0)))) -> 5 | AG13: =IF($B13="","",IF(ISNA(INDEX($X$21:$X$28,MATCH(TRUE,EXACT(AF13,$W$21:$W$28),0))),0,INDEX($X$21:$X$28,MATCH(TRUE,EXACT(AF13,$W$21:$W$28),0)))) -> 5 | AL13: 0 | AO13: 0 | AS13: =IF($B13="","",(RANK(AR13,AR$2:AR$15,0)+COUNTIF(AR$2:AR13,AR13)-1)) ->  | BE13: 0 | BO13: 0 | BY13: 0 | CB13: 0 | CE13: 0 | CL13: =IF($CJ13="","",(RANK(CJ13,CJ$2:CJ$16,0)+COUNTIF(CJ$2:CJ13,CJ13)-1)) ->  | CQ13: 12 | CR13: =IF($CP13="","",(RANK(CP13,CP$2:CP$16,1)+COUNTIF(CP$2:CP13,CP13)-1)) -> 
A14: =IF(B14="","",RacePage!D19) ->  | B14: 13 | C14: =IF($B14="","",IF(ISNA(VLOOKUP(B14,B$14:C$35,2,FALSE)),0,VLOOKUP(B14,B$14:C$35,2,FALSE))) ->  | E14: 13 | F14: 11.8 | I14: 0 | L14: 0 | O14: 0 | X14: =IF($B14="","",IF(ISNA(INDEX($X$21:$X$28,MATCH(TRUE,EXACT(W14,$W$21:$W$28),0))),0,INDEX($X$21:$X$28,MATCH(TRUE,EXACT(W14,$W$21:$W$28),0)))) -> 5 | AA14: =IF($B14="","",IF(ISNA(INDEX($X$21:$X$28,MATCH(TRUE,EXACT(Z14,$W$21:$W$28),0))),0,INDEX($X$21:$X$28,MATCH(TRUE,EXACT(Z14,$W$21:$W$28),0)))) -> 5 | AD14: =IF($B14="","",IF(ISNA(INDEX($X$21:$X$28,MATCH(TRUE,EXACT(AC14,$W$21:$W$28),0))),0,INDEX($X$21:$X$28,MATCH(TRUE,EXACT(AC14,$W$21:$W$28),0)))) -> 5 | AG14: =IF($B14="","",IF(ISNA(INDEX($X$21:$X$28,MATCH(TRUE,EXACT(AF14,$W$21:$W$28),0))),0,INDEX($X$21:$X$28,MATCH(TRUE,EXACT(AF14,$W$21:$W$28),0)))) -> 5 | AL14: 0 | AO14: 0 | AS14: =IF($B14="","",(RANK(AR14,AR$2:AR$15,0)+COUNTIF(AR$2:AR14,AR14)-1)) ->  | BE14: 0 | BO14: 0 | BY14: 0 | CB14: 0 | CE14: 0 | CL14: =IF($CJ14="","",(RANK(CJ14,CJ$2:CJ$16,0)+COUNTIF(CJ$2:CJ14,CJ14)-1)) ->  | CQ14: 13 | CR14: =IF($CP14="","",(RANK(CP14,CP$2:CP$16,1)+COUNTIF(CP$2:CP14,CP14)-1)) -> 
A15: =IF(B15="","",RacePage!D20) -> 0 | B15: 14 | E15: 14 | F15: 12 | I15: 0 | L15: 0 | O15: 0 | X15: =IF($B15="","",IF(ISNA(INDEX($X$21:$X$28,MATCH(TRUE,EXACT(W15,$W$21:$W$28),0))),0,INDEX($X$21:$X$28,MATCH(TRUE,EXACT(W15,$W$21:$W$28),0)))) -> 5 | AA15: =IF($B15="","",IF(ISNA(INDEX($X$21:$X$28,MATCH(TRUE,EXACT(Z15,$W$21:$W$28),0))),0,INDEX($X$21:$X$28,MATCH(TRUE,EXACT(Z15,$W$21:$W$28),0)))) -> 5 | AD15: =IF($B15="","",IF(ISNA(INDEX($X$21:$X$28,MATCH(TRUE,EXACT(AC15,$W$21:$W$28),0))),0,INDEX($X$21:$X$28,MATCH(TRUE,EXACT(AC15,$W$21:$W$28),0)))) -> 5 | AG15: =IF($B15="","",IF(ISNA(INDEX($X$21:$X$28,MATCH(TRUE,EXACT(AF15,$W$21:$W$28),0))),0,INDEX($X$21:$X$28,MATCH(TRUE,EXACT(AF15,$W$21:$W$28),0)))) -> 5 | AL15: 0 | AO15: 0 | AS15: =IF($B15="","",(RANK(AR15,AR$2:AR$15,0)+COUNTIF(AR$2:AR15,AR15)-1)) ->  | BE15: 0 | BO15: 0 | BY15: 0 | CB15: 0 | CE15: 0 | CL15: =IF($CJ15="","",(RANK(CJ15,CJ$2:CJ$16,0)+COUNTIF(CJ$2:CJ15,CJ15)-1)) ->  | CQ15: 14 | CR15: =IF($CP15="","",(RANK(CP15,CP$2:CP$16,1)+COUNTIF(CP$2:CP15,CP15)-1)) -> 
A16: =IF(B16="","",RacePage!D21) -> 0 | B16: 15 | E16: 15 | F16: 11.2 | CH16: 11.2 | CL16: =IF($CJ16="","",(RANK(CJ16,CJ$2:CJ$16,0)+COUNTIF(CJ$2:CJ16,CJ16)-1)) ->  | CQ16: 15
A17: =IF(B17="","",RacePage!D22) -> 
K18: Harness Form | AW18: Harness Form | BG18: Harness Form | BQ18: Harness Form
B19: Yes | C19: =IF(B19="No",0,MAX(C21:C79)) -> 20 | E19: Yes | F19: =IF(E19="No",0,MAX(F21:F68)) -> 11.6 | H19: Yes | I19: =IF(H19="No",0,MAX(I21:I68)) -> 10 | K19: No | L19: =IF(K19="No",0,MAX(L21:L90)) -> 0 | N19: Yes | O19: =IF(N19="No",0,MAX(O21:O90)) -> 3 | W19: Yes | X19: =IF(W19="No",0,COUNT(V21:V24)*5) -> 0 | AK19: Yes | AL19: =IF(AK19="No",0,MAX(AL21:AL90)) -> 10 | AN19: Yes | AO19: =IF(AN19="No",0,MAX(AO21:AO90)) -> 10 | AS19: Yes | AT19: =IF(AS19="No",0,MAX(AT21:AT90)) -> 12 | AW19: Yes | AX19: =IF(AW19="No",0,MAX(AX21:AX90)) -> 10 | AZ19: Yes | BA19: =IF(AZ19="No",0,MAX(BA21:BA90)) -> 20 | BD19: Yes | BE19: =IF(BD19="No",0,MAX(BE21:BE90)) -> 20 | BG19: Yes | BH19: =IF(BG19="No",0,MAX(BH21:BH90)) -> 10 | BJ19: Yes | BK19: =IF(BJ19="No",0,MAX(BK21:BK90)) -> 20 | BN19: Yes | BO19: =IF(BN19="No",0,MAX(BO21:BO90)) -> 20 | BQ19: Yes | BR19: =IF(BQ19="No",0,MAX(BR21:BR90)) -> 10 | BT19: Yes | BU19: =IF(BT19="No",0,MAX(BU21:BU90)) -> 20 | BX19: Yes | BY19: =IF(BX19="No",0,MAX(BY21:BY90)) -> 20 | CA19: Yes | CB19: =IF(CA19="No",0,MAX(CB21:CB90)) -> 20 | CD19: Yes | CE19: =IF(CD19="No",0,MAX(CE21:CE90)) -> 20
B20: Tab No | C20: pts | E20: Barrier | F20: pts | H20: Box | I20: pts | K20: HCP | L20: pts | N20: Weight | O20: R/Figure | W20: Condition | X20: R/Figure | AK20: Win% | AL20: R/Figure | AN20: Place% | AO20: R/Figure | AS20: A/price | AT20: R/Figure | AW20: LS MB | AX20: R/Figure | AZ20: LS LB | BA20: R/Figure | BD20: LS DS | BE20: R/Figure | BG20: LS MB | BH20: R/Figure | BJ20: 2ND LB | BK20: R/Figure | BN20: 2ND DS | BO20: R/Figure | BQ20: LS MB | BR20: R/Figure | BT20: 3RD LB | BU20: R/Figure | BX20: 3RD DS | BY20: R/Figure | CA20: Rating | CB20: R/Figure | CD20: Rating | CE20: R/Figure
B21: =IF($B$19="Yes",1,"") -> 1 | C21: 20 | E21: =IF(E$19="Yes",1,"") -> 1 | F21: 10.8 | H21: 1 | I21: 10 | N21: =IF(N$19="Yes",70,"") -> 70 | O21: 0 | W21: =IF(W$19="Yes","T","") -> T | X21: 5 | AK21: =IF(AK$19="Yes",0,"") -> 0 | AL21: 0 | AN21: =IF(AN$19="Yes",0,"") -> 0 | AO21: 0 | AS21: =IF(AS$19="Yes",1,"") -> 1 | AT21: 12 | AW21: =IF(AW$19="Yes",0,"") -> 0 | AX21: 10 | AZ21: =IF(AZ$19="Yes",0,"") -> 0 | BA21: 20 | BD21: =IF(BD$19="Yes",7,"") -> 7 | BE21: 20 | BG21: =IF(BG$19="Yes",0,"") -> 0 | BH21: 10 | BJ21: =IF(BJ$19="Yes",0,"") -> 0 | BK21: 20 | BN21: =IF(BN$19="Yes",7,"") -> 7 | BO21: 20 | BQ21: =IF(BQ$19="Yes",0,"") -> 0 | BR21: 10 | BT21: =IF(BT$19="Yes",0,"") -> 0 | BU21: 20 | BX21: =IF(BX$19="Yes",7,"") -> 7 | BY21: 20 | CA21: =IF(CA$19="Yes",100,"") -> 100 | CB21: 20 | CD21: =IF(CD$19="Yes",100,"") -> 100 | CE21: 20
B22: =IF($B$19="Yes",B21+1,"") -> 2 | C22: 19 | E22: =IF(E$19="Yes",E21+1,"") -> 2 | F22: 11.6 | H22: 2 | I22: 8 | N22: =IF(N$19="Yes",N21-0.5,"") -> 69.5 | O22: 0 | W22: =IF(W$19="Yes","C","") -> C | X22: 5 | AK22: =IF(AK$19="Yes",AK21+5,"") -> 5 | AL22: 0.5 | AN22: =IF(AN$19="Yes",AN21+5,"") -> 5 | AO22: 0.5 | AS22: =IF(AS$19="Yes",AS21+1,"") -> 2 | AT22: 10 | AW22: =IF(AW$19="Yes",AW21+1,"") -> 1 | AX22: 9 | AZ22: =IF(AZ$19="Yes",AZ21+0.5,"") -> 0.5 | BA22: 19 | BD22: =IF(BD$19="Yes",BD21+7,"") -> 14 | BE22: 18 | BG22: =IF(BG$19="Yes",BG21+1,"") -> 1 | BH22: 9 | BJ22: =IF(BJ$19="Yes",BJ21+0.5,"") -> 0.5 | BK22: 19 | BN22: =IF(BN$19="Yes",BN21+7,"") -> 14 | BO22: 18 | BQ22: =IF(BQ$19="Yes",BQ21+1,"") -> 1 | BR22: 9 | BT22: =IF(BT$19="Yes",BT21+0.5,"") -> 0.5 | BU22: 19 | BX22: =IF(BX$19="Yes",BX21+7,"") -> 14 | BY22: 18 | CA22: =IF(CA$19="Yes",CA21-1,"") -> 99 | CB22: 19 | CD22: =IF(CD$19="Yes",CD21-1,"") -> 99 | CE22: 19
B23: =IF($B$19="Yes",B22+1,"") -> 3 | C23: 18 | E23: =IF(E$19="Yes",E22+1,"") -> 3 | F23: 10.8 | H23: 3 | I23: 6 | N23: =IF(N$19="Yes",N22-0.5,"") -> 69 | O23: 0 | W23: =IF(W$19="Yes","D","") -> D | X23: 5 | AK23: =IF(AK$19="Yes",AK22+5,"") -> 10 | AL23: 1 | AN23: =IF(AN$19="Yes",AN22+5,"") -> 10 | AO23: 1 | AS23: =IF(AS$19="Yes",AS22+1,"") -> 3 | AT23: 8 | AW23: =IF(AW$19="Yes",AW22+1,"") -> 2 | AX23: 8 | AZ23: =IF(AZ$19="Yes",AZ22+0.5,"") -> 1 | BA23: 18 | BD23: =IF(BD$19="Yes",BD22+7,"") -> 21 | BE23: 16 | BG23: =IF(BG$19="Yes",BG22+1,"") -> 2 | BH23: 8 | BJ23: =IF(BJ$19="Yes",BJ22+0.5,"") -> 1 | BK23: 18 | BN23: =IF(BN$19="Yes",BN22+7,"") -> 21 | BO23: 16 | BQ23: =IF(BQ$19="Yes",BQ22+1,"") -> 2 | BR23: 8 | BT23: =IF(BT$19="Yes",BT22+0.5,"") -> 1 | BU23: 18 | BX23: =IF(BX$19="Yes",BX22+7,"") -> 21 | BY23: 16 | CA23: =IF(CA$19="Yes",CA22-1,"") -> 98 | CB23: 18 | CD23: =IF(CD$19="Yes",CD22-1,"") -> 98 | CE23: 18
B24: 4 | C24: 17 | E24: 4 | F24: 10.5 | H24: 4 | I24: 4 | N24: 68.5 | O24: 0 | X24: 5 | AK24: 15 | AL24: 1.5 | AN24: 15 | AO24: 1.5 | AS24: 4 | AT24: 6 | AW24: 3 | AX24: 7 | AZ24: 1.5 | BA24: 17 | BD24: 28 | BE24: 14 | BG24: 3 | BH24: 7 | BJ24: 1.5 | BK24: 17 | BN24: 28 | BO24: 14 | BQ24: 3 | BR24: 7 | BT24: 1.5 | BU24: 17 | BX24: 28 | BY24: 14 | CA24: 97 | CB24: 17 | CD24: 97 | CE24: 17 | CG24: =MAX(CG26:CG95) -> 0
B25: 5 | C25: 16 | E25: 5 | F25: 11.1 | H25: 5 | I25: 2 | N25: 68 | O25: 0 | W25: =IF(W$19="Yes","t","") -> t | X25: 3 | AK25: 20 | AL25: 2 | AN25: 20 | AO25: 2 | AS25: 5 | AT25: 4 | AW25: 4 | AX25: 6 | AZ25: 2 | BA25: 16 | BD25: 35 | BE25: 12 | BG25: 4 | BH25: 6 | BJ25: 2 | BK25: 16 | BN25: 35 | BO25: 12 | BQ25: 4 | BR25: 6 | BT25: 2 | BU25: 16 | BX25: 35 | BY25: 12 | CA25: 96 | CB25: 16 | CD25: 96 | CE25: 16
B26: 6 | C26: 15 | E26: 6 | F26: 10.6 | H26: 0 | I26: 1 | N26: 67.5 | O26: 0 | W26: =IF(W$19="Yes","c","") -> c | X26: 3 | AK26: 25 | AL26: 2.5 | AN26: 25 | AO26: 2.5 | AS26: 6 | AT26: 2 | AW26: 5 | AX26: 5 | AZ26: 2.5 | BA26: 15 | BD26: 42 | BE26: 10 | BG26: 5 | BH26: 5 | BJ26: 2.5 | BK26: 15 | BN26: 42 | BO26: 10 | BQ26: 5 | BR26: 5 | BT26: 2.5 | BU26: 15 | BX26: 42 | BY26: 10 | CA26: 95 | CB26: 15 | CD26: 95 | CE26: 15
B27: 7 | C27: 10 | E27: 7 | F27: 8.6 | H27: x | I27: 0 | N27: 67 | O27: 0 | W27: =IF(W$19="Yes","d","") -> d | X27: 3 | AK27: 30 | AL27: 3 | AN27: 30 | AO27: 3 | AS27: 7 | AT27: 0 | AW27: 6 | AX27: 4 | AZ27: 3 | BA27: 14 | BD27: 49 | BE27: 8 | BG27: 6 | BH27: 4 | BJ27: 3 | BK27: 14 | BN27: 49 | BO27: 8 | BQ27: 6 | BR27: 4 | BT27: 3 | BU27: 14 | BX27: 49 | BY27: 8 | CA27: 94 | CB27: 14 | CD27: 94 | CE27: 14
B28: 8 | C28: 9 | E28: 8 | F28: 9 | N28: 66.5 | O28: 0 | X28: 3 | AK28: 35 | AL28: 3.5 | AN28: 35 | AO28: 3.5 | AS28: 8 | AT28: 0 | AW28: 7 | AX28: 3 | AZ28: 3.5 | BA28: 13 | BD28: 56 | BE28: 6 | BG28: 7 | BH28: 3 | BJ28: 3.5 | BK28: 13 | BN28: 56 | BO28: 6 | BQ28: 7 | BR28: 3 | BT28: 3.5 | BU28: 13 | BX28: 56 | BY28: 6 | CA28: 93 | CB28: 13 | CD28: 93 | CE28: 13
B29: 9 | C29: 8 | E29: 9 | F29: 8.3 | N29: 66 | O29: 0 | AK29: 40 | AL29: 4 | AN29: 40 | AO29: 4 | AS29: 9 | AT29: 0 | AW29: 8 | AX29: 2 | AZ29: 4 | BA29: 12 | BD29: 63 | BE29: 4 | BG29: 8 | BH29: 2 | BJ29: 4 | BK29: 12 | BN29: 63 | BO29: 4 | BQ29: 8 | BR29: 2 | BT29: 4 | BU29: 12 | BX29: 63 | BY29: 4 | CA29: 92 | CB29: 12 | CD29: 92 | CE29: 12
B30: 10 | C30: 7 | E30: 10 | F30: 8.4 | N30: 65.5 | O30: 0 | AK30: 45 | AL30: 4.5 | AN30: 45 | AO30: 4.5 | AS30: 10 | AT30: 0 | AW30: 9 | AX30: 1 | AZ30: 4.5 | BA30: 11 | BD30: 70 | BE30: 2 | BG30: 9 | BH30: 1 | BJ30: 4.5 | BK30: 11 | BN30: 70 | BO30: 2 | BQ30: 9 | BR30: 1 | BT30: 4.5 | BU30: 11 | BX30: 70 | BY30: 2 | CA30: 91 | CB30: 11 | CD30: 91 | CE30: 11
B31: 11 | C31: 6 | E31: 11 | F31: 7.4 | N31: 65 | O31: 0 | AK31: 50 | AL31: 5 | AN31: 50 | AO31: 5 | AS31: 11 | AT31: 0 | AW31: 10 | AX31: 0 | AZ31: 5 | BA31: 10 | BD31: 1000 | BE31: 0 | BG31: 10 | BH31: 0 | BJ31: 5 | BK31: 10 | BN31: 1000 | BO31: 0 | BQ31: 10 | BR31: 0 | BT31: 5 | BU31: 10 | BX31: 1000 | BY31: 0 | CA31: 90 | CB31: 10 | CD31: 90 | CE31: 10
B32: 12 | C32: 5 | E32: 12 | F32: 6.8 | N32: 64.5 | O32: 0 | AK32: 55 | AL32: 5.5 | AN32: 55 | AO32: 5.5 | AS32: 12 | AT32: 0 | AW32: 11 | AX32: 0 | AZ32: 5.5 | BA32: 9 | BG32: 11 | BH32: 0 | BJ32: 5.5 | BK32: 9 | BQ32: 11 | BR32: 0 | BT32: 5.5 | BU32: 9 | CA32: 89 | CB32: 9 | CD32: 89 | CE32: 9
B33: 13 | C33: 0 | E33: 13 | F33: 5.9 | N33: 64 | O33: 0 | AK33: 60 | AL33: 6 | AN33: 60 | AO33: 6 | AS33: 13 | AT33: 0 | AW33: 12 | AX33: 0 | AZ33: 6 | BA33: 8 | BG33: 12 | BH33: 0 | BJ33: 6 | BK33: 8 | BQ33: 12 | BR33: 0 | BT33: 6 | BU33: 8 | CA33: 88 | CB33: 8 | CD33: 88 | CE33: 8
B34: 14 | C34: 0 | E34: 14 | F34: 6 | N34: 63.5 | O34: 0 | AK34: 65 | AL34: 6.5 | AN34: 65 | AO34: 6.5 | AS34: 14 | AT34: 0 | AW34: 13 | AX34: 0 | AZ34: 6.5 | BA34: 7 | BG34: 13 | BH34: 0 | BJ34: 6.5 | BK34: 7 | BQ34: 13 | BR34: 0 | BT34: 6.5 | BU34: 7 | CA34: 87 | CB34: 7 | CD34: 87 | CE34: 7
B35: 15 | C35: 0 | E35: 15 | F35: 5.6 | N35: 63 | O35: 0 | AK35: 70 | AL35: 7 | AN35: 70 | AO35: 7 | AS35: 15 | AT35: 0 | AW35: 14 | AX35: 0 | AZ35: 7 | BA35: 6 | BG35: 14 | BH35: 0 | BJ35: 7 | BK35: 6 | BQ35: 14 | BR35: 0 | BT35: 7 | BU35: 6 | CA35: 86 | CB35: 6 | CD35: 86 | CE35: 6
N36: 62.5 | O36: 0 | AK36: 75 | AL36: 7.5 | AN36: 75 | AO36: 7.5 | AS36: 16 | AT36: 0 | AW36: 15 | AX36: 0 | AZ36: 7.5 | BA36: 5 | BG36: 15 | BH36: 0 | BJ36: 7.5 | BK36: 5 | BQ36: 15 | BR36: 0 | BT36: 7.5 | BU36: 5 | CA36: 85 | CB36: 5 | CD36: 85 | CE36: 5
N37: 62 | O37: 0 | AK37: 80 | AL37: 8 | AN37: 80 | AO37: 8 | AS37: 17 | AT37: 0 | AW37: 16 | AX37: 0 | AZ37: 8 | BA37: 4 | BG37: 16 | BH37: 0 | BJ37: 8 | BK37: 4 | BQ37: 16 | BR37: 0 | BT37: 8 | BU37: 4 | CA37: 84 | CB37: 4 | CD37: 84 | CE37: 4
N38: 61.5 | O38: 0 | AK38: 85 | AL38: 8.5 | AN38: 85 | AO38: 8.5 | AS38: 18 | AT38: 0 | AW38: 17 | AX38: 0 | AZ38: 8.5 | BA38: 3 | BG38: 17 | BH38: 0 | BJ38: 8.5 | BK38: 3 | BQ38: 17 | BR38: 0 | BT38: 8.5 | BU38: 3 | CA38: 83 | CB38: 3 | CD38: 83 | CE38: 3
N39: 61 | O39: 0 | AK39: 90 | AL39: 9 | AN39: 90 | AO39: 9 | AS39: 19 | AT39: 0 | AW39: 18 | AX39: 0 | AZ39: 9 | BA39: 2 | BG39: 18 | BH39: 0 | BJ39: 9 | BK39: 2 | BQ39: 18 | BR39: 0 | BT39: 9 | BU39: 2 | CA39: 82 | CB39: 2 | CD39: 82 | CE39: 2
K40: =IF(#REF!="","",#REF!) ->  | N40: 60.5 | O40: 0 | AK40: 95 | AL40: 9.5 | AN40: 95 | AO40: 9.5 | AS40: 20 | AT40: 0 | AW40: 19 | AX40: 0 | AZ40: 9.5 | BA40: 1 | BG40: 19 | BH40: 0 | BJ40: 9.5 | BK40: 1 | BQ40: 19 | BR40: 0 | BT40: 9.5 | BU40: 1 | CA40: 81 | CB40: 1 | CD40: 81 | CE40: 1
K41: =IF(#REF!="","",#REF!) ->  | N41: 60 | O41: 0 | AK41: 100 | AL41: 10 | AN41: 100 | AO41: 10 | AS41: 21 | AT41: 0 | AW41: 20 | AX41: 0 | AZ41: 10 | BA41: 0 | BG41: 20 | BH41: 0 | BJ41: 10 | BK41: 0 | BQ41: 20 | BR41: 0 | BT41: 10 | BU41: 0 | CA41: 80 | CB41: 0 | CD41: 80 | CE41: 0
K42: =IF(#REF!="","",#REF!) ->  | N42: 59.5 | O42: 2 | AN42: =IF(#REF!="","",#REF!) ->  | AS42: 22 | AT42: 0 | AW42: 21 | AX42: 0 | AZ42: 10.5 | BA42: 0 | BG42: 21 | BH42: 0 | BJ42: 10.5 | BK42: 0 | BQ42: 21 | BR42: 0 | BT42: 10.5 | BU42: 0 | CA42: 79 | CB42: 0 | CD42: 79 | CE42: 0
K43: =IF(#REF!="","",#REF!) ->  | N43: 59 | O43: 2 | AN43: =IF(#REF!="","",#REF!) ->  | AS43: 23 | AT43: 0 | AW43: 22 | AX43: 0 | AZ43: 11 | BA43: 0 | BG43: 22 | BH43: 0 | BJ43: 11 | BK43: 0 | BQ43: 22 | BR43: 0 | BT43: 11 | BU43: 0 | CA43: 78 | CB43: 0 | CD43: 78 | CE43: 0
K44: =IF(#REF!="","",#REF!) ->  | N44: 58.5 | O44: 2 | AN44: =IF(#REF!="","",#REF!) ->  | AS44: 24 | AT44: 0 | AW44: 23 | AX44: 0 | AZ44: 11.5 | BA44: 0 | BG44: 23 | BH44: 0 | BJ44: 11.5 | BK44: 0 | BQ44: 23 | BR44: 0 | BT44: 11.5 | BU44: 0 | CA44: 77 | CB44: 0 | CD44: 77 | CE44: 0
K45: =IF(K16="","",K16) ->  | N45: 58 | O45: 3 | AN45: =IF(AN16="","",AN16) ->  | AW45: 24 | AX45: 0 | AZ45: 12 | BA45: 0 | BG45: 24 | BH45: 0 | BJ45: 12 | BK45: 0 | BQ45: 24 | BR45: 0 | BT45: 12 | BU45: 0 | CA45: 76 | CB45: 0 | CD45: 76 | CE45: 0
N46: 57.5 | O46: 3 | AW46: 25 | AX46: 0 | BG46: 25 | BH46: 0 | BQ46: 25 | BR46: 0 | CA46: 75 | CB46: 0 | CD46: 75 | CE46: 0
N47: 57 | O47: 3 | AW47: 26 | AX47: 0 | BG47: 26 | BH47: 0 | BQ47: 26 | BR47: 0
N48: 56.5 | O48: 3 | AW48: 27 | AX48: 0 | BG48: 27 | BH48: 0 | BQ48: 27 | BR48: 0
N49: 56 | O49: 3 | AW49: 28 | AX49: 0 | BG49: 28 | BH49: 0 | BQ49: 28 | BR49: 0
N50: 55.5 | O50: 2 | AW50: 29 | AX50: 0 | BG50: 29 | BH50: 0 | BQ50: 29 | BR50: 0
N51: 55 | O51: 2 | AW51: 30 | AX51: 0 | BG51: 30 | BH51: 0 | BQ51: 30 | BR51: 0
N52: 54.5 | O52: 2 | AW52: 31 | AX52: 0 | BG52: 31 | BH52: 0 | BQ52: 31 | BR52: 0
N53: 54 | O53: 2 | AW53: 32 | AX53: 0 | BG53: 32 | BH53: 0 | BQ53: 32 | BR53: 0
N54: 53.5 | O54: 2 | AW54: 33 | AX54: 0 | BG54: 33 | BH54: 0 | BQ54: 33 | BR54: 0
N55: 53 | O55: 2 | AW55: 34 | AX55: 0 | BG55: 34 | BH55: 0 | BQ55: 34 | BR55: 0
N56: 52.5 | O56: 1 | AW56: 35 | AX56: 0 | BG56: 35 | BH56: 0 | BQ56: 35 | BR56: 0
N57: 52 | O57: 1 | AW57: 36 | AX57: 0 | BG57: 36 | BH57: 0 | BQ57: 36 | BR57: 0
N58: 51.5 | O58: 1 | AW58: 37 | AX58: 0 | BG58: 37 | BH58: 0 | BQ58: 37 | BR58: 0
N59: 51 | O59: 1 | AW59: 38 | AX59: 0 | BG59: 38 | BH59: 0 | BQ59: 38 | BR59: 0
N60: 50.5 | O60: 1 | AW60: 39 | AX60: 0 | BG60: 39 | BH60: 0 | BQ60: 39 | BR60: 0
N61: 50 | O61: 1 | AW61: 40 | AX61: 0 | BG61: 40 | BH61: 0 | BQ61: 40 | BR61: 0
N62: 49.5 | O62: 1 | AW62: 100 | AX62: 0 | BG62: 100 | BH62: 0 | BQ62: 100 | BR62: 0
N63: 49 | O63: 1
N64: 48.5 | O64: 1
N65: 48 | O65: 1
N66: 47.5 | O66: 1
N67: 47 | O67: 1
N68: 46.5 | O68: 1
N69: 46 | O69: 1
N70: 45.5 | O70: 1
N71: 45 | O71: 1

Sheet form2
A1: 1 | B1: tab
A2: race | B2: Tab | C2: Form L3 | D2: Horse | E2: TRat | F2: JRat | G2: API | H2: LSRat | I2: DLR | J2: PR | K2: AFS | L2: BP | Q2: tab t | R2: DLR T | S2: TR | T2: JK | U2: api | V2: LSRat | X2: rating | Y2: Price | AA2: RATING | AB2: PRICE
A3: 1 | B3: 1 | C3: x76 | D3: ANCIENT GUIDANCE | E3: 1.9 | F3: 2.6 | G3: 2 | H3: 33 | I3: 14 | J3: 10 | K3: 17.2 | L3: 8 | Q3: =IF(B3=1,20,0+IF(B3=2,19,0+IF(B3=3,18,0+IF(B3=4,17,0+IF(B3=5,16,0+IF(B3=6,15,0+IF(B3=7,14,0+IF(B3=8,14,0)))))))) -> 20 | R3: =IF(AND(I3>=1,I3<=15),20,IF(AND(I3>=16,I3<=28),15,0)) -> 20 | S3: =IFERROR(IF(RANK(E3,$E$3:$E$14)<13,RANK(E3,$E$3:$E$14),""),"") -> 8 | T3: =IFERROR(IF(RANK(F3,$F$3:$F$14)<13,RANK(F3,$F$3:$F$14),""),"") -> 7 | U3: =IFERROR(IF(RANK(G3,$G$3:$G$14)<13,RANK(G3,$G$3:$G$14),""),"") -> 4 | V3: =IFERROR(IF(RANK(H3,$H$3:$H$14)<13,RANK(H3,$H$3:$H$14),""),"") -> 1 | X3: =IF(B3="","",100+R3+Q3)-(S3+T3+U3+V3) -> 120 | Y3: =IF(B3="","",$X$15/X3*85%) ->  | AA3: =IF(B3="","",+E3*5+F3*5+G3+H3*5+R3+Q3) -> 229.5 | AB3: =IF(B3="","",$AA$15/AA3*85%) -> 5.206296296 | AC3: =IFERROR(IF(RANK(H3,$H$3:$H$14)<4,RANK(H3,$H$3:$H$14),""),"") -> 1
A4: 1 | B4: 2 | C4: 58 | D4: AUTUMN REBEL | E4: 3.3 | F4: 3 | G4: 2.3 | H4: 31.5 | I4: 14 | J4: 5.5 | K4: 17.2 | L4: 9 | Q4: 19 | R4: 20 | S4: 5 | T4: 6 | U4: 3 | V4: 3 | X4: 122 | Z4: =IFERROR(IF(RANK(X4,$X$3:$X$14)<4,RANK(X4,$X$3:$X$14),""),"") ->  | AA4: 230.3 | AB4: 5.188211029 | AC4: 3
A5: 1 | B5: 3 | C5: 3 | D5: DIALLING | E5: 3.3 | F5: 3.2 | G5: 2 | H5: 27 | I5: 10 | J5: 8 | L5: 2 | Q5: 18 | R5: 20 | S5: 5 | T5: 4 | U5: 4 | V5: 5 | X5: 120 | AA5: 207.5 | AB5: 5.758289157
A6: 1 | B6: 4 | C6: 9 | D6: WANT TO DANCE | E6: 4.2 | F6: 2.4 | G6: 0.4 | H6: 13.5 | I6: 10 | J6: 12 | L6: 5 | Q6: 17 | R6: 20 | S6: 2 | T6: 8 | U6: 6 | V6: 6 | X6: 115 | AA6: 137.9 | AB6: 8.66457578
A7: 1 | B7: 5 | C7: - | D7: MINING LEGEND | E7: 4.2 | F7: 4 | G7: 0 | H7: 0 | I7: 0 | J7: 26 | L7: 4 | Q7: 16 | R7: 0 | S7: 2 | T7: 3 | U7: 7 | V7: 7 | X7: 97 | AA7: 57 | AB7: 20.96219298
A8: 1 | B8: 6 | C8: - | D8: PIN DEEP | E8: 2.9 | F8: 3.2 | G8: 0 | H8: 0 | I8: 0 | J8: 18 | L8: 1 | Q8: 15 | R8: 0 | S8: 7 | T8: 4 | U8: 7 | V8: 7 | X8: 90 | AA8: 45.5 | AB8: 26.26032967
A9: 1 | B9: 7 | C9: 503 | D9: ECSTASY OF GOLD | E9: 1.8 | F9: 1.6 | G9: 3.2 | H9: 29.5 | I9: 9 | J9: 15 | K9: 17.1 | L9: 3 | Q9: 14 | R9: 20 | S9: 9 | T9: 9 | U9: 2 | V9: 4 | X9: 110 | AA9: 201.7 | AB9: 5.923872087
A10: 1 | B10: 8 | C10: 1 | D10: PETULA | E10: 4.1 | F10: 4.3 | G10: 12.3 | H10: 32.5 | I10: 10 | J10: 2.9 | L10: 7 | Q10: 14 | R10: 20 | S10: 4 | T10: 1 | U10: 1 | V10: 2 | X10: 126 | AA10: 250.8 | AB10: 4.764134769 | AC10: 2
A11: 1 | B11: 9 | C11: - | D11: BLAZING EMERALD | E11: 4.9 | F11: 4.2 | G11: 0 | H11: 0 | I11: 0 | J11: 6.5 | L11: 6 | Q11: 0 | R11: 0 | S11: 1 | T11: 2 | U11: 7 | V11: 7 | X11: 83 | AA11: 45.5 | AB11: 26.26032967
A12: 1 | Q12: 0 | R12: 0 | U12: 7 | V12: 7
A13: 1 | Q13: 0 | R13: 0 | U13: 7 | V13: 7
A14: 1 | Q14: 0 | R14: 0 | U14: 7 | V14: 7
A15: 1 | V15: 7 | X15: =SUM(X3:X14) ->  | AA15: =SUM(AA3:AA14) -> 1405.7 | AC15: X
A16: 1 | B16: tab
A17: race | B17: Tab | C17: Form L3 | D17: Horse | E17: TRat | F17: JRat | G17: API | H17: LSRat | I17: DLR | J17: PR | K17: AFS | L17: BP | Q17: tab t | R17: DLR T | S17: TR | T17: JK | U17: api | V17: LSRat | X17: rating | Y17: Price | AA17: RATING | AB17: PRICE
A18: 2 | B18: 1 | C18: 427 | D18: GLASGOW GIRL | E18: 2.5 | F18: 2.6 | G18: 5.4 | H18: 34.5 | I18: 14 | J18: 3.8 | K18: 17.5 | L18: 7 | Q18: =IF(B18=1,20,0+IF(B18=2,19,0+IF(B18=3,18,0+IF(B18=4,17,0+IF(B18=5,16,0+IF(B18=6,15,0+IF(B18=7,14,0+IF(B18=8,14,0)))))))) -> 20 | R18: =IF(AND(I18>=1,I18<=15),20,IF(AND(I18>=16,I18<=28),15,0)) -> 20 | S18: =IFERROR(IF(RANK(E18,$E$18:$E$29)<13,RANK(E18,$E$18:$E$29),""),"") -> 7 | T18: =IFERROR(IF(RANK(F18,$F$18:$F$29)<13,RANK(F18,$F$18:$F$29),""),"") -> 6 | U18: =IFERROR(IF(RANK(G18,$G18:$G$29)<13,RANK(G18,$G$18:$G$29),""),"") -> 3 | V18: =IFERROR(IF(RANK(H18,$H18:$H$29)<13,RANK(H18,$H$18:$H$29),""),"") -> 7 | X18: =IF(B18="","",+R18+Q18) -> 40 | Y18: =IF(B3="","",$X$30/X18*85%) -> 5.185 | AA18: =IF(B18="","",+E18*5+F18*5+G18+H18*5+R18+Q18) -> 243.4 | AB18: =IF(B18="","",$AA$15/AA18*85%) -> 4.908976993
A19: 2 | B19: 2 | C19: x73 | D19: MORDOR | E19: 1.9 | F19: 2.5 | G19: 5.8 | H19: 36.5 | I19: 21 | J19: 10 | K19: 17.2 | L19: 1 | Q19: 19 | R19: 15 | S19: 10 | T19: 7 | U19: =IFERROR(IF(RANK(G19,$G19:$G$29)<13,RANK(G19,$G$18:$G$29),""),"") -> 1 | V19: =IFERROR(IF(RANK(H19,$H19:$H$29)<13,RANK(H19,$H$18:$H$29),""),"") -> 3 | X19: 34 | Y19: 6.1 | AA19: 244.3 | AB19: 4.890892345
A20: 2 | B20: 3 | C20: 135 | D20: LUCKY LANDING | E20: 3.6 | F20: 3.2 | G20: 3.6 | H20: 35.5 | I20: 21 | J20: 4.6 | K20: 17.9 | L20: 8 | Q20: 18 | R20: 15 | S20: 3 | T20: 3 | U20: =IFERROR(IF(RANK(G20,$G20:$G$29)<13,RANK(G20,$G$18:$G$29),""),"") -> 6 | V20: =IFERROR(IF(RANK(H20,$H20:$H$29)<13,RANK(H20,$H$18:$H$29),""),"") -> 4 | X20: 33 | Y20: 6.284848485 | AA20: 248.1 | AB20: 4.815981459
A21: 2 | B21: 4 | C21: 215 | D21: ULTIMATE COMMAND | E21: 3.8 | F21: 3 | G21: 3.7 | H21: 35 | I21: 14 | J21: 10 | K21: 16.8 | L21: 3 | Q21: 17 | R21: 20 | S21: 1 | T21: 4 | U21: =IFERROR(IF(RANK(G21,$G21:$G$29)<13,RANK(G21,$G$18:$G$29),""),"") -> 5 | V21: =IFERROR(IF(RANK(H21,$H21:$H$29)<13,RANK(H21,$H$18:$H$29),""),"") -> 5 | X21: 37 | Y21: 5.605405405 | AA21: 249.7 | AB21: 4.785122147
A22: 2 | B22: 5 | C22: 6x1 | D22: VALENCY | E22: 2.1 | F22: 1.6 | G22: 5.8 | H22: 37.5 | I22: 14 | J22: 6.5 | K22: 17.6 | L22: 11 | Q22: 16 | R22: 20 | S22: 9 | T22: 10 | U22: =IFERROR(IF(RANK(G22,$G22:$G$29)<13,RANK(G22,$G$18:$G$29),""),"") -> 1 | V22: =IFERROR(IF(RANK(H22,$H22:$H$29)<13,RANK(H22,$H$18:$H$29),""),"") -> 2 | X22: 36 | Y22: 5.761111111 | AA22: 247.8 | AB22: 4.821811945
A23: 2 | B23: 6 | C23: 424 | D23: YOYO'S | E23: 3.3 | F23: 2.5 | G23: 1.6 | H23: 35 | I23: 14 | J23: 8.5 | K23: 18.2 | L23: 9 | Q23: 15 | R23: 20 | S23: 5 | T23: 7 | U23: =IFERROR(IF(RANK(G23,$G23:$G$29)<13,RANK(G23,$G$18:$G$29),""),"") -> 9 | V23: =IFERROR(IF(RANK(H23,$H23:$H$29)<13,RANK(H23,$H$18:$H$29),""),"") -> 5 | X23: 35 | Y23: 5.925714286 | AA23: 240.6 | AB23: 4.966105569
A24: 2 | B24: 7 | C24: 11x | D24: PLAYZ WITH FIRE | E24: 2.3 | F24: 4.2 | G24: 0 | H24: 43.5 | I24: 501 | J24: 10 | L24: 4 | Q24: 14 | R24: 0 | S24: 8 | T24: 1 | U24: =IFERROR(IF(RANK(G24,$G24:$G$29)<13,RANK(G24,$G$18:$G$29),""),"") -> 10 | V24: =IFERROR(IF(RANK(H24,$H24:$H$29)<13,RANK(H24,$H$18:$H$29),""),"") -> 1 | X24: 14 | Y24: 14.81428571 | AA24: 264 | AB24: 4.52592803
A25: 2 | Q25: 0 | R25: 0 | U25: =IFERROR(IF(RANK(G25,$G25:$G$29)<13,RANK(G25,$G$18:$G$29),""),"") ->  | V25: =IFERROR(IF(RANK(H25,$H25:$H$29)<13,RANK(H25,$H$18:$H$29),""),"") -> 
A26: 2 | B26: 9 | C26: 34x | D26: BASIL'S DREAM | E26: 3.6 | F26: 3.8 | G26: 5 | H26: 34.5 | I26: 185 | J26: 20 | K26: 17.8 | L26: 5 | Q26: 0 | R26: 0 | S26: 3 | T26: 2 | U26: =IFERROR(IF(RANK(G26,$G26:$G$29)<13,RANK(G26,$G$18:$G$29),""),"") -> 4 | V26: =IFERROR(IF(RANK(H26,$H26:$H$29)<13,RANK(H26,$H$18:$H$29),""),"") -> 7 | X26: 0 | AA26: 214.5 | AB26: 5.57037296
A27: 2 | B27: 10 | C27: 70x | D27: ANYOLDTIME | E27: 3.3 | F27: 1.9 | G27: 2.2 | H27: 31.5 | I27: 140 | J27: 51 | K27: 17.8 | L27: 10 | Q27: 0 | R27: 0 | S27: 5 | T27: 9 | U27: =IFERROR(IF(RANK(G27,$G27:$G$29)<13,RANK(G27,$G$18:$G$29),""),"") -> 7 | V27: =IFERROR(IF(RANK(H27,$H27:$H$29)<13,RANK(H27,$H$18:$H$29),""),"") -> 9 | X27: 0 | AA27: 185.7 | AB27: 6.434275714
A28: 2 | B28: 11 | C28: 903 | D28: DOMINEER | E28: 3.8 | F28: 2.9 | G28: 2 | H28: 30.5 | I28: 18 | J28: 26 | K28: 17.7 | L28: 6 | Q28: 0 | R28: 15 | S28: 1 | T28: 5 | U28: =IFERROR(IF(RANK(G28,$G28:$G$29)<13,RANK(G28,$G$18:$G$29),""),"") -> 8 | V28: =IFERROR(IF(RANK(H28,$H28:$H$29)<13,RANK(H28,$H$18:$H$29),""),"") -> 10 | X28: 15 | AA28: 203 | AB28: 5.885935961
A29: 2 | Q29: 0 | R29: 0 | U29: =IFERROR(IF(RANK(G29,$G29:$G$29)<13,RANK(G29,$G$18:$G$29),""),"") ->  | V29: =IFERROR(IF(RANK(H29,$H29:$H$29)<13,RANK(H29,$H$18:$H$29),""),"") -> 
A30: 2 | V30: =IFERROR(IF(RANK(H30,$E$3:$E$14)<13,RANK(H30,$E$3:$E$14),""),"") ->  | X30: =SUM(X18:X29) -> 244 | AA30: =SUM(AA18:AA29) -> 2341.1
B31: tab
A32: race | B32: Tab | C32: Form L3 | D32: Horse | E32: TRat | F32: JRat | G32: API | H32: LSRat | I32: DLR | J32: PR | K32: AFS | L32: BP | Q32: tab t | R32: DLR T | S32: TR | T32: JK | U32: api | V32: LSRat | X32: rating | Y32: Price | AA32: RATING | AB32: PRICE
A33: 3 | B33: 1 | C33: 111 | D33: CATCH THESE HANDS | E33: 4.1 | F33: 4.2 | G33: 14.3 | H33: 39 | I33: 21 | J33: 4.2 | K33: 17.6 | L33: 4 | Q33: =IF(B33=1,20,0+IF(B33=2,19,0+IF(B33=3,18,0+IF(B33=4,17,0+IF(B33=5,16,0+IF(B33=6,15,0+IF(B33=7,14,0+IF(B33=8,14,0)))))))) -> 20 | R33: =IF(AND(I33>=1,I33<=15),20,IF(AND(I33>=16,I33<=28),15,0)) -> 15 | S33: =IFERROR(IF(RANK(E33,$E$33:$E$44)<13,RANK(E33,$E$33:$E$44),""),"") -> 1 | T33: =IFERROR(IF(RANK(F33,$F$33:$F$44)<13,RANK(F33,$F$33:$F$44),""),"") -> 1 | U33: =IFERROR(IF(RANK(G33,$G$33:$G44)<13,RANK(G33,$G$33:$G44),""),"") -> 2 | V33: =IFERROR(IF(RANK(G33,$G$33:$G44)<13,RANK(G33,$G$33:$G44),""),"") -> 2 | X33: =IF(B33="","",+R33+Q33) -> 35 | Y33: =IF(B3="","",$X$45/X33*85%) -> 6.994285714 | AA33: =IF(B33="","",+E33*5+F33*5+G33+H33*5+R33+Q33) -> 285.8 | AB33: =IF(B33="","",$AA$45/AA33*85%) -> 6.629881036
A34: 3 | B34: 2 | C34: 184 | D34: PAZZO CAVALLO | E34: 2 | F34: 2.5 | G34: 4.5 | H34: 35.5 | I34: 24 | J34: 14 | K34: 17.6 | L34: 2 | Q34: 19 | R34: 15 | S34: 9 | T34: 7 | U34: =IFERROR(IF(RANK(G34,$G$33:$G45)<13,RANK(G34,$G$33:$G45),""),"") -> 7 | V34: =IFERROR(IF(RANK(G34,$G$33:$G45)<13,RANK(G34,$G$33:$G45),""),"") -> 7 | X34: 34 | Y34: 7.2 | AA34: 238.5 | AB34: 7.944737945
A35: 3 | B35: 3 | C35: 113 | D35: RUSTY DREAMS | E35: 3.6 | F35: 4.2 | G35: 19.6 | H35: 35.5 | I35: 21 | J35: 3 | K35: 17.4 | L35: 7 | Q35: 18 | R35: 15 | S35: 4 | T35: 1 | U35: =IFERROR(IF(RANK(G35,$G$33:$G46)<13,RANK(G35,$G$33:$G46),""),"") -> 1 | V35: =IFERROR(IF(RANK(G35,$G$33:$G46)<13,RANK(G35,$G$33:$G46),""),"") -> 1 | X35: 33 | Y35: 7.418181818 | AA35: 269.1 | AB35: 7.041322928
A36: 3 | B36: 4 | C36: 552 | D36: UNIVERSAL FLAIR | E36: 2.3 | F36: 2.2 | G36: 5.3 | H36: 34.5 | I36: 10 | J36: 17 | K36: 17.3 | L36: 3 | Q36: 17 | R36: 20 | S36: 8 | T36: 8 | U36: =IFERROR(IF(RANK(G36,$G$33:$G47)<13,RANK(G36,$G$33:$G47),""),"") -> 4 | V36: =IFERROR(IF(RANK(G36,$G$33:$G47)<13,RANK(G36,$G$33:$G47),""),"") -> 4 | X36: 37 | Y36: 6.616216216 | AA36: 237.3 | AB36: 7.984913611
A37: 3 | B37: 5 | C37: 127 | D37: ZOUBOLTZ | E37: 3.8 | F37: 2.9 | G37: 2.9 | H37: 36 | I37: 14 | J37: 31 | K37: 17.7 | L37: 1 | Q37: 16 | R37: 20 | S37: 3 | T37: 6 | U37: =IFERROR(IF(RANK(G37,$G$33:$G44)<13,RANK(G37,$G$33:$G44),""),"") -> 9 | V37: =IFERROR(IF(RANK(G37,$G$33:$G48)<13,RANK(G37,$G$33:$G48),""),"") -> 10 | X37: 36 | Y37: 6.8 | AA37: 252.4 | AB37: 7.507210777
A38: 3 | B38: 6 | C38: 375 | D38: KINGS SICARIO | E38: 4.1 | F38: 3 | G38: 4.5 | H38: 36 | I38: 14 | J38: 12 | K38: 17.9 | L38: 8 | Q38: 15 | R38: 20 | S38: 1 | T38: 5 | U38: =IFERROR(IF(RANK(G38,$G$33:$G45)<13,RANK(G38,$G$33:$G45),""),"") -> 7 | V38: =IFERROR(IF(RANK(G38,$G$33:$G49)<13,RANK(G38,$G$33:$G49),""),"") -> 9 | X38: 35 | Y38: 6.994285714 | AA38: 255 | AB38: 7.430666667
A39: 3 | B39: 7 | C39: 541 | D39: BEATS OF WAR | E39: 3.3 | F39: 3.2 | G39: 4.6 | H39: 32 | I39: 17 | J39: 10 | K39: 17.4 | L39: 6 | Q39: 14 | R39: 15 | S39: 5 | T39: 4 | U39: =IFERROR(IF(RANK(G39,$G$33:$G50)<13,RANK(G39,$G$33:$G50),""),"") -> 9 | V39: =IFERROR(IF(RANK(G39,$G$33:$G50)<13,RANK(G39,$G$33:$G50),""),"") -> 9 | X39: 29 | Y39: 8.44137931 | AA39: 226.1 | AB39: 8.380451128
A40: 3 | B40: 8 | C40: 51q | D40: NUNES | E40: 2.6 | F40: 4 | G40: 5 | H40: 38.5 | I40: 14 | J40: 6 | K40: 17.7 | L40: 5 | Q40: 14 | R40: 20 | S40: 7 | T40: 3 | U40: =IFERROR(IF(RANK(G40,$G$33:$G44)<13,RANK(G40,$G$33:$G44),""),"") -> 5 | V40: =IFERROR(IF(RANK(G40,$G$33:$G51)<13,RANK(G40,$G$33:$G51),""),"") -> 7 | X40: 34 | Y40: 7.2 | AA40: 264.5 | AB40: 7.163780718
A41: 3 | B41: 9 | C41: 753 | D41: AZENA | E41: 3.1 | F41: 1.9 | G41: 5.5 | H41: 31 | I41: 16 | J41: 20 | K41: 17.4 | L41: 9 | Q41: 0 | R41: 15 | S41: 6 | T41: 9 | U41: =IFERROR(IF(RANK(G41,$G$33:$G44)<13,RANK(G41,$G$33:$G44),""),"") -> 3 | V41: =IFERROR(IF(RANK(G41,$G$33:$G52)<13,RANK(G41,$G$33:$G52),""),"") -> 5 | X41: 15 | Y41: 16.32 | AA41: 200.5 | AB41: 9.450473815
A42: 3 | Q42: 0 | R42: 0 | U42: =IFERROR(IF(RANK(G42,$G$33:$G44)<13,RANK(G42,$G$33:$G44),""),"") ->  | V42: =IFERROR(IF(RANK(G42,$G$33:$G53)<13,RANK(G42,$G$33:$G53),""),"") -> 
A43: 3 | Q43: 0 | R43: 0 | U43: =IFERROR(IF(RANK(G43,$G$33:$G44)<13,RANK(G43,$G$33:$G44),""),"") ->  | V43: =IFERROR(IF(RANK(G43,$G$33:$G54)<13,RANK(G43,$G$33:$G54),""),"") -> 
A44: 3 | Q44: 0 | R44: 0 | U44: =IFERROR(IF(RANK(G44,$G$33:$G45)<13,RANK(G44,$G$33:$G45),""),"") ->  | V44: =IFERROR(IF(RANK(G44,$G$33:$G55)<13,RANK(G44,$G$33:$G55),""),"") -> 
A45: 3 | X45: =SUM(X33:X44) -> 288 | AA45: =SUM(AA33:AA44) -> 2229.2
B46: tab
A47: race | B47: Tab | C47: Form L3 | D47: Horse | E47: TRat | F47: JRat | G47: API | H47: LSRat | I47: DLR | J47: PR | K47: AFS | L47: BP | Q47: tab t | R47: DLR T | S47: TR | T47: JK | U47: api | V47: LSRat | X47: rating | Y47: Price | AA47: RATING | AB47: PRICE
A48: 4 | B48: 1 | C48: 212 | D48: COBBANCO | E48: 2.1 | F48: 2 | G48: 9.6 | H48: 39.5 | I48: 14 | J48: 5 | K48: 17.5 | L48: 7 | Q48: =IF(B48=1,20,0+IF(B48=2,19,0+IF(B48=3,18,0+IF(B48=4,17,0+IF(B48=5,16,0+IF(B48=6,15,0+IF(B48=7,14,0+IF(B48=8,14,0)))))))) -> 20 | R48: =IF(AND(I48>=1,I48<=15),20,IF(AND(I48>=16,I48<=28),15,0)) -> 20 | S48: =IFERROR(IF(RANK(E48,$E$48:$E$59)<13,RANK(E48,$E$48:$E$59),""),"") -> 7 | T48: =IFERROR(IF(RANK(F48,$F$48:$F$59)<13,RANK(F48,$F$48:$F$59),""),"") -> 8 | U48: =IFERROR(IF(RANK(G48,$G$48:$G$59)<13,RANK(G48,$G$48:$G$59),""),"") -> 2 | V48: =IFERROR(IF(RANK(H48,$H$48:$H$59)<13,RANK(H48,$H$48:$H$59),""),"") -> 1 | X48: =IF(B48="","",+R48+Q48) -> 40 | Y48: =IF(B48="","",$X$59/X48*85%) ->  | AA48: =IF(B48="","",+E48*5+F48*5+G48+H48*5+R48+Q48) -> 267.6 | AB48: =IF(B47="","",$AA$60/AA48*85%) -> 8.117563528
A49: 4 | B49: 2 | C49: 9x0 | D49: ADVANCED | E49: 2.3 | F49: 2.3 | G49: 10.3 | H49: 33.5 | I49: 28 | J49: 13 | K49: 17.8 | L49: 8 | Q49: 19 | R49: 15 | S49: 5 | T49: 7 | U49: 1 | V49: 8 | X49: 34 | AA49: 234.8 | AB49: 9.25153322
A50: 4 | B50: 3 | C50: 0x0 | D50: BUTTERLEA LAD | E50: 4.7 | F50: 1.7 | G50: 4.8 | H50: 28.5 | I50: 14 | J50: 6 | K50: 17.2 | L50: 11 | Q50: 18 | R50: 20 | S50: 1 | T50: 9 | U50: 5 | V50: 10 | X50: 38 | AA50: 217.3 | AB50: 9.99659457
A51: 4 | B51: 4 | C51: 806 | D51: DANI BELLA | E51: 2 | F51: 2.8 | G51: 3.6 | H51: 36.5 | I51: 14 | J51: 31 | K51: 17.2 | L51: 10 | Q51: 17 | R51: 20 | S51: 8 | T51: 6 | U51: 7 | V51: 2 | X51: 37 | AA51: 247.1 | AB51: 8.791015783
A52: 4 | B52: 5 | C52: 3x7 | D52: FLASH DUCATI | E52: 2.7 | F52: 4.2 | G52: 1.1 | H52: 35.5 | I52: 14 | J52: 17 | K52: 18 | L52: 9 | Q52: 16 | R52: 20 | S52: 4 | T52: 3 | U52: 11 | V52: 6 | X52: 36 | AA52: 249.1 | AB52: 8.720433561
A53: 4 | B53: 6 | C53: 653 | D53: EL PATRON | E53: 4.4 | F53: 4.4 | G53: 5.2 | H53: 36 | I53: 10 | J53: 4 | K53: 17.1 | L53: 2 | Q53: 15 | R53: 20 | S53: 2 | T53: 2 | U53: 4 | V53: 3 | X53: 35 | AA53: 264.2 | AB53: 8.222028766
A54: 4 | B54: 7 | C54: 686 | D54: GREAT FORTUNE | E54: 2.2 | F54: 1.6 | G54: 2.8 | H54: 36 | I54: 21 | J54: 9.5 | K54: 17.6 | L54: 4 | Q54: 14 | R54: 15 | S54: 6 | T54: 10 | U54: 9 | V54: 3 | X54: 29 | AA54: 230.8 | AB54: 9.41187175
A55: 4 | B55: 8 | C55: 626 | D55: ACE COMMAND | E55: 1.9 | F55: 3.9 | G55: 2.4 | H55: 34 | I55: 17 | J55: 26 | K55: 17.2 | L55: 5 | Q55: 14 | R55: 15 | S55: 10 | T55: 4 | U55: 10 | V55: 7 | X55: 29 | AA55: 230.4 | AB55: 9.428211806
A56: 4 | B56: 9 | C56: 41 | D56: FIRST ENCOUNTER | E56: 3.6 | F56: 4.5 | G56: 6.6 | H56: 36 | I56: 9 | J56: 7.5 | K56: 17 | L56: 3 | Q56: 0 | R56: 20 | S56: 3 | T56: 1 | U56: 3 | V56: 3 | X56: 20 | AA56: 247.1 | AB56: 8.791015783
A57: 4 | B57: 10 | C57: 355 | D57: JOLLY LACE | E57: 2 | F57: 3.5 | G57: 3.1 | H57: 26.5 | I57: 16 | J57: 41 | K57: 17.3 | L57: 1 | Q57: 0 | R57: 15 | S57: 8 | T57: 5 | U57: 8 | V57: 11 | X57: 15 | AA57: 178.1 | AB57: 12.1968557
A58: 4 | B58: 11 | C58: 872 | D58: ROYAL ELITE | E58: 1.9 | F58: 1.6 | G58: 4.1 | H58: 30.5 | I58: 18 | J58: 21 | K58: 17.4 | L58: 6 | Q58: 0 | R58: 15 | S58: 10 | T58: 10 | U58: 6 | V58: 9 | X58: 15 | AA58: 189.1 | AB58: 11.48736118
A59: 4 | Q59: 0 | R59: 0
A60: 4 | X60: =SUM(X48:X59) -> 328 | AA60: =SUM(AA48:AA59) -> 2555.6
A62: race | B62: Tab | C62: Form L3 | D62: Horse | E62: TRat | F62: JRat | G62: API | H62: LSRat | I62: DLR | J62: PR | K62: AFS | L62: BP | Q62: tab t | R62: DLR T | S62: TR | T62: JK | U62: api | V62: LSRat | X62: rating | Y62: Price | AA62: RATING | AB62: PRICE
A63: 5 | B63: 1 | C63: 34x | D63: THOROGOOD | E63: 3.5 | F63: 3 | G63: 7.2 | H63: 35.5 | I63: 70 | J63: 26 | K63: 17.7 | L63: 9 | Q63: =IF(B63=1,20,0+IF(B63=2,19,0+IF(B63=3,18,0+IF(B63=4,17,0+IF(B63=5,16,0+IF(B63=6,15,0+IF(B63=7,14,0+IF(B63=8,14,0)))))))) -> 20 | R63: =IF(AND(I63>=1,I63<=15),20,IF(AND(I63>=16,I63<=28),15,0)) -> 0 | S63: =IFERROR(IF(RANK(E63,$E$63:$E$74)<13,RANK(E63,$E$63:$E$74),""),"") -> 6 | T63: =IFERROR(IF(RANK(F63,$F$63:$F$74)<13,RANK(F63,$F$63:$F$74),""),"") -> 7 | U63: =IFERROR(IF(RANK(G63,$G$63:$G$74)<13,RANK(G63,$G$63:$G$74),""),"") -> 1 | V63: =IFERROR(IF(RANK(H63,$H$63:$H$74)<13,RANK(H63,$H$63:$H$74),""),"") -> 10 | X63: =IF(B63="","",+R63+Q63) -> 20 | Y63: =IF(B63="","",$X$75/X63*85%) -> 12.0275 | AA63: =IF(A62="","",+E63*5+F63*5+G63+H63*5+R63+Q63) -> 237.2 | AB63: =IF(B62="","",$AA$75/AA63*85%) -> 10.45908516
A64: 5 | B64: 2 | C64: 72x | D64: COLD SHIZZLE | E64: 3.3 | F64: 3.2 | G64: 6 | H64: 38.5 | I64: 128 | J64: 7 | K64: 18.2 | L64: 7 | Q64: 19 | R64: 0 | S64: 7 | T64: 4 | U64: 3 | V64: 2 | X64: 19 | Y64: 12.66052632 | AA64: 250 | AB64: 9.92358
A65: 5 | B65: 3 | C65: 07x | D65: LORD GANNICUS | E65: 4.2 | F65: 4.2 | G65: 6.2 | H65: 40 | I65: 161 | J65: 9.5 | K65: 17.5 | L65: 4 | Q65: 18 | R65: 0 | S65: 1 | T65: 2 | U65: 2 | V65: 1 | X65: 18 | Y65: 13.36388889 | AA65: 266.2 | AB65: 9.319665665
A66: 5 | B66: 4 | C66: 721 | D66: WHAT A PRINCE | E66: 2.5 | F66: 3.2 | G66: 5.3 | H66: 37 | I66: 17 | J66: 8 | K66: 17.4 | L66: 6 | Q66: 17 | R66: 15 | S66: 10 | T66: 4 | U66: 4 | V66: 5 | X66: 32 | Y66: 7.5171875 | AA66: 250.8 | AB66: 9.891925837
A67: 5 | B67: 5 | C67: 873 | D67: KING CRUZER | E67: 3.2 | F67: 1.6 | G67: 1.7 | H67: 37.5 | I67: 14 | J67: 9.5 | K67: 17.3 | L67: 5 | Q67: 16 | R67: 20 | S67: 8 | T67: 12 | U67: 11 | V67: 3 | X67: 36 | Y67: 6.681944444 | AA67: 249.2 | AB67: 9.9554374
A68: 5 | B68: 6 | C68: 388 | D68: DESERT VIXEN | E68: 4.1 | F68: 4.3 | G68: 3.7 | H68: 36 | I68: 7 | J68: 4 | K68: 17.8 | L68: 2 | Q68: 15 | R68: 20 | S68: 2 | T68: 1 | U68: 8 | V68: 8 | X68: 35 | Y68: 6.872857143 | AA68: 260.7 | AB68: 9.516283084
A69: 5 | B69: 7 | C69: 265 | D69: JAG THE JOKER | E69: 2.3 | F69: 2.5 | G69: 3.5 | H69: 35 | I69: 10 | J69: 13 | K69: 17.5 | L69: 3 | Q69: 14 | R69: 20 | S69: 11 | T69: 10 | U69: 9 | V69: 11 | X69: 34 | Y69: 7.075 | AA69: 236.5 | AB69: 10.49004228
A70: 5 | B70: 8 | C70: 641 | D70: KATONA | E70: 1.9 | F70: 3.2 | G70: 3.4 | H70: 36 | I70: 10 | J70: 19 | K70: 17.9 | L70: 11 | Q70: 14 | R70: 20 | S70: 12 | T70: 4 | U70: 10 | V70: 8 | X70: 34 | Y70: 7.075 | AA70: 242.9 | AB70: 10.21364759
A71: 5 | B71: 9 | C71: x92 | D71: CANNY CONI | E71: 3.6 | F71: 3 | G71: 4.7 | H71: 37.5 | I71: 17 | J71: 31 | K71: 17.5 | L71: 8 | Q71: 0 | R71: 15 | S71: 4 | T71: 7 | U71: 6 | V71: 3 | X71: 15 | Y71: 16.03666667 | AA71: 240.2 | AB71: 10.32845545
A72: 5 | B72: 10 | C72: 341 | D72: LITTLE SILVER | E72: 4.1 | F72: 4.2 | G72: 4.8 | H72: 36.5 | I72: 10 | J72: 6 | K72: 17.3 | L72: 1 | Q72: 0 | R72: 20 | S72: 2 | T72: 2 | U72: 5 | V72: 7 | X72: 20 | Y72: 12.0275 | AA72: 248.8 | AB72: 9.971442926
A73: 5 | B73: 11 | C73: x38 | D73: SWEET TEA | E73: 3.6 | F73: 2.9 | G73: 4.2 | H73: 33.5 | I73: 14 | J73: 41 | K73: 17.9 | L73: 10 | Q73: 0 | R73: 20 | S73: 4 | T73: 9 | U73: 7 | V73: 12 | X73: 20 | Y73: 12.0275 | AA73: 224.2 | AB73: 11.06554416
A74: 5 | B74: 12 | C74: 53x | D74: FAR TOO STRONG | E74: 2.8 | F74: 2.4 | G74: 1 | H74: 37 | I74: 136 | J74: 31 | K74: 17.3 | L74: 12 | Q74: 0 | R74: 0 | S74: 9 | T74: 11 | U74: 12 | V74: 5 | X74: 0 | AA74: 212 | AB74: 11.70233491
X75: =SUM(X63:X74) -> 283 | AA75: =SUM(AA63:AA74) -> 2918.7
B76: tab
A77: race | B77: Tab | C77: Form L3 | D77: Horse | E77: TRat | F77: JRat | G77: API | H77: LSRat | I77: DLR | J77: PR | K77: AFS | L77: BP | Q77: tab t | R77: DLR T | S77: TR | T77: JK | U77: api | V77: LSRat | X77: rating | Y77: Price | AA77: RATING | AB77: PRICE
A78: 6 | B78: 1 | C78: 82 | D78: EXCELLENT DREAM | E78: 3.4 | F78: 3.9 | G78: 5.5 | H78: 45 | I78: 14 | J78: 12 | K78: 17.4 | L78: 2 | Q78: 20 | R78: 20 | S78: 12 | T78: 10 | U78: 10 | V78: 9 | X78: =IF(B78="","",+R78+Q78) -> 40 | Y78: =IF(B78="","",$X$795/X78*85%) -> 0 | AA78: =IF(A77="","",+E78*5+F78*5+G78+H78*5+R78+Q78) -> 307 | AB78: =IF(B77="","",$AA$75/AA78*85%) -> 8.081091205
A79: 6 | B79: 2 | C79: 856 | D79: BLACK SHADOW | E79: 2.2 | F79: 2.8 | G79: 4.7 | H79: 39 | I79: 41 | J79: 8.5 | K79: 16.8 | L79: 3 | Q79: 19 | R79: 15 | S79: 11 | T79: 4 | U79: 9 | V79: 7 | X79: 34 | Y79: 6.95 | AA79: 258.7 | AB79: 10.20148084
A80: 6 | B80: 3 | C80: 121 | D80: CLASSIC ROGUE | E80: 4.3 | F80: 2 | G80: 11.2 | H80: 43.5 | I80: 28 | J80: 8.5 | K80: 17.7 | L80: 7 | Q80: 18 | R80: 0 | S80: 2 | T80: 2 | U80: 11 | V80: 4 | X80: 18 | Y80: 13.12777778 | AA80: 278.2 | AB80: 9.945057745
A81: 6 | B81: 4 | C81: x93 | D81: GINGER BAKER | E81: 1.3 | F81: 3.5 | G81: 7.4 | H81: 43.5 | I81: 14 | J81: 17 | K81: 17.4 | L81: 6 | Q81: 17 | R81: 20 | S81: 6 | T81: 7 | U81: 1 | V81: 11 | X81: 37 | Y81: 6.386486486 | AA81: 285.9 | AB81: 10.33106916
A82: 6 | B82: 5 | C82: 514 | D82: KNOT SECRET | E82: 4.3 | F82: 4.2 | G82: 14 | H82: 45 | I82: 14 | J82: 3.9 | K82: 17.7 | L82: 8 | Q82: 16 | R82: 0 | S82: 7 | T82: 1 | U82: 12 | V82: 12 | X82: 16 | Y82: 14.76875 | AA82: 297.5 | AB82: 13.82353636
A83: 6 | B83: 6 | C83: 411 | D83: SESSIONS PEAK | E83: 4.3 | F83: 3.2 | G83: 9.7 | H83: 45 | I83: 14 | J83: 6.5 | K83: 17.5 | L83: 9 | Q83: 15 | R83: 15 | S83: 7 | T83: 6 | U83: 6 | V83: 8 | X83: 30 | Y83: 7.876666667 | AA83: 302.2 | AB83: 10.03367032
A84: 6 | B84: 7 | C84: 344 | D84: KAYMAY | E84: 2.9 | F84: 1.7 | G84: 7.5 | H84: 46 | I84: 21 | J84: 15 | K84: 17.6 | L84: 4 | Q84: 14 | R84: 15 | S84: 3 | T84: 11 | U84: 4 | V84: 10 | X84: 29 | Y84: 8.148275862 | AA84: 289.5 | AB84: 10.59654361
A85: 6 | B85: 8 | C85: 0x5 | D85: BARAMAGIC | E85: 2.2 | F85: 1.8 | G85: 2.6 | H85: 45 | I85: 21 | J85: 31 | K85: 17.7 | L85: 1 | Q85: 14 | R85: 0 | S85: 10 | T85: 5 | U85: 7 | V85: 1 | X85: 14 | Y85: 16.87857143 | AA85: 261.6 | AB85: 9.181012857
A86: 6 | B86: 9 | C86: 221 | D86: MACK MACK | E86: 3.6 | F86: 4.5 | G86: 8.6 | H86: 43.5 | I86: 10 | J86: 4.8 | K86: 17.8 | L86: 5 | Q86: 0 | R86: 15 | S86: 3 | T86: 8 | U86: 3 | V86: 4 | X86: 15 | Y86: 15.75333333 | AA86: 281.6 | AB86: 9.931563772
A87: 6 | B87: 10 | C87: 525 | D87: PICCOLA SIGNORA | E87: 3.3 | F87: 2 | G87: 3.6 | H87: 43 | I87: 14 | J87: 21 | K87: 17.7 | L87: 10 | Q87: 0 | R87: 15 | S87: 1 | T87: 3 | U87: 2 | V87: 3 | X87: 15 | Y87: 15.75333333 | AA87: 260.1 | AB87: 9.169511431
A88: 6 | Q88: 0 | R88: 15 | S88: 9 | T88: 12 | U88: 8 | V88: 6 | Y88: 15.75333333 | AA88: 15 | AB88: 10.86391466
A89: 6 | Q89: 0 | R89: 15 | S89: 3 | T89: 9 | U89: 5 | V89: 2 | Y89: 15.75333333 | AA89: 15 | AB89: 9.186774396
X90: =SUM(X78:X89) -> 248 | AA90: =SUM(AA78:AA89) -> 2852.3
AA91: 3444.5
A92: race | B92: Tab | C92: Form L3 | D92: Horse | E92: TRat | F92: JRat | G92: API | H92: LSRat | I92: DLR | J92: PR | K92: AFS | L92: BP | Q92: tab t | R92: DLR T | S92: TR | T92: JK | U92: api | V92: LSRat | X92: rating | Y92: Price | AA92: RATING | AB92: PRICE
A93: 7 | B93: 1 | C93: 80x | D93: BUMPER BLAST | E93: 1.9 | F93: 2.2 | G93: 1.8 | H93: 40 | I93: 238 | J93: 81 | K93: 17 | L93: 7 | Q93: =IF(B93=1,20,0+IF(B93=2,19,0+IF(B93=3,18,0+IF(B93=4,17,0+IF(B93=5,16,0+IF(B93=6,15,0+IF(B93=7,14,0+IF(B93=8,14,0)))))))) -> 20 | R93: =IF(AND(I93>=1,I93<=15),20,IF(AND(I93>=16,I93<=28),15,0)) -> 0 | S93: =IFERROR(IF(RANK(E93,$E$93:$E$104)<13,RANK(E93,$E$93:$E$104),""),"") -> 11 | T93: =IFERROR(IF(RANK(F93,$F$93:$F$104)<13,RANK(F93,$F$93:$F$104),""),"") -> 10 | U93: =IFERROR(IF(RANK(G93,$G$93:$G104)<13,RANK(G93,$G$93:$G104),""),"") -> 12 | V93: =IFERROR(IF(RANK(H93,$H$93:$H$104)<13,RANK(H93,$H$93:$H$104),""),"") -> 8 | X93: =IF(B93="","",+R93+Q93) -> 20 | Y93: =IF(B92="","",$X$15/X93*85%) ->  | AA93: =IF(A92="","",+E93*5+F93*5+G93+H93*5+R93+Q93) -> 242.3 | AB93: =IF(B92="","",$AA$15/AA93*85%) -> 4.931262897
A94: 7 | B94: 2 | C94: 552 | D94: MAN CRUSH | E94: 3.3 | F94: 3.2 | G94: 16.8 | H94: 42 | I94: 14 | J94: 7.5 | K94: 17.3 | L94: 13 | Q94: 19 | R94: 20 | S94: 8 | T94: 4 | U94: =IFERROR(IF(RANK(G94,$G$93:$G104)<13,RANK(G94,$G$93:$G104),""),"") -> 1 | V94: 4 | X94: 39 | AA94: 298.3 | AB94: 4.005514583
A95: 7 | B95: 3 | C95: 6x9 | D95: ALL DAY SESSION | E95: 2.3 | F95: 2.1 | G95: 3.2 | H95: 36 | I95: 14 | J95: 11 | K95: 17.8 | L95: 4 | Q95: 18 | R95: 20 | S95: 9 | T95: 11 | U95: =IFERROR(IF(RANK(G95,$G$93:$G104)<13,RANK(G95,$G$93:$G104),""),"") -> 11 | V95: 10 | X95: 38 | AA95: 243.2 | AB95: 4.91301398
A96: 7 | B96: 4 | C96: 3x1 | D96: CATALPA | E96: 4.2 | F96: 3 | G96: 16.1 | H96: 42.5 | I96: 14 | J96: 5.5 | K96: 18 | L96: 10 | Q96: 17 | R96: 20 | S96: 3 | T96: 7 | U96: =IFERROR(IF(RANK(G96,$G$93:$G104)<13,RANK(G96,$G$93:$G104),""),"") -> 2 | V96: 2 | X96: 37 | AA96: 301.6 | AB96: 3.961687666
A97: 7 | B97: 5 | C97: 00x | D97: POSITION OF POWER | E97: 3.5 | F97: 1.8 | G97: 8.2 | H97: 32 | I97: 182 | J97: 31 | K97: 17.1 | L97: 5 | Q97: 16 | R97: 0 | S97: 7 | T97: 12 | U97: =IFERROR(IF(RANK(G97,$G$93:$G104)<13,RANK(G97,$G$93:$G104),""),"") -> 6 | V97: 12 | X97: 16 | AA97: 210.7 | AB97: 5.670835311
A98: 7 | B98: 6 | C98: 25x | D98: TRADE WAR | E98: 3.6 | F98: 3 | G98: 13.1 | H98: 41.5 | I98: 133 | J98: 20 | K98: 17.9 | L98: 1 | Q98: 15 | R98: 0 | S98: 6 | T98: 7 | U98: =IFERROR(IF(RANK(G98,$G$93:$G104)<13,RANK(G98,$G$93:$G104),""),"") -> 3 | V98: 5 | X98: 15 | AA98: 268.6 | AB98: 4.448417722
A99: 7 | B99: 7 | C99: 713 | D99: DOUBLE SPICE | E99: 1.8 | F99: 2.6 | G99: 5.6 | H99: 42.5 | I99: 21 | J99: 26 | K99: 17.8 | L99: 11 | Q99: 14 | R99: 15 | S99: 12 | T99: 9 | U99: =IFERROR(IF(RANK(G99,$G$93:$G110)<13,RANK(G99,$G$93:$G110),""),"") -> 11 | V99: 2 | X99: 29 | AA99: 269.1 | AB99: 4.44015236
A100: 7 | B100: 8 | C100: 4x5 | D100: NURHACI | E100: 2.1 | F100: 3.2 | G100: 4.4 | H100: 40.5 | I100: 14 | J100: 14 | K100: 17.9 | L100: 2 | Q100: 14 | R100: 20 | S100: 10 | T100: 4 | U100: =IFERROR(IF(RANK(G100,$G$93:$G104)<13,RANK(G100,$G$93:$G104),""),"") -> 9 | V100: 7 | X100: 34 | AA100: 267.4 | AB100: 4.468380703
A101: 7 | B101: 9 | C101: 77x | D101: VIA MONTE | E101: 4.9 | F101: 3.2 | G101: 8.5 | H101: 34.5 | I101: 112 | J101: 17 | K101: 18 | L101: 12 | Q101: 0 | R101: 0 | S101: 1 | T101: 4 | U101: =IFERROR(IF(RANK(G101,$G$93:$G104)<13,RANK(G101,$G$93:$G104),""),"") -> 5 | V101: 11 | X101: 0 | AA101: 221.5 | AB101: 5.394334086
A102: 7 | B102: 10 | C102: 513 | D102: EX SPORT MAN | E102: 4.1 | F102: 4.2 | G102: 6.1 | H102: 44 | I102: 21 | J102: 3.4 | K102: 17.9 | L102: 8 | Q102: 0 | R102: 15 | S102: 4 | T102: 1 | U102: =IFERROR(IF(RANK(G102,$G$93:$G104)<13,RANK(G102,$G$93:$G104),""),"") -> 7 | V102: 1 | X102: 15 | AA102: 282.6 | AB102: 4.228043171
A103: 7 | B103: 11 | C103: 58x | D103: HINT OF MINT | E103: 3.8 | F103: 4 | G103: 4.2 | H103: 41.5 | I103: 126 | J103: 61 | K103: 17.8 | L103: 9 | Q103: 0 | R103: 0 | S103: 5 | T103: 3 | U103: =IFERROR(IF(RANK(G103,$G$93:$G104)<13,RANK(G103,$G$93:$G104),""),"") -> 10 | V103: 5 | X103: 0 | AA103: 250.7 | AB103: 4.766035102
A104: 7 | B104: 12 | C104: 70x | D104: PROBITY | E104: 4.8 | F104: 4.2 | G104: 9.3 | H104: 39.5 | I104: 161 | J104: 6.5 | K104: 17.7 | L104: 3 | Q104: 0 | R104: 0 | S104: 2 | T104: 1 | U104: =IFERROR(IF(RANK(G104,$G$93:$G104)<13,RANK(G104,$G$93:$G104),""),"") -> 4 | V104: 9 | X104: 0 | AA104: 251.8 | AB104: 4.745214456
Q105: 0 | R105: 0 | S105: =IFERROR(IF(RANK(E105,$E$3:$E$14)<13,RANK(E105,$E$3:$E$14),""),"") ->  | X105: =SUM(X93:X104) -> 243 | AA105: =SUM(AA93:AA104) -> 3107.8
B106: tab
A107: race | B107: Tab | C107: Form L3 | D107: Horse | E107: TRat | F107: JRat | G107: API | H107: LSRat | I107: DLR | J107: PR | K107: AFS | L107: BP | Q107: tab t | R107: DLR T | S107: TR | T107: JK | U107: api | V107: LSRat | X107: rating | Y107: Price | AA107: RATING | AB107: PRICE
A108: 8 | B108: 1 | C108: 263 | D108: RED CAN MAN | E108: 4.1 | F108: 4.2 | G108: 29.7 | H108: 52 | I108: 13 | J108: 3.9 | K108: 17.4 | L108: 12 | Q108: =IF(B108=1,20,0+IF(B108=2,19,0+IF(B108=3,18,0+IF(B108=4,17,0+IF(B108=5,16,0+IF(B108=6,15,0+IF(B108=7,14,0+IF(B108=8,14,0)))))))) -> 20 | R108: =IF(AND(I108>=1,I108<=15),20,IF(AND(I108>=16,I108<=28),15,0)) -> 20 | S108: =IFERROR(IF(RANK(E108,$E$108:$E$119)<13,RANK(E108,$E$108:$E$119),""),"") -> 5 | T108: =IFERROR(IF(RANK(F108,$F$108:$F$119)<13,RANK(F108,$F$108:$F$119),""),"") -> 2 | U108: =IFERROR(IF(RANK(G108,$G$108:$G119)<13,RANK(G108,$G$108:$G119),""),"") -> 4 | X108: =IF(B108="","",+R108+Q108) -> 40 | Y108: =IF(B107="","",$X$15/X108*85%) ->  | AA108: =IF(A107="","",+E108*5+F108*5+G108+H108*5+R108+Q108) -> 371.2 | AB108: =IF(B107="","",$AA$15/AA108*85%) -> 3.218871228
A109: 8 | B109: 2 | C109: 522 | D109: COMFORT ME | E109: 2.5 | F109: 4.2 | G109: 63 | H109: 50.5 | I109: 13 | J109: 8 | K109: 17.6 | L109: 7 | Q109: 19 | R109: 20 | S109: 11 | T109: 2 | U109: =IFERROR(IF(RANK(G109,$G$108:$G120)<13,RANK(G109,$G$108:$G120),""),"") -> 1 | V109: =IF(RANK(H109,$H$3:$H$14)<13,RANK(H109,$H$3:$H$14),"") ->  | X109: 39 | AA109: 388 | AB109: 3.079497423
A110: 8 | B110: 3 | C110: x31 | D110: DOM TO SHOOT | E110: 4.3 | F110: 4.2 | G110: 28.5 | H110: 52.5 | I110: 13 | J110: 6 | K110: 17.9 | L110: 6 | Q110: 18 | R110: 20 | S110: 3 | T110: 2 | U110: =IFERROR(IF(RANK(G110,$G$108:$G121)<13,RANK(G110,$G$108:$G121),""),"") -> 5 | X110: 38 | AA110: 371.5 | AB110: 3.216271871
A111: 8 | B111: 4 | C111: x47 | D111: RESORTMAN | E111: 3.6 | F111: 2.5 | G111: 42.1 | H111: 52 | I111: 28 | J111: 4.8 | K111: 18 | L111: 1 | Q111: 17 | R111: 15 | S111: 8 | T111: 10 | U111: =IFERROR(IF(RANK(G111,$G$108:$G122)<13,RANK(G111,$G$108:$G122),""),"") -> 3 | X111: 32 | AA111: 364.6 | AB111: 3.277139331
A112: 8 | B112: 6 | C112: x05 | D112: STARTRADE | E112: 4.9 | F112: 4 | G112: 25.4 | H112: 47.5 | I112: 28 | J112: 12 | K112: 18.1 | L112: 10 | Q112: 15 | R112: 15 | S112: 1 | T112: 5 | U112: =IFERROR(IF(RANK(G112,$G$108:$G123)<13,RANK(G112,$G$108:$G123),""),"") -> 8 | X112: 30 | AA112: 337.4 | AB112: 3.541330765
A113: 8 | B113: 7 | C113: 90x | D113: KAPTAIN KAOS | E113: 4.2 | F113: 2.4 | G113: 18.5 | H113: 44 | I113: 161 | J113: 41 | K113: 17.9 | L113: 3 | Q113: 14 | R113: 0 | S113: 4 | T113: 11 | U113: =IFERROR(IF(RANK(G113,$G$108:$G124)<13,RANK(G113,$G$108:$G124),""),"") -> 9 | X113: 14 | AA113: 285.5 | AB113: 4.185096322
A114: 8 | B114: 8 | C114: 81x | D114: MINSK MOMENT | E114: 2.9 | F114: 3.2 | G114: 28 | H114: 52 | I114: 126 | J114: 16 | K114: 17.8 | L114: 11 | Q114: 14 | R114: 0 | S114: 10 | T114: 7 | U114: =IFERROR(IF(RANK(G114,$G$108:$G125)<13,RANK(G114,$G$108:$G125),""),"") -> 7 | X114: 14 | AA114: 332.5 | AB114: 3.593518797
A115: 8 | B115: 9 | C115: 00x | D115: NOTORIOUS ONE | E115: 4.1 | F115: 3.8 | G115: 2.5 | H115: 40 | I115: 147 | J115: 51 | K115: 17.7 | L115: 2 | Q115: 0 | R115: 0 | S115: 5 | T115: 6 | U115: =IFERROR(IF(RANK(G115,$G$108:$G126)<13,RANK(G115,$G$108:$G126),""),"") ->  | X115: 0 | AA115: 242 | AB115: 4.937376033
A116: 8 | B116: 10 | C116: 9x5 | D116: STARALIGN | E116: 2.1 | F116: 4.3 | G116: 5.8 | H116: 46.5 | I116: 13 | J116: 31 | K116: 17.7 | L116: 13 | Q116: 0 | R116: 20 | S116: 12 | T116: 1 | U116: =IFERROR(IF(RANK(G116,$G$108:$G127)<13,RANK(G116,$G$108:$G127),""),"") ->  | X116: 20 | AA116: 290.3 | AB116: 4.115897348
A117: 8 | B117: 11 | C117: x79 | D117: LET'S GALAHVANT | E117: 4.8 | F117: 1.9 | G117: 16.4 | H117: 45.5 | I117: 13 | J117: 19 | K117: 17.6 | L117: 5 | Q117: 0 | R117: 20 | S117: 2 | T117: 12 | U117: =IFERROR(IF(RANK(G117,$G$108:$G128)<13,RANK(G117,$G$108:$G128),""),"") -> 11 | X117: 20 | AA117: 297.4 | AB117: 4.01763618
A118: 8 | B118: 12 | C118: 601 | D118: BUSTLER | E118: 3.8 | F118: 2.9 | G118: 44 | H118: 51.5 | I118: 14 | J118: 14 | K118: 17.9 | L118: 8 | Q118: 0 | R118: 20 | S118: 7 | T118: 9 | U118: =IFERROR(IF(RANK(G118,$G$108:$G129)<13,RANK(G118,$G$108:$G129),""),"") -> 2 | X118: 20 | AA118: 355 | AB118: 3.365760563
A119: 8 | B119: 13 | C119: 11x | D119: THE VELVET QUEEN | E119: 3.3 | F119: 3.2 | G119: 28.4 | H119: 50 | I119: 97 | J119: 31 | K119: 18.1 | L119: 4 | Q119: 0 | R119: 0 | S119: 9 | T119: 7 | U119: =IFERROR(IF(RANK(G119,$G$108:$G130)<13,RANK(G119,$G$108:$G130),""),"") -> 6 | X119: 0 | AA119: 310.9 | AB119: 3.843181087
X120: =SUM(X108:X119) -> 267 | AA120: =SUM(AA108:AA119) -> 3946.3
B121: tab
A122: race | B122: Tab | C122: Form L3 | D122: Horse | E122: TRat | F122: JRat | G122: API | H122: LSRat | I122: DLR | J122: PR | K122: AFS | L122: BP | Q122: tab t | R122: DLR T | S122: TR | T122: JK | U122: api | V122: LSRat | X122: rating | Y122: Price | AA122: RATING | AB122: PRICE
A123: 9 | B123: 1 | C123: 7x1 | D123: IT'SARAYDAY | E123: 4.1 | F123: 3.2 | G123: 13.2 | H123: 47.5 | I123: 14 | J123: 4.4 | K123: 17.7 | L123: 10 | Q123: =IF(B123=1,20,0+IF(B123=2,19,0+IF(B123=3,18,0+IF(B123=4,17,0+IF(B123=5,16,0+IF(B123=6,15,0+IF(B123=7,14,0+IF(B123=8,14,0)))))))) -> 20 | R123: =IF(AND(I123>=1,I123<=15),20,IF(AND(I123>=16,I123<=28),15,0)) -> 20 | S123: =IFERROR(IF(RANK(E123,$E$123:$E$134)<13,RANK(E123,$E$123:$E$134),""),"") -> 3 | T123: =IFERROR(IF(RANK(F123,$F$123:$F$134)<13,RANK(F123,$F$123:$F$134),""),"") -> 6 | U123: =IFERROR(IF(RANK(G123,$G$123:$G134)<13,RANK(G123,$G$123:$G134),""),"") -> 5 | V123: =IF(RANK(H123,$H$3:$H$14)<13,RANK(H123,$H$3:$H$14),"") ->  | X123: =IF(B123="","",+R123+Q123) -> 40 | Y123: =IF(B122="","",$X$15/X123*85%) ->  | AA123: =IF(A122="","",+E123*5+F123*5+G123+H123*5+R123+Q123) -> 327.2 | AB123: =IF(B122="","",$AA$15/AA123*85%) -> 3.651726773
A124: 9 | B124: 2 | C124: 265 | D124: CREATOR | E124: 4.1 | F124: 2.2 | G124: 10 | H124: 44.5 | I124: 49 | J124: 31 | K124: 17.5 | L124: 2 | Q124: 19 | R124: 0 | S124: 3 | T124: 11 | U124: =IFERROR(IF(RANK(G124,$G$123:$G134)<13,RANK(G124,$G$123:$G134),""),"") -> 8 | X124: 19 | AA124: 283 | AB124: 4.222067138
A125: 9 | B125: 3 | C125: 5 | D125: MOOD SWINGS | E125: 1.8 | F125: 3.2 | G125: 9 | H125: 45.5 | I125: 14 | J125: 17 | K125: 17.2 | L125: 4 | Q125: 18 | R125: 20 | S125: 12 | T125: 6 | U125: =IFERROR(IF(RANK(G125,$G$123:$G134)<13,RANK(G125,$G$123:$G134),""),"") -> 9 | X125: 38 | AA125: 299.5 | AB125: 3.989465776
A126: 9 | B126: 4 | C126: 0x4 | D126: PANZDOWN | E126: 4.1 | F126: 4.3 | G126: 4.1 | H126: 45.5 | I126: 14 | J126: 7.5 | K126: 18 | L126: 9 | Q126: 17 | R126: 20 | S126: 3 | T126: 1 | U126: =IFERROR(IF(RANK(G126,$G$123:$G137)<13,RANK(G126,$G$123:$G137),""),"") -> 11 | X126: 37 | AA126: 310.6 | AB126: 3.84689311
A127: 9 | B127: 5 | C127: 113 | D127: SNOWDOME | E127: 3.8 | F127: 4 | G127: 22.7 | H127: 47.5 | I127: 14 | J127: 9 | K127: 17.5 | L127: 1 | Q127: 16 | R127: 20 | S127: 8 | T127: 5 | U127: =IFERROR(IF(RANK(G127,$G$123:$G138)<13,RANK(G127,$G$123:$G138),""),"") -> 1 | X127: 36 | AA127: 335.2 | AB127: 3.564573389
A128: 9 | B128: 6 | C128: 161 | D128: STELLAR VISTA | E128: 4.1 | F128: 2.9 | G128: 14.8 | H128: 45 | I128: 21 | J128: 26 | K128: 17.5 | L128: 11 | Q128: 15 | R128: 15 | S128: 3 | T128: 10 | U128: =IFERROR(IF(RANK(G128,$G$123:$G139)<13,RANK(G128,$G$123:$G139),""),"") -> 4 | X128: 30 | AA128: 304.8 | AB128: 3.920095144
A129: 9 | B129: 7 | C129: 944 | D129: THE SPRUIKER | E129: 4.1 | F129: 4.2 | G129: 4 | H129: 42 | I129: 18 | J129: 5 | K129: 17.6 | L129: 5 | Q129: 14 | R129: 15 | S129: 3 | T129: 2 | U129: =IFERROR(IF(RANK(G129,$G$123:$G140)<13,RANK(G129,$G$123:$G140),""),"") -> 12 | X129: 29 | AA129: 284.5 | AB129: 4.199806678
A130: 9 | B130: 8 | C130: 30x | D130: ROKANORI | E130: 4.2 | F130: 4.2 | G130: 15.3 | H130: 43.5 | I130: 189 | J130: 14 | K130: 18 | L130: 6 | Q130: 14 | R130: 0 | S130: 2 | T130: 2 | U130: =IFERROR(IF(RANK(G130,$G$123:$G141)<13,RANK(G130,$G$123:$G141),""),"") -> 3 | X130: 14 | AA130: 288.8 | AB130: 4.137274931
A131: 9 | B131: 9 | C131: 4x7 | D131: CAN'T BE DONE | E131: 2.1 | F131: 3.2 | G131: 15.7 | H131: 44.5 | I131: 14 | J131: 11 | K131: 17.6 | L131: 3 | Q131: 0 | R131: 20 | S131: 10 | T131: 6 | U131: =IFERROR(IF(RANK(G131,$G$123:$G142)<13,RANK(G131,$G$123:$G142),""),"") -> 2 | X131: 20 | AA131: 284.7 | AB131: 4.19685634
A132: 9 | B132: 10 | C132: x53 | D132: FEATHERWEIGHT | E132: 4.9 | F132: 3 | G132: 10.8 | H132: 50 | I132: 7 | J132: 6.5 | K132: 18 | L132: 12 | Q132: 0 | R132: 20 | S132: 1 | T132: 9 | U132: =IFERROR(IF(RANK(G132,$G$123:$G134)<13,RANK(G132,$G$123:$G134),""),"") -> 7 | X132: 20 | AA132: 320.3 | AB132: 3.730393381
A133: 9 | B133: 11 | C133: 28x | D133: SPEED DREAM | E133: 2.1 | F133: 4.2 | G133: 12.7 | H133: 46 | I133: 154 | J133: 71 | L133: 8 | Q133: 0 | R133: 0 | S133: 10 | T133: 2 | U133: =IFERROR(IF(RANK(G133,$G$123:$G134)<13,RANK(G133,$G$123:$G134),""),"") -> 6 | X133: 0 | AA133: 274.2 | AB133: 4.357567469
A134: 9 | B134: 12 | C134: 49x | D134: TURBO POWER | E134: 2.3 | F134: 1.8 | G134: 6.3 | H134: 45 | I134: 175 | J134: 51 | K134: 17.9 | L134: 7 | Q134: 0 | R134: 0 | S134: 9 | T134: 12 | U134: =IFERROR(IF(RANK(G134,$G$123:$G134)<13,RANK(G134,$G$123:$G134),""),"") -> 10 | X134: 0 | AA134: 251.8 | AB134: 4.745214456
X135: =SUM(X123:X134) -> 283 | AA135: =SUM(AA123:AA134) -> 3564.6
B136: tab
